Workbook

Sheet Acceuil

Sheet Parcelle
B9: NOM DE L'AGRICULTEUR
B12: NOM DE LA PARCELLE
B15: SURFACE (ha)
B18: MODE D'IMPLANTATION
B20: COMMENTAIRES (Alt + Entrée pour passer des lignes)

Sheet Saisie
C5: Saisie les données issues de votre analyse de sol dans les cases ci-dessous.
K8: CEC (meq/100g)
C9: Argile (%) | D9: 25 | K9: Ca/ CEC (%)
C10: Limons fins (%) | D10: 30 | K10: K/CEC (%)
C11: Limons grossiers (%) | D11: 35 | K11: Mg/CEC (%)
C12: Sables fins (%) | D12: 10 | K12: Na/CEC (%)
C13: Sables grossiers (%) | K13: H/CEC (%)
K14: Taux de saturation
D17: Année N3 | E17: Année N2 | F17: Année N1
C18: pH eau | D18: 6.5 | E18: 6.5 | F18: 6.4
C19: pH Kcl | L19: Année N3 | M19: Année N2 | N19: Année N1
C20: CaCO3 total % | K20: P2O5 (mg/kg)
C21: CaO (mg/kg) | K21: K2O (mg/kg)
K22: MgO (mg/kg)
K23: Na0 (mg/kg)
K24: Zn (mg/kg)
D25: Année N3 | E25: Année N2 | F25: Année N1 | K25: Mn (mg/kg)
C26: MO % | D26: 3 | E26: 3 | F26: 3 | K26: Cu (mg/kg)
C27: Carbone % | K27: Fe (mg/kg)
C28: Azote total % | K28: B (mg/kg)
C29: C/N | K29: S (mg/kg)
C30: K2(%)

Sheet SYNTHSESE
A8: Nom de l'agriculteur : | C8: =Parcelle!C9 -> 0 | H8: Date : | I8: =TODAY() -> 2022-05-10
A12: Nom de la parcelle : | C12: =Parcelle!C12 -> 0 | E12: Mode d'implantation : | G12: =Parcelle!C18 -> 0
A14: Surface (ha) : | C14: =Parcelle!C15 -> 0
A19: >> ANALYSE GRANULOMETIQUE | E19: >> ANALYSE CHIMIQUE | K19: >> MATIERES ORGANIQUES
A21: =Saisie!C9 -> Argile (%) | B21: =Saisie!D9 -> 25 | F21: =Saisie!D17 -> Année N3 | G21: =Saisie!E17 -> Année N2 | H21: =Saisie!F17 -> Année N1 | L21: =Saisie!D25 -> Année N3 | M21: =Saisie!E25 -> Année N2 | N21: =Saisie!F25 -> Année N1
A22: =Saisie!C10 -> Limons fins (%) | B22: =Saisie!D10 -> 30 | E22: =Saisie!C18 -> pH eau | F22: =Saisie!D18 -> 6.5 | G22: =Saisie!E18 -> 6.5 | H22: =Saisie!F18 -> 6.4 | K22: =Saisie!C26 -> MO % | L22: =Saisie!D26 -> 3 | M22: =Saisie!E26 -> 3 | N22: =Saisie!F26 -> 3
A23: =Saisie!C11 -> Limons grossiers (%) | B23: =Saisie!D11 -> 35 | E23: =Saisie!C19 -> pH Kcl | F23: =Saisie!D19 -> 0 | G23: =Saisie!E19 -> 0 | H23: =Saisie!F19 -> 0 | K23: =Saisie!C27 -> Carbone % | L23: =Saisie!D27 -> 0 | M23: =Saisie!E27 -> 0 | N23: =Saisie!F27 -> 0
A24: =Saisie!C12 -> Sables fins (%) | B24: =Saisie!D12 -> 10 | E24: =Saisie!C20 -> CaCO3 total % | F24: =Saisie!D20 -> 0 | G24: =Saisie!E20 -> 0 | H24: =Saisie!F20 -> 0 | K24: =Saisie!C28 -> Azote total % | L24: =Saisie!D28 -> 0 | M24: =Saisie!E28 -> 0 | N24: =Saisie!F28 -> 0
A25: =Saisie!C13 -> Sables grossiers (%) | B25: =Saisie!D13 -> 0 | E25: =Saisie!C21 -> CaO (mg/kg) | F25: =Saisie!D21 -> 0 | G25: =Saisie!E21 -> 0 | H25: =Saisie!F21 -> 0 | K25: =Saisie!C29 -> C/N | L25: =Saisie!D29 -> 0 | M25: =Saisie!E29 -> 0 | N25: =Saisie!F29 -> 0
K26: =Saisie!C30 -> K2(%) | L26: =Saisie!D30 -> 0 | M26: =Saisie!E30 -> 0 | N26: =Saisie!F30 -> 0
A28: >> CEC ET TAUX DE SATURATION | E28: >> ELEMENTS MINERAUX
A30: =Saisie!K8 -> CEC (meq/100g) | B30: =Saisie!L8 -> 0 | F30: =Saisie!L19 -> Année N3 | G30: =Saisie!M19 -> Année N2 | H30: =Saisie!N19 -> Année N1
A31: =Saisie!K9 -> Ca/ CEC (%) | B31: =Saisie!L9 -> 0 | E31: =Saisie!K20 -> P2O5 (mg/kg) | F31: =Saisie!L20 -> 0 | G31: =Saisie!M20 -> 0 | H31: =Saisie!N20 -> 0
A32: =Saisie!K10 -> K/CEC (%) | B32: =Saisie!L10 -> 0 | E32: =Saisie!K21 -> K2O (mg/kg) | F32: =Saisie!L21 -> 0 | G32: =Saisie!M21 -> 0 | H32: =Saisie!N21 -> 0
A33: =Saisie!K11 -> Mg/CEC (%) | B33: =Saisie!L11 -> 0 | E33: =Saisie!K22 -> MgO (mg/kg) | F33: =Saisie!L22 -> 0 | G33: =Saisie!M22 -> 0 | H33: =Saisie!N22 -> 0
A34: =Saisie!K12 -> Na/CEC (%) | B34: =Saisie!L12 -> 0 | E34: =Saisie!K23 -> Na0 (mg/kg) | F34: =Saisie!L23 -> 0 | G34: =Saisie!M23 -> 0 | H34: =Saisie!N23 -> 0
A35: =Saisie!K13 -> H/CEC (%) | B35: =Saisie!L13 -> 0 | E35: =Saisie!K24 -> Zn (mg/kg) | F35: =Saisie!L24 -> 0 | G35: =Saisie!M24 -> 0 | H35: =Saisie!N24 -> 0
A36: =Saisie!K14 -> Taux de saturation | B36: =Saisie!L14 -> 0 | E36: =Saisie!K25 -> Mn (mg/kg) | F36: =Saisie!L25 -> 0 | G36: =Saisie!M25 -> 0 | H36: =Saisie!N25 -> 0
E37: =Saisie!K26 -> Cu (mg/kg) | F37: =Saisie!L26 -> 0 | G37: =Saisie!M26 -> 0 | H37: =Saisie!N26 -> 0
E38: =Saisie!K27 -> Fe (mg/kg) | F38: =Saisie!L27 -> 0 | G38: =Saisie!M27 -> 0 | H38: =Saisie!N27 -> 0
E39: =Saisie!K28 -> B (mg/kg) | F39: =Saisie!L28 -> 0 | G39: =Saisie!M28 -> 0 | H39: =Saisie!N28 -> 0
E40: =Saisie!K29 -> S (mg/kg) | F40: =Saisie!L29 -> 0 | G40: =Saisie!M29 -> 0 | H40: =Saisie!N29 -> 0
B341: =Parcelle!B21 -> 0

Sheet EXPORT_EXCEL
B6: Nom | C6: =Parcelle!C9 -> 0
B8: =Saisie!C9 -> Argile (%) | C8: =Saisie!D9 -> 25
B9: =Saisie!C10 -> Limons fins (%) | C9: =Saisie!D10 -> 30
B10: =Saisie!C11 -> Limons grossiers (%) | C10: =Saisie!D11 -> 35
B11: =Saisie!C12 -> Sables fins (%) | C11: =Saisie!D12 -> 10
B12: =Saisie!C13 -> Sables grossiers (%) | C12: =Saisie!D13 -> 0
B13: =Saisie!K8 -> CEC (meq/100g) | C13: =Saisie!L8 -> 0 | F13: Tableau à copier dans un fichier Excel puis transférer.
B14: =Saisie!K9 -> Ca/ CEC (%) | C14: =Saisie!L9 -> 0
B15: =Saisie!K10 -> K/CEC (%) | C15: =Saisie!L10 -> 0
B16: =Saisie!K11 -> Mg/CEC (%) | C16: =Saisie!L11 -> 0
B17: =Saisie!K12 -> Na/CEC (%) | C17: =Saisie!L12 -> 0
B18: =Saisie!K13 -> H/CEC (%) | C18: =Saisie!L13 -> 0
B19: =Saisie!K14 -> Taux de saturation | C19: =Saisie!L14 -> 0
B20: =Saisie!C18 -> pH eau | C20: =Saisie!F18 -> 6.4
B21: =Saisie!C19 -> pH Kcl | C21: =Saisie!F19 -> 0
B22: =Saisie!C20 -> CaCO3 total % | C22: =Saisie!F20 -> 0
B23: =Saisie!C21 -> CaO (mg/kg) | C23: =Saisie!F21 -> 0
B24: =Saisie!C26 -> MO % | C24: =Saisie!F26 -> 3
B25: =Saisie!C27 -> Carbone % | C25: =Saisie!F27 -> 0
B26: =Saisie!C28 -> Azote total % | C26: =Saisie!F28 -> 0
B27: =Saisie!C29 -> C/N | C27: =Saisie!F29 -> 0
B28: =Saisie!C30 -> K2(%) | C28: =Saisie!F30 -> 0
B29: =Saisie!K20 -> P2O5 (mg/kg) | C29: =Saisie!N20 -> 0
B30: =Saisie!K21 -> K2O (mg/kg) | C30: =Saisie!N21 -> 0
B31: =Saisie!K22 -> MgO (mg/kg) | C31: =Saisie!N22 -> 0
B32: =Saisie!K23 -> Na0 (mg/kg) | C32: =Saisie!N23 -> 0
B33: =Saisie!K24 -> Zn (mg/kg) | C33: =Saisie!N24 -> 0
B34: =Saisie!K25 -> Mn (mg/kg) | C34: =Saisie!N25 -> 0
B35: =Saisie!K26 -> Cu (mg/kg) | C35: =Saisie!N26 -> 0
B36: =Saisie!K27 -> Fe (mg/kg) | C36: =Saisie!N27 -> 0
B37: =Saisie!K28 -> B (mg/kg) | C37: =Saisie!N28 -> 0
B38: =Saisie!K29 -> S (mg/kg) | C38: =Saisie!N29 -> 0
B39: Indice de battance | C39: =Granulo!B21 -> 1.295454545
B40: RU | C40: =Granulo!E28 -> 0
B41: Charge en cailloux | C41: =Granulo!E29 -> 0
B42: RFU | C42: =Granulo!E30 -> 0
B43: Rapport MO/Argile (%) | C43: =MO!N29 -> 12
B44: %MO pour MO/A 17% | C44: =MO!P30 -> 4.25
B45: Carbone (t/ha) | C45: =Stock_sol!P16 -> 48.72
B46: Besoins en MO (t/ha) | C46: =Stock_sol!P22 -> 0
B47: Bilan humique SdC (t/ha) | C47: =Bilan_Humique!I96 -> -2.205
B48: Balance P SdC (t/ha) | C48: =PK!I82 -> 0
B49: Balance K SdC (t/ha) | C49: =PK!I92 -> 0

Sheet CN_def

Sheet Azote_def

Sheet Carbone_def

Sheet MO_def

Sheet CaO_def

Sheet CaCO3_def

Sheet pH_def

Sheet Granulo_def

Sheet CEC_def

Sheet Granulo
C6: MO (%) | D6: =Saisie!F26 -> 3
C7: Argile (%) | D7: =Saisie!D9 -> 25
C8: Limons fins (%) | D8: =Saisie!D10 -> 30
C9: Limons grossiers (%) | D9: =Saisie!D11 -> 35
C10: Sables fins (%) | D10: =Saisie!D12 -> 10
C11: Sables grossiers (%) | D11: =Saisie!D13 -> 0
C12: Indice de battance | D12: =((1.5*D8)+(0.75*D9))/(D7+10*D6) -> 1.295454545
B20: Votre valeur
B21: =D12 -> 1.295454545
C27: Profondeur de sol (cm) | E27: 25 | G27: Qualité d'enracinement
C28: RU (mm) | E28: =E27*RFU!F30 -> 0 | G28: TRUE | J28: =IF(G28=TRUE, 2/3, "") -> 0.6666666667
C29: Charge en cailloux (%) | E29: 0 | G29: FALSE | J29: =IF(G29=TRUE, 1/2, "") -> 
C30: RFU (mm) | E30: =(E28*J31)- ((E28*J31)*E29%) -> 0 | G30: FALSE | J30: =IF(G30=TRUE, 1/3, "") -> 
I31: Somme | J31: =SUM(J28:J30) -> 0.6666666667

Sheet Feuil7

Sheet RFU
B2: =Granulo!C7 -> Argile (%) | C2: =Saisie!D9 -> 25
B3: =Granulo!C8 -> Limons fins (%) | C3: =Granulo!D8 -> 30
B4: =Granulo!C9 -> Limons grossiers (%) | C4: =Granulo!D9 -> 35
B5: Limon | C5: =SUM(C3:C4) -> 65
F12: RETENU
A13: 1 | B13: =AND(C2>60) -> FALSE | C13: 1.2 | D13: Terres argileuses lourdes | F13: =IF(B13=TRUE, C13, "") -> 
A14: 2 | B14: =AND(C2<60, C2>40) -> FALSE | C14: 1.85 | D14: Terres argileuses | F14: =IF(B14=TRUE, C14, "") -> 
A15: 3 | B15: =AND(C5<10, C2>25, C2<40) -> FALSE | C15: 1.7 | D15: argiles sableuses
A16: 4 | B16: =AND(C5>10, C5<30, C2>25, C2<40) -> FALSE | C16: 1.8 | D16: Argiles sablo limoneuses
A17: 5 | B17: =AND(C5<60, C5>30, C2<40, C2>25) -> FALSE | C17: 1.8 | D17: argile limono sableuses
A18: 6 | B18: =AND(C5>60, C2>25, C2<40) -> FALSE | C18: 1.9 | D18: Argile limoneuse
A19: 7 | B19: =AND(C5<30, C2>12.5, C2<25) -> FALSE | C19: 1.7 | D19: Terres argilo sableuse
A20: 8 | B20: =AND(C5>30, C5<60, C2>12.5, C2<25) -> FALSE | C20: 1.8 | D20: Terre argilo limono sableuse
A21: 9 | B21: =AND(C5>60, C2>12.5, C2<25) -> FALSE | C21: 2 | D21: Terre argilo limoneuse
A22: 10 | B22: =AND(C5<10, C2>5, C2<12.5) -> FALSE | C22: 1.4 | D22: Terres sablo argileuse
A23: 11 | B23: =AND(C5>10, C5<30, C2>5, C2<12.5) -> FALSE | C23: 1.5 | D23: Terres sablo limono argileuse
A24: 12 | B24: =AND(C5>30, C5<60, C2>5, C2<12.5) -> FALSE | C24: 1.65 | D24: Terres limono sablo argileuse
A25: 13 | B25: =AND(C5>60, C2>5, C2<12.5) -> FALSE | C25: 2 | D25: Terre limono argileuse
A26: 14 | B26: =AND(C5<10, C2<5) -> FALSE | C26: 0.7 | D26: Terre sableuse
A27: 15 | B27: =AND(C5>10, C5<30, C2<5) -> FALSE | C27: 1 | D27: Terre sablo limoneuse
A28: 16 | B28: =AND(C5>30, C5<60, C2<5) -> FALSE | C28: 1.65 | D28: Terre limono sableuse
A29: 17 | B29: =AND(C5>60, C2<5) -> FALSE | C29: 1.8 | D29: Terre limoneuse
E30: SOMME | F30: =SUM(F13:F29) -> 0

Sheet Battance

Sheet Ratio_Mineraux
G6: Fe / Mn | H6: Votre valeur | I6: Valeur recherchée | L6: Zinc | M6: Votre valeur | N6: =Saisie!N24 -> 0
G7: Fer | H7: =J7/J8 ->  | I7: 2 | J7: =Saisie!N27 -> 0
G8: Manganèse | H8: =J8/J8 ->  | I8: 1 | J8: =Saisie!N25 -> 0
G10: Carbone / Azote / Soufre | H10: Votre valeur | I10: Valeur recherchée | L10: Manganèse | M10: Votre valeur | N10: =Saisie!N25 -> 0
G11: Carbone | H11: =J11/J13 ->  | I11: 100 | J11: =Saisie!F27 -> 0
G12: Azote | H12: =J12/J13 ->  | I12: 10 | J12: =Saisie!F28 -> 0
G13: Soufre | H13: =J13/J13 ->  | I13: 1 | J13: =Saisie!N29 -> 0
G15: Carbone / Phosphore | H15: Votre valeur | I15: Valeur recherchée
G16: Carbone | H16: =J16/J17 ->  | I16: 2 | J16: =Saisie!F27 -> 0
G17: Phosphore | H17: =J17/J17 ->  | I17: 1 | J17: =Saisie!N20 -> 0
C19: P2O5 / S | D19: Votre valeur | E19: Valeur recherchée | F19: =Saisie!N29 -> 0 | G19: Cu EDTA / MO | H19: Votre valeur | I19: =Saisie!$N$26/Saisie!$F$26 -> 0
C20: Soufre | D20: =F20/F20 ->  | E20: 1 | F20: =Saisie!N29 -> 0
C21: Phosphore | D21: =F21/F20 ->  | E21: 1 | F21: =Saisie!N20 -> 0 | M21: FALSE
C23: P2O5 / Zn | D23: Votre valeur | E23: Valeur recherchée | F23: =Saisie!N20 -> 0 | G23: Bore | H23: Votre valeur | I23: =Saisie!N28 -> 0
C24: Phosphore | D24: =F24/F25 ->  | E24: 10 | F24: =Saisie!N24 -> 0
C25: Zinc | D25: =F25/F25 ->  | E25: 1 | F25: =Saisie!N24 -> 0
F26: =Saisie!N21 -> 0
C27: Potassium | D27: =IF(F26>F27, "supérieur", "inférieur") -> inférieur | E27: Sodium | F27: =Saisie!N23 -> 0
D28: Objectif : Potassium > Sodium
A66: Joret-Hebert
A67: Olsen
A68: Dyer

Sheet Apport_MgO
C10: CaO/MgO | D10: Votre valeur | E10: Valeur recherchée
C11: Calcium | D11: =F11/F12 ->  | E11: 5 (sol léger) - 7 (sol lourd) | F11: =Saisie!F21 -> 0
C12: Magnésium | D12: =F12/F12 ->  | E12: 1 | F12: =Saisie!N22 -> 0
C14: K2O / MgO | D14: Votre valeur | E14: Valeur recherchée
D15: =Saisie!N21/Saisie!N22 ->  | E15: 2 | F15: =Saisie!N23 -> 0
C16: Objectif MgO/CEC (%) Se reporter à l'onglet CEC | D16: 6 | F16: =Saisie!N22 -> 0
C17: Besoin en MgO (kg/ha) | D17: =Saisie!L8*(D16-Saisie!L11)*(0.2*Stock_sol!P9)/100 -> 0 | T17: =IF(#REF!=TRUE, 1, 0) -> 
J21: Votre valeur (ppm)
I22: Magnésium | J22: =Saisie!$N$22 -> 0
F33: Ecart | G33: =IF(#REF!="", "", IF(H17="", G17-#REF!, H17-#REF!)) ->  | I33: =IF(#REF!>=6.5, 6, IF(#REF!="", "", IF(#REF!=$C$35, 1, IF(#REF!=$C$36, 2, IF(#REF!<5.5, 3, IF(Apport_MgO!#REF!<6, 4, IF(#REF!<6.5, 5, 6))))))) -> 
G34: =IF(#REF!="", "", IF(H18="", G18-#REF!, H18-#REF!)) ->  | I34: =IF(#REF!>=6.5, 6, IF(#REF!="", "", IF(#REF!=$C$35, 1, IF(#REF!=$C$36, 2, IF(#REF!<5.5, 3, IF(Apport_MgO!#REF!<6, 4, IF(#REF!<6.5, 5, 6))))))) -> 
C35: Impasse | G35: =IF(K21="", "", IF(H19="", M16-L21, H19-L21)) ->  | I35: =IF(L21>=6.5, 6, IF(K21="", "", IF(K21=$C$35, 1, IF(K21=$C$36, 2, IF(L21<5.5, 3, IF(Apport_MgO!L21<6, 4, IF(L21<6.5, 5, 6))))))) -> 
C36: Entretien | G36: =IF(K22="", "", IF(H20="", M17-L22, H20-L22)) ->  | I36: =IF(L22>=6.5, 6, IF(K22="", "", IF(K22=$C$35, 1, IF(K22=$C$36, 2, IF(L22<5.5, 3, IF(Apport_MgO!L22<6, 4, IF(L22<6.5, 5, 6))))))) -> 
C37: Redressement | G37: =IF(K23="", "", IF(H21="", M18-L23, H21-L23)) ->  | I37: =IF(L23>=6.5, 6, IF(K23="", "", IF(K23=$C$35, 1, IF(K23=$C$36, 2, IF(L23<5.5, 3, IF(Apport_MgO!L23<6, 4, IF(L23<6.5, 5, 6))))))) -> 
G38: =IF(K19="", "", IF(H22="", M19-L19, H22-L19)) ->  | I38: =IF(L19>=6.5, 6, IF(K19="", "", IF(K19=$C$35, 1, IF(K19=$C$36, 2, IF(L19<5.5, 3, IF(Apport_MgO!L19<6, 4, IF(L19<6.5, 5, 6))))))) -> 
G39: =IF(E21="", "", IF(H23="", G21-F21, H23-F21)) ->  | I39: =IF(F21>=6.5, 6, IF(E21="", "", IF(E21=$C$35, 1, IF(E21=$C$36, 2, IF(F21<5.5, 3, IF(Apport_MgO!F21<6, 4, IF(F21<6.5, 5, 6))))))) -> 
G40: =IF(E22="", "", IF(H24="", G22-F22, H24-F22)) ->  | I40: =IF(F22>=6.5, 6, IF(E22="", "", IF(E22=$C$35, 1, IF(E22=$C$36, 2, IF(F22<5.5, 3, IF(Apport_MgO!F22<6, 4, IF(F22<6.5, 5, 6))))))) -> 
G41: =IF(E23="", "", IF(H25="", G23-F23, H25-F23)) ->  | I41: =IF(F23>=6.5, 6, IF(E23="", "", IF(E23=$C$35, 1, IF(E23=$C$36, 2, IF(F23<5.5, 3, IF(Apport_MgO!F23<6, 4, IF(F23<6.5, 5, 6))))))) -> 
G42: =IF(E24="", "", IF(H26="", G24-F24, H26-F24)) ->  | I42: =IF(F24>=6.5, 6, IF(E24="", "", IF(E24=$C$35, 1, IF(E24=$C$36, 2, IF(F24<5.5, 3, IF(Apport_MgO!F24<6, 4, IF(F24<6.5, 5, 6))))))) -> 
C43: 1 | D43: 2 | E43: 3 | F43: 4 | G43: 5 | H43: 6 | I43: 7 | J43: 8 | K43: 9 | L43: 10
B44: 1 | C44: 0 | D44: 0 | E44: 0 | F44: 0 | G44: 0 | H44: 0 | I44: 0 | J44: 0 | K44: 0 | L44: 0
B45: 2 | C45: =(20*Saisie!$L$8)+200 -> 200 | D45: =(20*Saisie!$L$8)+200 -> 200 | E45: =(20*Saisie!$L$8)+200 -> 200 | F45: =(20*Saisie!$L$8)+200 -> 200 | G45: =(20*Saisie!$L$8)+200 -> 200 | H45: =(20*Saisie!$L$8)+200 -> 200 | I45: =(20*Saisie!$L$8)+200 -> 200 | J45: =(20*Saisie!$L$8)+200 -> 200 | K45: =(20*Saisie!$L$8)+200 -> 200 | L45: =(20*Saisie!$L$8)+200 -> 200
B46: 3 | C46: =(12*($G$33*10)*Saisie!$L$8)+400 ->  | D46: =(12*($G$34*10)*Saisie!$L$8)+400 ->  | E46: =(12*($G$35*10)*Saisie!$L$8)+400 ->  | F46: =(12*($G$36*10)*Saisie!$L$8)+400 ->  | G46: =(12*($G$37*10)*Saisie!$L$8)+400 ->  | H46: =(12*($G$38*10)*Saisie!$L$8)+400 ->  | I46: =(12*($G$39*10)*Saisie!$L$8)+400 ->  | J46: =(12*($G$40*10)*Saisie!$L$8)+400 ->  | K46: =(12*($G$41*10)*Saisie!$L$8)+400 ->  | L46: =(12*($G$42*10)*Saisie!$L$8)+400 -> 
B47: 4 | C47: =(16*($G$33*10)*Saisie!$L$8)+500 ->  | D47: =(16*($G$34*10)*Saisie!$L$8)+500 ->  | E47: =(16*($G$35*10)*Saisie!$L$8)+500 ->  | F47: =(16*($G$36*10)*Saisie!$L$8)+500 ->  | G47: =(16*($G$37*10)*Saisie!$L$8)+500 ->  | H47: =(16*($G$38*10)*Saisie!$L$8)+500 ->  | I47: =(16*($G$39*10)*Saisie!$L$8)+500 ->  | J47: =(16*($G$40*10)*Saisie!$L$8)+500 ->  | K47: =(16*($G$41*10)*Saisie!$L$8)+500 ->  | L47: =(16*($G$42*10)*Saisie!$L$8)+500 -> 
B48: 5 | C48: =(20*($G$33*10)*Saisie!$L$8)+600 ->  | D48: =(20*($G$34*10)*Saisie!$L$8)+600 ->  | E48: =(20*($G$35*10)*Saisie!$L$8)+600 ->  | F48: =(20*($G$36*10)*Saisie!$L$8)+600 ->  | G48: =(20*($G$37*10)*Saisie!$L$8)+600 ->  | H48: =(20*($G$38*10)*Saisie!$L$8)+600 ->  | I48: =(20*($G$39*10)*Saisie!$L$8)+600 ->  | J48: =(20*($G$40*10)*Saisie!$L$8)+600 ->  | K48: =(20*($G$41*10)*Saisie!$L$8)+600 ->  | L48: =(20*($G$42*10)*Saisie!$L$8)+600 -> 
B49: 6 | C49: =(24*($G$33*10)*Saisie!$L$8)+700 ->  | D49: =(24*($G$34*10)*Saisie!$L$8)+700 ->  | E49: =(24*($G$35*10)*Saisie!$L$8)+700 ->  | F49: =(24*($G$36*10)*Saisie!$L$8)+700 ->  | G49: =(24*($G$37*10)*Saisie!$L$8)+700 ->  | H49: =(24*($G$38*10)*Saisie!$L$8)+700 ->  | I49: =(24*($G$39*10)*Saisie!$L$8)+700 ->  | J49: =(24*($G$40*10)*Saisie!$L$8)+700 ->  | K49: =(24*($G$41*10)*Saisie!$L$8)+700 ->  | L49: =(24*($G$42*10)*Saisie!$L$8)+700 -> 

Sheet Reserve_sol
A5: Teneur en MO | B5: 0.05 | F5: 122
F6: 1.5
A7: % cailloux | B7: 100
A8: profondeur de travail du sol | B8: 20 | F8: 1831
A9: densité apparente | B9: 1.5 | F9: =F5*F6%*1000 -> 1830
A11: Poids de terre fine (t/ha) | B11: =B7*B8*B9 -> 3000
A13: Qté MO | B13: =B11*B5 -> 150
A14: Qté carbone | B14: =B13/2 -> 75
A16: MOV | B16: =B13*2% -> 3
A17: MOF
A18: HUMUS | B18: =B13*95% -> 142.5

Sheet Evolution

Sheet Ref_MO

Sheet Stock_sol
N6: Profondeur prélevée (cm) | P6: 25
N7: Densité apprente | P7: 1.4
N8: Terre fine (%) | P8: 80
N9: Poids terre fine (t/ha) | P9: =P6*P7*P8 -> 2800
N11: Teneur en MO (%) | P11: =Saisie!F26 -> 3
N14: Quantité d'humus (t/ha) | P14: =D36 -> 84
N16: Quantité de carbone (t/ha) | P16: =D37 -> 48.72
I21: En kg/ha | L21: En kg/ha
I22: =IF(Saisie!F21<>0,(Saisie!F21*Stock_sol!P9)/1000, "") ->  | L22: =IF(Saisie!F28<>0, (Saisie!F28*Stock_sol!P9)*10, "") -> 
D24: En t/ha | I24: En t/ha | L24: =IF(Saisie!N20<>0, (Saisie!N20*Stock_sol!P9)/1000, "") -> 
D25: =D39 -> 4.2 | I25: =P14 -> 84
L26: =IF(Saisie!N21<>0, (Saisie!N21*Stock_sol!P9)/1000, "") -> 
F28: En t/ha | L28: =IF(Saisie!N22<>0, (Saisie!N22*Stock_sol!P9)/1000, "") -> 
F29: =D40 -> 8.4
C36: Quantité de MO (t/ha) | D36: =P9*(P11%) -> 84 | H36: Terre fine (kg) | I36: =P9*1000 -> 2800000
C37: Teneur en carbone (t/ha) | D37: =D36*58% -> 48.72
C39: MOV | D39: =D36*5% -> 4.2
C40: MOF | D40: =D36*10% -> 8.4
C41: Humus | D41: =D36*85% -> 71.4
D45: K1 | E45: %MS
C46: Fumier bien décomposé | D46: 0.5 | E46: 20
C47: Fumier moyennement décomposé | D47: 0.4 | E47: 22
C48: Fumier pailleux | D48: 0.25 | E48: 25
C49: Paille | D49: 0.15 | E49: 85
C50: Boue STEP | D50: 0.2 | E50: 20
C51: Lisier de bovin | D51: 0.2 | E51: 7
C52: Engrais vert jeune | D52: 0.15 | E52: 10
D54: K2
D55: 0
C56: Sable neutre | D56: 2
C57: Sable acide | D57: 1
C58: Sable calcaire | D58: 1.7
C59: Limon moyen | D59: 1.6
C60: Limon argileux | D60: 1.3
C61: Limon calcaire | D61: 0.9
C62: Argileux | D62: 1
C63: Argilo-calcaire | D63: 0.7

Sheet Bilan_Humique
D6: ANNEE 1 | E6: ANNEE 2 | F6: ANNEE 3 | G6: ANNEE 4 | H6: ANNEE 5 | N6: Profondeur prélevée (cm) | P6: 15
C7: CULTURES | D7: 1 | E7: 1 | F7: 1 | G7: 1 | H7: 1 | N7: Densité apprente | P7: 1.4
C8: Rendement (t/ha) | N8: Terre fine (%) | P8: 100
N9: Poids terre fine (t/ha) | P9: =P6*P7*P8 -> 2100
C10: RESTITUTIONS AU SOL
C11: Paille (t/ha) | D11: =IF(D8="", "", D8*INDEX($C$67:$D$77,D7,2)) ->  | E11: =IF(E8="", "", E8*INDEX($C$67:$D$77,E7,2)) ->  | F11: =IF(F8="", "", F8*INDEX($C$67:$D$77,F7,2)) ->  | G11: =IF(G8="", "", G8*INDEX($C$67:$D$77,G7,2)) ->  | H11: =IF(H8="", "", H8*INDEX($C$67:$D$77,H7,2)) ->  | N11: Teneur en MO (%) | P11: =Saisie!F26 -> 3
D12: FALSE | E12: FALSE | F12: FALSE | G12: FALSE | H12: FALSE
C13: Racines (t/ha) | D13: =IF(D11="", "",IF(D7=9,D11/3, D11)) ->  | E13: =IF(E11="", "",IF(E7=9,E11/3, E11)) ->  | N13: Quantité d'humus (t/ha) | P13: =D36 -> 63
C14: Couverts (t MV/ha)
D15: =IF(D11="",0, IF(D12=TRUE, 0, D11)) -> 0 | E15: =IF(E11="",0, IF(E12=TRUE, 0, E11)) -> 0 | F15: =IF(F11="",0, IF(F12=TRUE, 0, F11)) -> 0 | G15: =IF(G11="",0, IF(G12=TRUE, 0, G11)) -> 0 | H15: =IF(H11="",0, IF(H12=TRUE, 0, H11)) -> 0 | N15: Quantité de carbone (t/ha) | P15: =D37 -> 36.54
C16: APPORTS AU SOL - Indiquer les quantités en t/ha
C17: 3 | N17: Coefficient K2 (%)
C18: 13 | N18: 9 | P18: =IF(Saisie!F30>0, Saisie!F30, IF(N18=1, "", INDEX(Stock_sol!D55:D63,N18,1))) -> 0.7
C19: 1 | N19: Si vous avez rentré une valeur dans "Saisie", ne pas modifier.
C20: 13
O21: Besoins en MO (t/ha/an) | Q21: =IF(N18=1, "", P13*P18%) -> 0.441
O23: Type d'amendements organiques
N24: 3
O26: Quantité pour maintenir le taux de MO
O27: =IF(N24=1, "", Q21/INDEX(Stock_sol!C45:E52,N24,2)/INDEX(Stock_sol!C45:E52,N24,3)*100) -> 5.011363636 | P27: t /ha/an
C36: Quantité de MO (t/ha) | D36: =P9*(P11%) -> 63 | H36: Terre fine (kg) | I36: =P9*1000 -> 2100000
C37: Teneur en carbone (t/ha) | D37: =D36*58% -> 36.54
C39: MOV | D39: =D36*5% -> 3.15
C40: MOF | D40: =D36*10% -> 6.3
C41: Humus | D41: =D36*85% -> 53.55
D44: K1 | E44: %MS
C46: Fumier bien décomposé | D46: 0.5 | E46: 20
C47: Fumier moyennement décomposé | D47: 0.4 | E47: 22
C48: Fumier pailleux | D48: 0.25 | E48: 25
C49: Paille | D49: 0.15 | E49: 85
C50: Végétaux ligneux | D50: 0.3 | E50: 30
C51: Feuilles et collets de betteraves | D51: 0.25 | E51: 20
C52: Luzerne (Feuilles et tiges) | D52: 0.25 | E52: 20
C53: Tiges de maïs | D53: 0.2 | E53: 85
C54: Racines de végétaux annuels | D54: 0.15 | E54: 85
C55: Boue STEP | D55: 0.2 | E55: 20
C56: Lisier de bovin | D56: 0.2 | E56: 7
D60: K2
C61: <10% argile | D61: 2
C62: 10 à 15% d'argile | D62: 1.75
C63: 15 à 25% d'argile | D63: 1.5
C64: 25 à 30% d'argile | D64: 1.25
C65: >30% d'argile | D65: 1
D67: Indice de récolte | E67: % de racines/Paille
C68: Blé | D68: 0.5 | E68: 0.5
C69: Orge | D69: 0.5 | E69: 0.5
C70: Triticale | D70: 0.7 | E70: 0.5
C71: Seigle | D71: 1 | E71: 0.5
C72: Colza | D72: 1.3 | E72: 0.5
C73: Maïs grain / sorgho | D73: 0.45 | E73: 0.5
C74: Protéagineux / Tournesol | D74: 0.4 | E74: 0.5
C75: Pommes de terre | D75: 0.05 | E75: 0.5
C76: Fourrage | D76: 0.8 | E76: 0.5
C77: Betterave | D77: 0.5 | E77: 0.5
C79: PERTES | D79: =Q21 -> 0.441 | E79: =Q21 -> 0.441 | F79: =Q21 -> 0.441 | G79: =Q21 -> 0.441 | H79: =Q21 -> 0.441
C80: Fournitures au sol | I80: =AVERAGE(D80:H80) -> 
C82: =C17 -> 3 | D82: =IF(D17="", "", (D17*INDEX($C$45:$E$57,$C$17,3))*INDEX($C$45:$E$57,$C$17,2)/100) ->  | E82: =IF(E17="", "", (E17*INDEX($C$45:$E$57,$C$17,3))*INDEX($C$45:$E$57,$C$17,2)/100) ->  | F82: =IF(F17="", "", (F17*INDEX($C$45:$E$57,$C$17,3))*INDEX($C$45:$E$57,$C$17,2)/100) ->  | G82: =IF(G17="", "", (G17*INDEX($C$45:$E$57,$C$17,3))*INDEX($C$45:$E$57,$C$17,2)/100) ->  | H82: =IF(H17="", "", (H17*INDEX($C$45:$E$57,$C$17,3))*INDEX($C$45:$E$57,$C$17,2)/100) -> 
C83: =C18 -> 13 | D83: =IF(D18="", "", (D18*INDEX($C$45:$E$57,$C$18,3))*INDEX($C$45:$E$57,$C$18,2)/100) ->  | E83: =IF(E18="", "", (E18*INDEX($C$45:$E$57,$C$18,3))*INDEX($C$45:$E$57,$C$18,2)/100) ->  | F83: =IF(F18="", "", (F18*INDEX($C$45:$E$57,$C$18,3))*INDEX($C$45:$E$57,$C$18,2)/100) ->  | G83: =IF(G18="", "", (G18*INDEX($C$45:$E$57,$C$18,3))*INDEX($C$45:$E$57,$C$18,2)/100) ->  | H83: =IF(H18="", "", (H18*INDEX($C$45:$E$57,$C$18,3))*INDEX($C$45:$E$57,$C$18,2)/100) -> 
C84: =C19 -> 1 | D84: =IF(D19="", "", (D19*INDEX($C$45:$E$57,$C$19,3))*INDEX($C$45:$E$57,$C$19,2)/100) ->  | E84: =IF(E19="", "", (E19*INDEX($C$45:$E$57,$C$19,3))*INDEX($C$45:$E$57,$C$19,2)/100) ->  | F84: =IF(F19="", "", (F19*INDEX($C$45:$E$57,$C$19,3))*INDEX($C$45:$E$57,$C$19,2)/100) ->  | G84: =IF(G19="", "", (G19*INDEX($C$45:$E$57,$C$19,3))*INDEX($C$45:$E$57,$C$19,2)/100) ->  | H84: =IF(H19="", "", (H19*INDEX($C$45:$E$57,$C$19,3))*INDEX($C$45:$E$57,$C$19,2)/100) -> 
C85: =C20 -> 13 | D85: =IF(D20="", "", (D20*INDEX($C$45:$E$57,$C$20,3))*INDEX($C$45:$E$57,$C$20,2)/100) ->  | E85: =IF(E20="", "", (E20*INDEX($C$45:$E$57,$C$20,3))*INDEX($C$45:$E$57,$C$20,2)/100) ->  | F85: =IF(F20="", "", (F20*INDEX($C$45:$E$57,$C$20,3))*INDEX($C$45:$E$57,$C$20,2)/100) ->  | G85: =IF(G20="", "", (G20*INDEX($C$45:$E$57,$C$20,3))*INDEX($C$45:$E$57,$C$20,2)/100) ->  | H85: =IF(H20="", "", (H20*INDEX($C$45:$E$57,$C$20,3))*INDEX($C$45:$E$57,$C$20,2)/100) -> 
C86: SOMME | D86: =SUM(D82:D85) -> 0 | E86: =SUM(E82:E85) -> 0 | F86: =SUM(F82:F85) -> 0 | G86: =SUM(G82:G85) -> 0 | H86: =SUM(H82:H85) -> 0 | I86: 0
C88: RESTITUTION AU SOL
C89: Paille | D89: =IF(D15<>0, D11*0.15*0.85, 0) -> 0 | E89: =IF(E15<>0, E11*0.15*0.85, 0) -> 0 | F89: 0 | G89: 0 | H89: 0 | I89: 0
C90: Racines | D90: =IF(D13="", 0, D13*0.15*0.85) -> 0 | E90: =IF(E13="", 0, E13*0.15*0.85) -> 0 | F90: 0 | G90: 0 | H90: 0 | I90: 0
C91: Couverts végétaux | D91: =IF(D14="", 0, D14*0.15*0.1)+IF(D14="", 0, D14*0.15*0.85) -> 0 | E91: =IF(E14="", 0, E14*0.15*0.1)+IF(E14="", 0, E14*0.15*0.85) -> 0 | F91: 0 | G91: 0 | H91: 0 | I91: 0
C92: SOMME | D92: =SUM(D89:D91) -> 0 | E92: =SUM(E89:E91) -> 0 | F92: =SUM(F89:F91) -> 0 | G92: =SUM(G89:G91) -> 0 | H92: =SUM(H89:H91) -> 0 | I92: 0
C94: APPORTS | D94: =D92+D86 -> 0 | E94: =E92+E86 -> 0 | F94: =F92+F86 -> 0 | G94: =G92+G86 -> 0 | H94: =H92+H86 -> 0
C96: BILAN | D96: =(D92+D86)-D79 -> -0.441 | E96: =(E92+E86)-E79 -> -0.441 | F96: =(F92+F86)-F79 -> -0.441 | G96: =(G92+G86)-G79 -> -0.441 | H96: =(H92+H86)-H79 -> -0.441 | I96: =SUM(D96:H96) -> -2.205
C98: Cultures | D98: =INDEX($C$67:$D$77,D7,1) -> 0 | E98: =INDEX($C$67:$D$77,E7,1) -> 0 | F98: =INDEX($C$67:$D$77,F7,1) -> 0 | G98: =INDEX($C$67:$D$77,G7,1) -> 0 | H98: =INDEX($C$67:$D$77,H7,1) -> 0 | I98: CUMUL

Sheet MO
C6: MO (%) | D6: =Saisie!F26 -> 3
C7: Argile (%) | D7: =Saisie!D9 -> 25
C8: Limons fins (%) | D8: =Saisie!D10 -> 30
C9: Limons grossiers (%) | D9: =Saisie!D11 -> 35
C10: Sables fins (%) | D10: =Saisie!D12 -> 10
C11: Sables grossiers (%) | D11: =Saisie!D13 -> 0
C12: CEC (meq/100g) | D12: =Saisie!L8 -> 0
M29: Votre valeur : | N29: =Ref_tab_graph!E23 -> 12
M30: % de MO pour avoir un ratio de 17 : | P30: =D7*0.17 -> 4.25

Sheet C-N
C7: =Saisie!C29 -> C/N | D7: =Saisie!F29 -> 0
C8: =Saisie!C18 -> pH eau | D8: =Saisie!F18 -> 6.4
C9: =Saisie!C26 -> MO % | D9: =Saisie!F26 -> 3

Sheet CEC
C6: =Saisie!K8 -> CEC (meq/100g) | D6: =Saisie!L8 -> 0
C7: =Saisie!K9 -> Ca/ CEC (%) | D7: =Saisie!L9 -> 0
C8: =Saisie!K10 -> K/CEC (%) | D8: =Saisie!L10 -> 0
C9: =Saisie!K11 -> Mg/CEC (%) | D9: =Saisie!L11 -> 0
C10: =Saisie!K12 -> Na/CEC (%) | D10: =Saisie!L12 -> 0
C11: =Saisie!K13 -> H/CEC (%) | D11: =Saisie!L13 -> 0
C12: =Saisie!K14 -> Taux de saturation | D12: =Saisie!L14 -> 0
C45: Saturation CEC | D45: Parcelle | E45: Optimum (d'après KINSEY)
C46: Calcium | D46: =D7 -> 0 | E46: 68
C47: Magnesium | D47: =D9 -> 0 | E47: 12
C48: Potassium | D48: =D8 -> 0 | E48: 4
C49: Sodium | D49: =D10 -> 0 | E49: 1.5
C50: Hydrogène | D50: =D11 -> 0 | E50: 10

Sheet pH
C6: =Saisie!C18 -> pH eau | D6: =Saisie!F18 -> 6.4 | E6: =IF(D6<8, D6, 8) -> 6.4
C7: =Saisie!C19 -> pH Kcl | D7: =Saisie!F19 -> 0 | I7: =E6-D7 -> 6.4 | J7: point(s)
C8: =Saisie!C20 -> CaCO3 total % | D8: =Saisie!F20 -> 0 | I8: =IF(E6>6.5,"",IF(I7<0.5,"Amendement à prévoir à moyen terme",IF(I7<1,"Amendement à prévoir à court terme",IF(I7>1,"Amendement à prévoir rapidement",0)))) -> Amendement à prévoir rapidement
C9: =Saisie!C21 -> CaO (mg/kg) | D9: =Saisie!F21 -> 0 | I9: =IF(D8>10,"Teneur en CaCO3 > 10% -> Pas de chaulage à prévoir", "Teneur en CaCO3 < 10% -> Chaulage à surveiller") -> Teneur en CaCO3 < 10% -> Chaulage à surveiller

Sheet Variation_pH

Sheet pH (2)
C6: =Saisie!C18 -> pH eau | D6: =Saisie!F18 -> 6.4
C7: =Saisie!C19 -> pH Kcl | D7: =Saisie!F19 -> 0 | I7: =D6-D7 -> 6.4 | J7: point(s)
C8: =Saisie!C20 -> CaCO3 total % | D8: =Saisie!F20 -> 0 | I8: =IF(D6>6.5,"",IF(I7<0.5,"Amendement à prévoir à moyen terme",IF(I7<1,"Amendement à prévoir à court terme",IF(I7>1,"Amendement à prévoir rapidement",0)))) -> Amendement à prévoir rapidement
C9: =Saisie!C21 -> CaO (mg/kg) | D9: =Saisie!F21 -> 0

Sheet Chaulage
C7: =Saisie!C18 -> pH eau | D7: =Saisie!F18 -> 6.4
C8: =Saisie!C19 -> pH Kcl | D8: =Saisie!F19 -> 0
C9: =Saisie!C20 -> CaCO3 total % | D9: =Saisie!F20 -> 0
C10: =Saisie!C21 -> CaO (mg/kg) | D10: =Saisie!F21 -> 0
I11: Année | J11: Culture | K11: pH | L11: pH | M11: Besoins en | N11: Type d'amendement | O11: Quantité
K12: actuel | L12: souhaité | M12: CaO (kg/ha) | O12: (kg/ha)
K13: 5.3 | L13: 5.8
C15: Type de culture | D15: Oléoprotéagineux
C17: pH actuel | D17: =D7 -> 6.4
C19: Conseil | D19: =INDEX(Feuil1!A19:G26,Feuil1!E1,Feuil1!E12) -> Entretien
C24: CEC (meq/100g) | D24: =Saisie!L8 -> 0
C26: Quantité CaO/ha | D26: =IF(D19="Entretien", INDEX(Feuil1!B31:U31,1,D24), "") -> 220 | E26: 240 | F26: 260 | G26: 280 | H26: 300 | I26: 320 | J26: 340 | K26: 360 | L26: 380 | M26: 400 | N26: 420 | O26: 440 | P26: 460 | Q26: 480 | R26: 500 | S26: 520 | T26: 540 | U26: 560 | V26: 580 | W26: 600
C28: Type de produit | E28: VN | F28: =INDEX(Feuil1!B49:B59,Feuil1!A60,1) -> 
D30: Quantité à apporter | E30: =IF(D28>0, D26/(F28/100), "") ->  | F30: t/ha

Sheet Chaulage (2)
C6: =Saisie!C18 -> pH eau | D6: =Saisie!F18 -> 6.4 | F6: Type d'amendement basique recommandé (consulter base de données pour le choix)
C7: =Saisie!C19 -> pH Kcl | D7: =Saisie!F19 -> 0 | F7: =IF(D6>=6.5, "Pas d'intervention à prévoir", IF(D6<5.5, "Action rapide", IF(D6<6, "Action moyenne à rapide", IF(D6<6.5, "Action moyenne à lente", "Action moyenne à lente")))) -> Action moyenne à lente
C8: =Saisie!C20 -> CaCO3 total % | D8: =Saisie!F20 -> 0
C9: =Saisie!C21 -> CaO (mg/kg) | D9: =Saisie!F21 -> 0
C16: Année | D16: CULTURE | E16: CONSEIL | F16: pH actuel | G16: pH conseillé à la rotation | H16: pH souhaité | I16: Besoins en CaO (kg/ha) | J16: Apport réalisé | K16: Type d'amendement | L16: Quantité (kg/ha) | M16: Vitesse d'action | N16: Commentaires | U16: Qté MgO (kg/ha)
B17: 1 | D17: 6 | E17: =IF(D17=1, "", INDEX(Feuil1!$B$19:$G$26,Feuil1!E1,Feuil1!$E$12)) -> Impasse | F17: =D6 -> 6.4 | G17: =IF(D17=1, "", INDEX(Feuil1!$A$54:$B$61,D17,2)) -> 6 | I17: =IF(D17=1,"",INDEX($C$44:$L$49,I33,B17)) -> 0 | J17: FALSE | K17: 1 | L17: =IF(J17=FALSE, "", I17/((INDEX(BDD_Chaulage!$B$11:$F$24,K17,4)/100))) ->  | M17: =IF(J17=FALSE, "", INDEX(BDD_Chaulage!$B$11:$F$24,K17,5)) ->  | N17: =IF(E17="", "", IF(G33>0.5, "Augmentation > 0.5 point", "")) ->  | T17: =IF(J17=TRUE, 1, 0) -> 0 | U17: =IF(K17=1,0, L17*INDEX(BDD_Chaulage!$C$11:$D$24,K17,2)/100) -> 0
B18: 2 | D18: 1 | E18: =IF(D18=1, "", INDEX(Feuil1!$B$19:$G$26,Feuil1!E2,Feuil1!$E$12)) ->  | G18: =IF(D18=1, "", INDEX(Feuil1!$A$54:$B$61,D18,2)) ->  | I18: =IF(F18="","",INDEX($C$44:$L$49,I34,B18)) ->  | J18: FALSE | K18: 1 | L18: =IF(J18=FALSE, "", I18/((INDEX(BDD_Chaulage!$B$11:$F$24,K18,4)/100))) ->  | M18: =IF(J18=FALSE, "", INDEX(BDD_Chaulage!$B$11:$F$24,K18,5)) ->  | N18: =IF(F18="", "", IF(G34>0.5, "Augmentation > 0.5 point", "")) ->  | U18: =IF(K18=1,0, L18*INDEX(BDD_Chaulage!$C$11:$D$24,K18,2)/100) -> 0
B19: 3 | D19: 1 | E19: =IF(D19=1, "", INDEX(Feuil1!$B$19:$G$26,Feuil1!E3,Feuil1!$E$12)) ->  | G19: =IF(D19=1, "", INDEX(Feuil1!$A$54:$B$61,D19,2)) ->  | I19: =IF(F19="","",INDEX($C$44:$L$49,I35,B19)) ->  | J19: FALSE | K19: 1 | L19: =IF(J19=FALSE, "", I19/((INDEX(BDD_Chaulage!$B$11:$F$24,K19,4)/100))) ->  | M19: =IF(J19=FALSE, "", INDEX(BDD_Chaulage!$B$11:$F$24,K19,5)) ->  | U19: =IF(K19=1,0, L19*INDEX(BDD_Chaulage!$C$11:$D$24,K19,2)/100) -> 0
B20: 4 | D20: 1 | E20: =IF(D20=1, "", INDEX(Feuil1!$B$19:$G$26,Feuil1!E4,Feuil1!$E$12)) ->  | G20: =IF(D20=1, "", INDEX(Feuil1!$A$54:$B$61,D20,2)) ->  | I20: =IF(F20="","",INDEX($C$44:$L$49,I36,B20)) ->  | J20: FALSE | K20: 1 | L20: =IF(J20=FALSE, "", I20/((INDEX(BDD_Chaulage!$B$11:$F$24,K20,4)/100))) ->  | M20: =IF(J20=FALSE, "", INDEX(BDD_Chaulage!$B$11:$F$24,K20,5)) ->  | U20: =IF(K20=1,0, L20*INDEX(BDD_Chaulage!$C$11:$D$24,K20,2)/100) -> 0
B21: 5 | D21: 1 | E21: =IF(D21=1, "", INDEX(Feuil1!$B$19:$G$26,Feuil1!E5,Feuil1!$E$12)) ->  | G21: =IF(D21=1, "", INDEX(Feuil1!$A$54:$B$61,D21,2)) ->  | I21: =IF(F21="","",INDEX($C$44:$L$49,I37,B21)) ->  | J21: FALSE | K21: 1 | L21: =IF(J21=FALSE, "", I21/((INDEX(BDD_Chaulage!$B$11:$F$24,K21,4)/100))) ->  | M21: =IF(J21=FALSE, "", INDEX(BDD_Chaulage!$B$11:$F$24,K21,5)) ->  | U21: =IF(K21=1,0, L21*INDEX(BDD_Chaulage!$C$11:$D$24,K21,2)/100) -> 0
B22: 6 | D22: 1 | E22: =IF(D22=1, "", INDEX(Feuil1!$B$19:$G$26,Feuil1!E6,Feuil1!$E$12)) ->  | G22: =IF(D22=1, "", INDEX(Feuil1!$A$54:$B$61,D22,2)) ->  | I22: =IF(F22="","",INDEX($C$44:$L$49,I38,B22)) ->  | K22: 1 | L22: =IF(J22=FALSE, "", I22/((INDEX(BDD_Chaulage!$B$11:$F$24,K22,4)/100))) ->  | M22: =IF(J22=FALSE, "", INDEX(BDD_Chaulage!$B$11:$F$24,K22,5)) ->  | U22: =IF(K22=1,0, L22*INDEX(BDD_Chaulage!$C$11:$D$24,K22,2)/100) -> 0
B23: 7 | D23: 1 | E23: =IF(D23=1, "", INDEX(Feuil1!$B$19:$G$26,Feuil1!E7,Feuil1!$E$12)) ->  | G23: =IF(D23=1, "", INDEX(Feuil1!$A$54:$B$61,D23,2)) ->  | I23: =IF(F23="","",INDEX($C$44:$L$49,I39,B23)) ->  | J23: FALSE | K23: 1 | L23: =IF(J23=FALSE, "", I23/((INDEX(BDD_Chaulage!$B$11:$F$24,K23,4)/100))) ->  | M23: =IF(J23=FALSE, "", INDEX(BDD_Chaulage!$B$11:$F$24,K23,5)) ->  | U23: =IF(K23=1,0, L23*INDEX(BDD_Chaulage!$C$11:$D$24,K23,2)/100) -> 0
B24: 8 | D24: 1 | E24: =IF(D24=1, "", INDEX(Feuil1!$B$19:$G$26,Feuil1!E8,Feuil1!$E$12)) ->  | G24: =IF(D24=1, "", INDEX(Feuil1!$A$54:$B$61,D24,2)) ->  | I24: =IF(F24="","",INDEX($C$44:$L$49,I40,B24)) ->  | K24: 1 | L24: =IF(F24=FALSE, "", I24/((INDEX(BDD_Chaulage!$B$11:$F$24,K24,4)/100))) ->  | M24: =IF(J24=FALSE, "", INDEX(BDD_Chaulage!$B$11:$F$24,K24,5)) ->  | U24: =IF(K24=1,0, L24*INDEX(BDD_Chaulage!$C$11:$D$24,K24,2)/100) -> 0
B25: 9 | D25: 1 | E25: =IF(D25=1, "", INDEX(Feuil1!$B$19:$G$26,Feuil1!E9,Feuil1!$E$12)) ->  | G25: =IF(D25=1, "", INDEX(Feuil1!$A$54:$B$61,D25,2)) ->  | I25: =IF(F25="","",INDEX($C$44:$L$49,I41,B25)) ->  | K25: 1 | L25: =IF(J25=FALSE, "", I25/((INDEX(BDD_Chaulage!$B$11:$F$24,K25,4)/100))) ->  | M25: =IF(J25=FALSE, "", INDEX(BDD_Chaulage!$B$11:$F$24,K25,5)) ->  | U25: =IF(K25=1,0, L25*INDEX(BDD_Chaulage!$C$11:$D$24,K25,2)/100) -> 0
B26: 10 | D26: 1 | E26: =IF(D26=1, "", INDEX(Feuil1!$B$19:$G$26,Feuil1!E10,Feuil1!$E$12)) ->  | G26: =IF(D26=1, "", INDEX(Feuil1!$A$54:$B$61,D26,2)) ->  | I26: =IF(F26="","",INDEX($C$44:$L$49,I42,B26)) ->  | J26: FALSE | K26: 1 | L26: =IF(J26=FALSE, "", I26/((INDEX(BDD_Chaulage!$B$11:$F$24,K26,4)/100))) ->  | M26: =IF(J26=FALSE, "", INDEX(BDD_Chaulage!$B$11:$F$24,K26,5)) ->  | U26: =IF(K26=1,0, L26*INDEX(BDD_Chaulage!$C$11:$D$24,K26,2)/100) -> 0
T27: Somme | U27: =SUM(U17:U26) -> 0
F33: Ecart | G33: =IF(E17="", "", IF(H17="", G17-F17, H17-F17)) -> -0.4 | I33: =IF(F17>=6.5, 6, IF(E17="", "", IF(E17=$C$35, 1, IF(E17=$C$36, 2, IF(F17<5.5, 3, IF('Chaulage (2)'!F17<6, 4, IF(F17<6.5, 5, 6))))))) -> 1
G34: =IF(E18="", "", IF(H18="", G18-F18, H18-F18)) ->  | I34: =IF(F18>=6.5, 6, IF(E18="", "", IF(E18=$C$35, 1, IF(E18=$C$36, 2, IF(F18<5.5, 3, IF('Chaulage (2)'!F18<6, 4, IF(F18<6.5, 5, 6))))))) -> 
C35: Impasse | I35: =IF(F19>=6.5, 6, IF(E19="", "", IF(E19=$C$35, 1, IF(E19=$C$36, 2, IF(F19<5.5, 3, IF('Chaulage (2)'!F19<6, 4, IF(F19<6.5, 5, 6))))))) -> 
C36: Entretien | I36: =IF(F20>=6.5, 6, IF(E20="", "", IF(E20=$C$35, 1, IF(E20=$C$36, 2, IF(F20<5.5, 3, IF('Chaulage (2)'!F20<6, 4, IF(F20<6.5, 5, 6))))))) -> 
C37: Redressement | I37: =IF(F21>=6.5, 6, IF(E21="", "", IF(E21=$C$35, 1, IF(E21=$C$36, 2, IF(F21<5.5, 3, IF('Chaulage (2)'!F21<6, 4, IF(F21<6.5, 5, 6))))))) -> 
I38: =IF(F22>=6.5, 6, IF(E22="", "", IF(E22=$C$35, 1, IF(E22=$C$36, 2, IF(F22<5.5, 3, IF('Chaulage (2)'!F22<6, 4, IF(F22<6.5, 5, 6))))))) -> 
I39: =IF(F23>=6.5, 6, IF(E23="", "", IF(E23=$C$35, 1, IF(E23=$C$36, 2, IF(F23<5.5, 3, IF('Chaulage (2)'!F23<6, 4, IF(F23<6.5, 5, 6))))))) -> 
I40: =IF(F24>=6.5, 6, IF(E24="", "", IF(E24=$C$35, 1, IF(E24=$C$36, 2, IF(F24<5.5, 3, IF('Chaulage (2)'!F24<6, 4, IF(F24<6.5, 5, 6))))))) -> 
I41: =IF(F25>=6.5, 6, IF(E25="", "", IF(E25=$C$35, 1, IF(E25=$C$36, 2, IF(F25<5.5, 3, IF('Chaulage (2)'!F25<6, 4, IF(F25<6.5, 5, 6))))))) -> 
I42: =IF(F26>=6.5, 6, IF(E26="", "", IF(E26=$C$35, 1, IF(E26=$C$36, 2, IF(F26<5.5, 3, IF('Chaulage (2)'!F26<6, 4, IF(F26<6.5, 5, 6))))))) -> 
C43: 1 | D43: 2 | E43: 3 | F43: 4 | G43: 5 | H43: 6 | I43: 7 | J43: 8 | K43: 9 | L43: 10
B44: 1 | C44: 0 | D44: 0 | E44: 0 | F44: 0 | G44: 0 | H44: 0 | I44: 0 | J44: 0 | K44: 0 | L44: 0
B45: 2 | C45: =(20*Saisie!$L$8)+200 -> 200 | D45: =(20*Saisie!$L$8)+200 -> 200 | E45: =(20*Saisie!$L$8)+200 -> 200 | F45: =(20*Saisie!$L$8)+200 -> 200 | G45: =(20*Saisie!$L$8)+200 -> 200 | H45: =(20*Saisie!$L$8)+200 -> 200 | I45: =(20*Saisie!$L$8)+200 -> 200 | J45: =(20*Saisie!$L$8)+200 -> 200 | K45: =(20*Saisie!$L$8)+200 -> 200 | L45: =(20*Saisie!$L$8)+200 -> 200
B46: 3 | C46: =(12*($G$33*10)*Saisie!$L$8)+400 -> 400 | D46: =(12*($G$34*10)*Saisie!$L$8)+400 ->  | E46: =(12*($G$35*10)*Saisie!$L$8)+400 ->  | F46: =(12*($G$36*10)*Saisie!$L$8)+400 ->  | G46: =(12*($G$37*10)*Saisie!$L$8)+400 ->  | H46: =(12*($G$38*10)*Saisie!$L$8)+400 ->  | I46: =(12*($G$39*10)*Saisie!$L$8)+400 ->  | J46: =(12*($G$40*10)*Saisie!$L$8)+400 ->  | K46: =(12*($G$41*10)*Saisie!$L$8)+400 ->  | L46: =(12*($G$42*10)*Saisie!$L$8)+400 -> 
B47: 4 | C47: =(16*($G$33*10)*Saisie!$L$8)+500 -> 500 | D47: =(16*($G$34*10)*Saisie!$L$8)+500 ->  | E47: =(16*($G$35*10)*Saisie!$L$8)+500 ->  | F47: =(16*($G$36*10)*Saisie!$L$8)+500 ->  | G47: =(16*($G$37*10)*Saisie!$L$8)+500 ->  | H47: =(16*($G$38*10)*Saisie!$L$8)+500 ->  | I47: =(16*($G$39*10)*Saisie!$L$8)+500 ->  | J47: =(16*($G$40*10)*Saisie!$L$8)+500 ->  | K47: =(16*($G$41*10)*Saisie!$L$8)+500 ->  | L47: =(16*($G$42*10)*Saisie!$L$8)+500 -> 
B48: 5 | C48: =(20*($G$33*10)*Saisie!$L$8)+600 -> 600 | D48: =(20*($G$34*10)*Saisie!$L$8)+600 ->  | E48: =(20*($G$35*10)*Saisie!$L$8)+600 ->  | F48: =(20*($G$36*10)*Saisie!$L$8)+600 ->  | G48: =(20*($G$37*10)*Saisie!$L$8)+600 ->  | H48: =(20*($G$38*10)*Saisie!$L$8)+600 ->  | I48: =(20*($G$39*10)*Saisie!$L$8)+600 ->  | J48: =(20*($G$40*10)*Saisie!$L$8)+600 ->  | K48: =(20*($G$41*10)*Saisie!$L$8)+600 ->  | L48: =(20*($G$42*10)*Saisie!$L$8)+600 -> 
B49: 6 | C49: =(24*($G$33*10)*Saisie!$L$8)+700 -> 700 | D49: =(24*($G$34*10)*Saisie!$L$8)+700 ->  | E49: =(24*($G$35*10)*Saisie!$L$8)+700 ->  | F49: =(24*($G$36*10)*Saisie!$L$8)+700 ->  | G49: =(24*($G$37*10)*Saisie!$L$8)+700 ->  | H49: =(24*($G$38*10)*Saisie!$L$8)+700 ->  | I49: =(24*($G$39*10)*Saisie!$L$8)+700 ->  | J49: =(24*($G$40*10)*Saisie!$L$8)+700 ->  | K49: =(24*($G$41*10)*Saisie!$L$8)+700 ->  | L49: =(24*($G$42*10)*Saisie!$L$8)+700 -> 

Sheet BDD_Chaulage
B3: LES AMENDEMENTS CALCIQUES ET MAGNESIENS
B10: Type de produit | C10: % CaO | D10: %MgO | E10: VN % | F10: Vitesse d'action
B12: Amendement sidérurgique | C12: 41 | D12: 4 | E12: =C12+(1.4*D12) -> 46.6 | F12: Rapide
B13: Calcaire broyé | C13: 53 | D13: 2 | E13: 55.8 | F13: Moyenne
B14: Calcaire pulvérisé | C14: 53 | D14: 2 | E14: 55.8 | F14: Rapide
B15: Chaux magnésienne | C15: 49 | D15: 31 | E15: 92.4 | F15: Rapide
B16: Chaux vive | C16: 92 | D16: 0 | E16: 92 | F16: Rapide
B17: Dolomie broyée | C17: 33 | D17: 19 | E17: 59.6 | F17: Lente
B18: Dolomie pulvérisée | C18: 33 | D18: 19 | E18: 59.6 | F18: Moyenne
B19: Marne Blanche ou Carbonate de Calcium | C19: 51.1 | D19: 0.4 | E19: 51.66 | F19: Lente
B20: Scories Thomas | C20: 41 | D20: 3 | E20: 45.2 | F20: Rapide
E21: 0
E22: 0
E23: 0
E24: 0

Sheet PK
I3: Situation de votre parcelle
I4: 1 | X4: Code
C5: =Saisie!K20 -> P2O5 (mg/kg) | D5: =Saisie!N20 -> 0 | E5: 2 | G5: Région | H5: 3 | I5: Phosphore | J5: =IF($E$63=1, "X", " ") ->  | K5: =IF($E$63=2, "X", " ") ->  | L5: =IF($E$63=3, "X", " ") ->  | M5: =IF($E$63=4, "X", " ") ->  | N5: =IF($E$63=5, "X", " ") ->  | O5: =IF($E$63=6, "X", " ") ->  | P5: =IF($E$63=7, "X", " ") ->  | U5: =U6-1 -> 2 | V5: Concatener | W5: =CONCATENATE(U5,U7) -> 21 | X5: =VLOOKUP(W6, BDD_Phosphore!K4:L90, 2) -> 5
C6: =Saisie!K21 -> K2O (mg/kg) | D6: =Saisie!N21 -> 0 | I6: Potasse | J6: =IF($E$64=1, "X", " ") ->  | K6: =IF($E$64=2, "X", " ") ->  | L6: =IF($E$64=3, "X", " ") ->  | M6: =IF($E$64=4, "X", " ") ->  | N6: =IF($E$64=5, "X", " ") ->  | O6: =IF($E$64=6, "X", " ") ->  | P6: =IF($E$64=7, "X", " ") ->  | U6: =H5 -> 3 | V6: Region | W6: =INDEX(U11:V172,W5,2) -> 21
G7: Type de sol | H7: 1 | U7: =H7 -> 1 | V7: Type sol
C9: CULTURES | D9: 1 | E9: 1 | F9: 1 | G9: 1 | H9: 1
C10: Objectif de rendement (q - cultures ou t/ha -fourrage)
C11: P2O5 | D11: =IF(D9=1, "", INDEX(Feuil9!$A$9:$G$48,D9,6)) ->  | E11: =IF(E9=1, "", INDEX(Feuil9!$A$9:$G$48,E9,6)) ->  | F11: =IF(F9=1, "", INDEX(Feuil9!$A$9:$G$48,F9,6)) ->  | G11: =IF(G9=1, "", INDEX(Feuil9!$A$9:$G$48,G9,6)) ->  | H11: =IF(H9=1, "", INDEX(Feuil9!$A$9:$G$48,H9,6)) ->  | U11: 1 | V11: 1
C12: K2O | D12: =IF(D9=1, "", INDEX(Feuil9!$A$9:$G$48,D9,7)) ->  | E12: =IF(E9=1, "", INDEX(Feuil9!$A$9:$G$48,E9,7)) ->  | F12: =IF(F9=1, "", INDEX(Feuil9!$A$9:$G$48,F9,7)) ->  | G12: =IF(G9=1, "", INDEX(Feuil9!$A$9:$G$48,G9,7)) ->  | H12: =IF(H9=1, "", INDEX(Feuil9!$A$9:$G$48,H9,7)) ->  | U12: 2 | V12: 2
C13: Devenir des résidus | D13: 2 | E13: 1 | F13: 2 | G13: 1 | H13: 1 | U13: 3 | V13: 3
C14: Rendement paille (t/ha) | U14: 4 | V14: 4
C15: Nombre d'années sans apport | D15: 1 | E15: 1 | F15: 1 | G15: 1 | H15: 1 | U15: 5 | V15: 5
C16: P2O5 | D16: =IF(D9=1, 0, IF(D13=1, (D27*D38), (D27*D38)+D29)) -> 0 | E16: =IF(E9=1, 0, IF(D13=1, (E27*E38), (E27*E38)+D28)) -> 0 | F16: =IF(F9=1, 0, IF(E13=1, (F27*F38), (F27*F38)+E29)) -> 0 | G16: =IF(G9=1, 0, IF(F13=1, (G27*G38), (G27*G38)+F29)) -> 0 | H16: =IF(H9=1,0, IF(G13=1, (H27*H38), (H27*H38)+G29)) -> 0 | U16: 6 | V16: 6
C17: K2O | D17: =IF(D9=1, 0, IF(D13=1, (D53*D52), (D53*D52)+D55)) -> 0 | E17: =IF(E9=1, 0, IF(D13=1, (E53*E52), (E53*E52)+D55)) -> 0 | F17: =IF(F9=1, 0, IF(E13=1, (F53*F52), (F53*F52)+E55)) -> 0 | G17: =IF(G9=1, 0, IF(F13=1, (G53*G52), (G53*G52)+F55)) -> 0 | H17: =IF(H9=1, 0, IF(G13=1, (H53*H52), (H53*H52)+G55)) -> 0 | U17: 7 | V17: 7
C18: PLAN D'UTILISATION DES ENGRAIS MINERAUX OU ORGANIQUES (en t/ha) | T18: =IF(J18=TRUE, 1, 0) -> 0 | U18: 8 | V18: 8
C19: 3 | U19: 9 | V19: 9
C20: 25 | U20: 10 | V20: 10
C21: 24 | U21: 11 | V21: 11
C22: 1 | U22: 12 | V22: 12
C23: 1 | I23: TRUE | M23: FALSE | U23: 13 | V23: 13
U24: 14 | V24: 14
U25: 15 | V25: 15
C26: Phosphore | U26: 16 | V26: 16
C27: Exportation grain | D27: =D10*INDEX(Feuil9!$A$9:$E$48,D9,2) -> 0 | E27: =E10*INDEX(Feuil9!$A$9:$E$48,E9,2) -> 0 | F27: =F10*INDEX(Feuil9!$A$9:$E$48,F9,2) -> 0 | G27: =G10*INDEX(Feuil9!$A$9:$E$48,G9,2) -> 0 | H27: =H10*INDEX(Feuil9!$A$9:$E$48,H9,2) -> 0 | U27: 17 | V27: 17
C28: Exportation paille | D28: =D14*INDEX(Feuil9!$A$9:$E$48,D9,3) -> 0 | E28: =E14*INDEX(Feuil9!$A$9:$E$48,E9,3) -> 0 | F28: =F14*INDEX(Feuil9!$A$9:$E$48,F9,3) -> 0 | G28: =G14*INDEX(Feuil9!$A$9:$E$48,G9,3) -> 0 | H28: =H14*INDEX(Feuil9!$A$9:$E$48,H9,3) -> 0 | U28: 18 | V28: 18
C29: Export paille corrigé | D29: =IF($D$5<D33, D28, 0) -> 0 | E29: =IF($D$5<E33, E28, 0) -> 0 | F29: =IF($D$5<F33, F28, 0) -> 0 | G29: =IF($D$5<G33, G28, 0) -> 0 | H29: =IF($D$5<H33, H28, 0) -> 0 | U29: 19 | V29: 19
C30: Classe seuil | D30: =IF(D11="", "", IF(D11="Peu exigeante", 3, IF(D11="Moyennement exigeante", 2, 1))) ->  | E30: =IF(E11="", "", IF(E11="Peu exigeante", 3, IF(E11="Moyennement exigeante", 2, 1))) ->  | F30: =IF(F11="", "", IF(F11="Peu exigeante", 3, IF(F11="Moyennement exigeante", 2, 1))) ->  | G30: =IF(G11="", "", IF(G11="Peu exigeante", 3, IF(G11="Moyennement exigeante", 2, 1))) ->  | H30: =IF(H11="", "", IF(H11="Peu exigeante", 3, IF(H11="Moyennement exigeante", 2, 1))) ->  | U30: 20 | V30: 20
C31: T renf | D31: =IF(D30="", "", IF(D30=1, INDEX(BDD_Phosphore!$D$4:$I$90,$X$5,1), IF(D30=2, INDEX(BDD_Phosphore!$D$4:$I$90,$X$5,3), IF(D30=3, INDEX(BDD_Phosphore!$D$4:$I$90,$X$5,5))))) ->  | E31: =IF(E30="", "", IF(E30=1, INDEX(BDD_Phosphore!$D$4:$I$90,$X$5,1), IF(E30=2, INDEX(BDD_Phosphore!$D$4:$I$90,$X$5,3), IF(E30=3, INDEX(BDD_Phosphore!$D$4:$I$90,$X$5,5))))) ->  | F31: =IF(F30="", "", IF(F30=1, INDEX(BDD_Phosphore!$D$4:$I$90,$X$5,1), IF(F30=2, INDEX(BDD_Phosphore!$D$4:$I$90,$X$5,3), IF(F30=3, INDEX(BDD_Phosphore!$D$4:$I$90,$X$5,5))))) ->  | G31: =IF(G30="", "", IF(G30=1, INDEX(BDD_Phosphore!$D$4:$I$90,$X$5,1), IF(G30=2, INDEX(BDD_Phosphore!$D$4:$I$90,$X$5,3), IF(G30=3, INDEX(BDD_Phosphore!$D$4:$I$90,$X$5,5))))) ->  | H31: =IF(H30="", "", IF(H30=1, INDEX(BDD_Phosphore!$D$4:$I$90,$X$5,1), IF(H30=2, INDEX(BDD_Phosphore!$D$4:$I$90,$X$5,3), IF(H30=3, INDEX(BDD_Phosphore!$D$4:$I$90,$X$5,5))))) ->  | U31: 21 | V31: 21
C32: T Imp -10% | D32: =IF(D33="", "", D33-(D33*10%)) ->  | E32: =IF(E33="", "", E33-(E33*10%)) ->  | F32: =IF(F33="", "", F33-(F33*10%)) ->  | G32: =IF(G33="", "", G33-(G33*10%)) ->  | H32: =IF(H33="", "", H33-(H33*10%)) ->  | U32: 22 | V32: 22
C33: T imp | D33: =IF(D30="", "", IF(D30=1, INDEX(BDD_Phosphore!$D$4:$I$90,$X$5,2), IF(D30=2, INDEX(BDD_Phosphore!$D$4:$I$90,$X$5,4), IF(D30=3, INDEX(BDD_Phosphore!$D$4:$I$90,$X$5,6))))) ->  | E33: =IF(E30="", "", IF(E30=1, INDEX(BDD_Phosphore!$D$4:$I$90,$X$5,2), IF(E30=2, INDEX(BDD_Phosphore!$D$4:$I$90,$X$5,4), IF(E30=3, INDEX(BDD_Phosphore!$D$4:$I$90,$X$5,6))))) ->  | F33: =IF(F30="", "", IF(F30=1, INDEX(BDD_Phosphore!$D$4:$I$90,$X$5,2), IF(F30=2, INDEX(BDD_Phosphore!$D$4:$I$90,$X$5,4), IF(F30=3, INDEX(BDD_Phosphore!$D$4:$I$90,$X$5,6))))) ->  | G33: =IF(G30="", "", IF(G30=1, INDEX(BDD_Phosphore!$D$4:$I$90,$X$5,2), IF(G30=2, INDEX(BDD_Phosphore!$D$4:$I$90,$X$5,4), IF(G30=3, INDEX(BDD_Phosphore!$D$4:$I$90,$X$5,6))))) ->  | H33: =IF(H30="", "", IF(H30=1, INDEX(BDD_Phosphore!$D$4:$I$90,$X$5,2), IF(H30=2, INDEX(BDD_Phosphore!$D$4:$I$90,$X$5,4), IF(H30=3, INDEX(BDD_Phosphore!$D$4:$I$90,$X$5,6))))) ->  | U33: 23 | V33: 23
C34: T imp +10% | D34: =IF(D33="","",D33+(D33*10%)) ->  | E34: =IF(E33="","",E33+(E33*10%)) ->  | F34: =IF(F33="","",F33+(F33*10%)) ->  | G34: =IF(G33="","",G33+(G33*10%)) ->  | H34: =IF(H33="","",H33+(H33*10%)) ->  | U34: 24 | V34: 24
C35: T imp x2 | D35: =IF(D33="", "", D33*2) ->  | E35: =IF(E33="", "", E33*2) ->  | F35: =IF(F33="", "", F33*2) ->  | G35: =IF(G33="", "", G33*2) ->  | H35: =IF(H33="", "", H33*2) ->  | U35: 25 | V35: 25
C36: T imp x3 | D36: =IF(D33="", "", D33*3) ->  | E36: =IF(E33="", "", E33*3) ->  | F36: =IF(F33="", "", F33*3) ->  | G36: =IF(G33="", "", G33*3) ->  | H36: =IF(H33="", "", H33*3) ->  | U36: 26 | V36: 26
C37: Classe seuil tableau | D37: =IF(D30="", "", IF($D$5<D31, 1, IF($D$5<D32, 2, IF($D$5<D33, 3, IF($D$5<D34, 4, IF($D$5<D35, 5, IF($D$5<D36, 6, IF($D$5>D36, 7, "")))))))) ->  | E37: =IF(E30="", "", IF($D$5<E31, 1, IF($D$5<E32, 2, IF($D$5<E33, 3, IF($D$5<E34, 4, IF($D$5<E35, 5, IF($D$5<E36, 6, IF($D$5>E36, 7, "")))))))) ->  | F37: =IF(F30="", "", IF($D$5<F31, 1, IF($D$5<F32, 2, IF($D$5<F33, 3, IF($D$5<F34, 4, IF($D$5<F35, 5, IF($D$5<F36, 6, IF($D$5>F36, 7, "")))))))) ->  | G37: =IF(G30="", "", IF($D$5<G31, 1, IF($D$5<G32, 2, IF($D$5<G33, 3, IF($D$5<G34, 4, IF($D$5<G35, 5, IF($D$5<G36, 6, IF($D$5>G36, 7, "")))))))) ->  | H37: =IF(H30="", "", IF($D$5<H31, 1, IF($D$5<H32, 2, IF($D$5<H33, 3, IF($D$5<H34, 4, IF($D$5<H35, 5, IF($D$5<H36, 6, IF($D$5>H36, 7, "")))))))) ->  | U37: 27 | V37: 27
C38: Coeff | D38: =IF(D30="", "", IF(D11="Très exigeante", INDEX(Calcul_Seuils_PK!$C$8:$I$10,D15,D37), IF(D11="Moyennement exigeante", INDEX(Calcul_Seuils_PK!$C$11:$I$13,D15,D37), INDEX(Calcul_Seuils_PK!$C$14:$I$16,D15,D37)))) ->  | E38: =IF(E30="", "", IF(E11="Très exigeante", INDEX(Calcul_Seuils_PK!$C$8:$I$10,E15,E37), IF(E11="Moyennement exigeante", INDEX(Calcul_Seuils_PK!$C$11:$I$13,E15,E37), INDEX(Calcul_Seuils_PK!$C$14:$I$16,E15,E37)))) ->  | F38: =IF(F30="", "", IF(F11="Très exigeante", INDEX(Calcul_Seuils_PK!$C$8:$I$10,F15,F37), IF(F11="Moyennement exigeante", INDEX(Calcul_Seuils_PK!$C$11:$I$13,F15,F37), INDEX(Calcul_Seuils_PK!$C$14:$I$16,F15,F37)))) ->  | G38: =IF(G30="", "", IF(G11="Très exigeante", INDEX(Calcul_Seuils_PK!$C$8:$I$10,G15,G37), IF(G11="Moyennement exigeante", INDEX(Calcul_Seuils_PK!$C$11:$I$13,G15,G37), INDEX(Calcul_Seuils_PK!$C$14:$I$16,G15,G37)))) ->  | H38: =IF(H30="", "", IF(H11="Très exigeante", INDEX(Calcul_Seuils_PK!$C$8:$I$10,H15,H37), IF(H11="Moyennement exigeante", INDEX(Calcul_Seuils_PK!$C$11:$I$13,H15,H37), INDEX(Calcul_Seuils_PK!$C$14:$I$16,H15,H37)))) ->  | U38: 28 | V38: 28
U39: 29 | V39: 29
U40: 30 | V40: 30
U41: 31 | V41: 31
U42: 32 | V42: 32
C43: Potasse | U43: 33 | V43: 33
C44: Classe seuil | D44: =IF(D12="", "", IF(D12="Peu exigeante", 3, IF(D12="Moyennement exigeante", 2, 1))) ->  | E44: =IF(E12="", "", IF(E12="Peu exigeante", 3, IF(E12="Moyennement exigeante", 2, 1))) ->  | F44: =IF(F12="", "", IF(F12="Peu exigeante", 3, IF(F12="Moyennement exigeante", 2, 1))) ->  | G44: =IF(G12="", "", IF(G12="Peu exigeante", 3, IF(G12="Moyennement exigeante", 2, 1))) ->  | H44: =IF(H12="", "", IF(H12="Peu exigeante", 3, IF(H12="Moyennement exigeante", 2, 1))) ->  | U44: 34 | V44: 34
C45: T renf | D45: =IF(D44="", "", IF(D44=1, INDEX(BDD_Potasse!$D$4:$I$90,$X$5,1), IF(D44=2, INDEX(BDD_Potasse!$D$4:$I$90,$X$5,3), IF(D44=3, INDEX(BDD_Potasse!$D$4:$I$90,$X$5,5))))) ->  | E45: =IF(E44="", "", IF(E44=1, INDEX(BDD_Potasse!$D$4:$I$90,$X$5,1), IF(E44=2, INDEX(BDD_Potasse!$D$4:$I$90,$X$5,3), IF(E44=3, INDEX(BDD_Potasse!$D$4:$I$90,$X$5,5))))) ->  | F45: =IF(F44="", "", IF(F44=1, INDEX(BDD_Potasse!$D$4:$I$90,$X$5,1), IF(F44=2, INDEX(BDD_Potasse!$D$4:$I$90,$X$5,3), IF(F44=3, INDEX(BDD_Potasse!$D$4:$I$90,$X$5,5))))) ->  | G45: =IF(G44="", "", IF(G44=1, INDEX(BDD_Potasse!$D$4:$I$90,$X$5,1), IF(G44=2, INDEX(BDD_Potasse!$D$4:$I$90,$X$5,3), IF(G44=3, INDEX(BDD_Potasse!$D$4:$I$90,$X$5,5))))) ->  | H45: =IF(H44="", "", IF(H44=1, INDEX(BDD_Potasse!$D$4:$I$90,$X$5,1), IF(H44=2, INDEX(BDD_Potasse!$D$4:$I$90,$X$5,3), IF(H44=3, INDEX(BDD_Potasse!$D$4:$I$90,$X$5,5))))) ->  | U45: 35 | V45: 35
C46: T Imp -10% | D46: =IF(D47="", "", D47-(D47*10%)) ->  | E46: =IF(E47="", "", E47-(E47*10%)) ->  | F46: =IF(F47="", "", F47-(F47*10%)) ->  | G46: =IF(G47="", "", G47-(G47*10%)) ->  | H46: =IF(H47="", "", H47-(H47*10%)) ->  | U46: 36 | V46: 36
C47: T imp | D47: =IF(D44="", "", IF(D44=1, INDEX(BDD_Potasse!$D$4:$J$90,$X$5,2), IF(D44=2, INDEX(BDD_Potasse!$D$4:$J$90,$X$5,4), IF(D44=3, INDEX(BDD_Potasse!$D$4:$J$90,$X$5,6))))) ->  | E47: =IF(E44="", "", IF(E44=1, INDEX(BDD_Potasse!$D$4:$J$90,$X$5,2), IF(E44=2, INDEX(BDD_Potasse!$D$4:$J$90,$X$5,4), IF(E44=3, INDEX(BDD_Potasse!$D$4:$J$90,$X$5,6))))) ->  | F47: =IF(F44="", "", IF(F44=1, INDEX(BDD_Potasse!$D$4:$J$90,$X$5,2), IF(F44=2, INDEX(BDD_Potasse!$D$4:$J$90,$X$5,4), IF(F44=3, INDEX(BDD_Potasse!$D$4:$J$90,$X$5,6))))) ->  | G47: =IF(G44="", "", IF(G44=1, INDEX(BDD_Potasse!$D$4:$J$90,$X$5,2), IF(G44=2, INDEX(BDD_Potasse!$D$4:$J$90,$X$5,4), IF(G44=3, INDEX(BDD_Potasse!$D$4:$J$90,$X$5,6))))) ->  | H47: =IF(H44="", "", IF(H44=1, INDEX(BDD_Potasse!$D$4:$J$90,$X$5,2), IF(H44=2, INDEX(BDD_Potasse!$D$4:$J$90,$X$5,4), IF(H44=3, INDEX(BDD_Potasse!$D$4:$J$90,$X$5,6))))) ->  | U47: 37 | V47: 37
C48: T imp +10% | D48: =IF(D47="","",D47+(D47*10%)) ->  | E48: =IF(E47="","",E47+(E47*10%)) ->  | F48: =IF(F47="","",F47+(F47*10%)) ->  | G48: =IF(G47="","",G47+(G47*10%)) ->  | H48: =IF(H47="","",H47+(H47*10%)) ->  | U48: 38 | V48: 38
C49: T imp x2 | D49: =IF(D47="", "", D47*2) ->  | E49: =IF(E47="", "", E47*2) ->  | F49: =IF(F47="", "", F47*2) ->  | G49: =IF(G47="", "", G47*2) ->  | H49: =IF(H47="", "", H47*2) ->  | U49: 39 | V49: 39
C50: T imp x3 | D50: =IF(D47="", "", D47*3) ->  | E50: =IF(E47="", "", E47*3) ->  | F50: =IF(F47="", "", F47*3) ->  | G50: =IF(G47="", "", G47*3) ->  | H50: =IF(H47="", "", H47*3) ->  | U50: 40 | V50: 40
C51: Classe seuil tableau | D51: =IF(D44="", "", IF($D$6<D45, 1, IF($D$6<D46, 2, IF($D$6<D47, 3, IF($D$6<D48, 4, IF($D$6<D49, 5, IF($D$6<D50, 6, IF($D$6>D50, 7, "")))))))) ->  | E51: =IF(E44="", "", IF($D$6<E45, 1, IF($D$6<E46, 2, IF($D$6<E47, 3, IF($D$6<E48, 4, IF($D$6<E49, 5, IF($D$6<E50, 6, IF($D$6>E50, 7, "")))))))) ->  | F51: =IF(F44="", "", IF($D$6<F45, 1, IF($D$6<F46, 2, IF($D$6<F47, 3, IF($D$6<F48, 4, IF($D$6<F49, 5, IF($D$6<F50, 6, IF($D$6>F50, 7, "")))))))) ->  | G51: =IF(G44="", "", IF($D$6<G45, 1, IF($D$6<G46, 2, IF($D$6<G47, 3, IF($D$6<G48, 4, IF($D$6<G49, 5, IF($D$6<G50, 6, IF($D$6>G50, 7, "")))))))) ->  | H51: =IF(H44="", "", IF($D$6<H45, 1, IF($D$6<H46, 2, IF($D$6<H47, 3, IF($D$6<H48, 4, IF($D$6<H49, 5, IF($D$6<H50, 6, IF($D$6>H50, 7, "")))))))) ->  | U51: 41 | V51: 41
C52: Coeff | D52: =IF(D56="VRAI", D57, IF(D44="", "", IF(D12="Très exigeante", INDEX(Calcul_Seuils_PK!$C$16:$I$23,D15,D51), IF(D12="Moyennement exigeante", INDEX(Calcul_Seuils_PK!$C$26:$I$28,D15,D51), INDEX(Calcul_Seuils_PK!$C$28:$I$31,D15,D51))))) ->  | E52: =IF(E56="VRAI", E57, IF(E44="", "", IF(E12="Très exigeante", INDEX(Calcul_Seuils_PK!$C$16:$I$23,E15,E51), IF(E12="Moyennement exigeante", INDEX(Calcul_Seuils_PK!$C$26:$I$28,E15,E51), INDEX(Calcul_Seuils_PK!$C$28:$I$31,E15,E51))))) ->  | F52: =IF(F56="VRAI", F57, IF(F44="", "", IF(F12="Très exigeante", INDEX(Calcul_Seuils_PK!$C$16:$I$23,F15,F51), IF(F12="Moyennement exigeante", INDEX(Calcul_Seuils_PK!$C$26:$I$28,F15,F51), INDEX(Calcul_Seuils_PK!$C$28:$I$31,F15,F51))))) ->  | G52: =IF(G56="VRAI", G57, IF(G44="", "", IF(G12="Très exigeante", INDEX(Calcul_Seuils_PK!$C$16:$I$23,G15,G51), IF(G12="Moyennement exigeante", INDEX(Calcul_Seuils_PK!$C$26:$I$28,G15,G51), INDEX(Calcul_Seuils_PK!$C$28:$I$31,G15,G51))))) ->  | H52: =IF(H56="VRAI", H57, IF(H44="", "", IF(H12="Très exigeante", INDEX(Calcul_Seuils_PK!$C$16:$I$23,H15,H51), IF(H12="Moyennement exigeante", INDEX(Calcul_Seuils_PK!$C$26:$I$28,H15,H51), INDEX(Calcul_Seuils_PK!$C$28:$I$31,H15,H51))))) ->  | U52: 42 | V52: 42
C53: Exportation grain | D53: =D10*INDEX(Feuil9!$A$9:$E$48,D9,4) -> 0 | E53: =E10*INDEX(Feuil9!$A$9:$E$48,E9,4) -> 0 | F53: =F10*INDEX(Feuil9!$A$9:$E$48,F9,4) -> 0 | G53: =G10*INDEX(Feuil9!$A$9:$E$48,G9,4) -> 0 | H53: =H10*INDEX(Feuil9!$A$9:$E$48,H9,4) -> 0 | U53: 43 | V53: 43
C54: Exportation paille | D54: =D14*INDEX(Feuil9!$A$9:$E$48,D9,5) -> 0 | E54: =E14*INDEX(Feuil9!$A$9:$E$48,E9,5) -> 0 | F54: =F14*INDEX(Feuil9!$A$9:$E$48,F9,5) -> 0 | G54: =G14*INDEX(Feuil9!$A$9:$E$48,G9,5) -> 0 | H54: =H14*INDEX(Feuil9!$A$9:$E$48,H9,5) -> 0 | U54: 44 | V54: 44
C55: Export paille corrigé | D55: =IF($D$6<D47, D54, 0) -> 0 | E55: =IF($D$6<E47, E54, 0) -> 0 | F55: =IF($D$6<F47, F54, 0) -> 0 | G55: =IF($D$6<G47, G54, 0) -> 0 | H55: =IF($D$6<H47, H54, 0) -> 0 | U55: 45 | V55: 45
C56: Culture fourragere | D56: =IF(INDEX(Feuil9!$A$9:$H$48, D9, 8)="F", "VRAI", "FAUX") -> FAUX | E56: =IF(INDEX(Feuil9!$A$9:$H$48, E9, 8)="F", "VRAI", "FAUX") -> FAUX | F56: =IF(INDEX(Feuil9!$A$9:$H$48, F9, 8)="F", "VRAI", "FAUX") -> FAUX | G56: =IF(INDEX(Feuil9!$A$9:$H$48, G9, 8)="F", "VRAI", "FAUX") -> FAUX | H56: =IF(INDEX(Feuil9!$A$9:$H$48, H9, 8)="F", "VRAI", "FAUX") -> FAUX | U56: 46 | V56: 46
C57: Coeff fourrage | D57: =INDEX(Calcul_Seuils_PK!$C$34:$I$36, D15, D51) ->  | E57: =INDEX(Calcul_Seuils_PK!$C$34:$I$36, E15, E51) ->  | F57: =INDEX(Calcul_Seuils_PK!$C$34:$I$36, F15, F51) ->  | G57: =INDEX(Calcul_Seuils_PK!$C$34:$I$36, G15, G51) ->  | H57: =INDEX(Calcul_Seuils_PK!$C$34:$I$36, H15, H51) ->  | U57: 47 | V57: 47
U58: 48 | V58: 48
C59: Ligne cultures | U59: 49 | V59: 49
C60: =D9 -> 1 | U60: 50 | V60: 50
C61: =E9 -> 1 | D61: Graphique situation parcelle | U61: 51 | V61: 51
C62: =F9 -> 1 | D62: Valeur retenue à la culture | U62: 52 | V62: 52
C63: =G9 -> 1 | D63: P | E63: =INDEX(D37:H37,1,I4) ->  | U63: 53 | V63: 53
C64: =H9 -> 1 | D64: K | E64: =INDEX(D51:H51,1,I4) ->  | U64: 54 | V64: 54
U65: 55 | V65: 55
U66: 56 | V66: 56
C67: Cultures | U67: 57 | V67: 57
A68: Joret-Hebert | C68: =IF(C60>1, INDEX(Feuil9!$A$9:$A$48,C60,1), "") ->  | U68: 58 | V68: 58
A69: Olsen | C69: =IF(C61>1, INDEX(Feuil9!$A$9:$A$48,C61,1), "") ->  | U69: 59 | V69: 59
A70: Dyer | C70: =IF(C62>1, INDEX(Feuil9!$A$9:$A$48,C62,1), "") ->  | U70: 60 | V70: 60
C71: =IF(C63>1, INDEX(Feuil9!$A$9:$A$48,C63,1), "") ->  | U71: 61 | V71: 61
C72: =IF(C64>1, INDEX(Feuil9!$A$9:$A$48,C64,1), "") ->  | U72: 62 | V72: 62
C73: MOYENNE | U73: 63 | V73: 63
C74: ENGRAIS P | I74: MOYENNE | U74: 64 | V74: 64
C75: =C19 -> 3 | D75: =IF(D19="", "", (INDEX(BDD_Engrais_PK!$B$9:$H$55,$C$75,3)*INDEX(BDD_Engrais_PK!$B$9:$H$55,$C$75,6))*D19) ->  | E75: =IF(E19="", "", (INDEX(BDD_Engrais_PK!$B$9:$H$55,$C$75,3)*INDEX(BDD_Engrais_PK!$B$9:$H$55,$C$75,6))*E19) ->  | F75: =IF(F19="", "", (INDEX(BDD_Engrais_PK!$B$9:$H$55,$C$75,3)*INDEX(BDD_Engrais_PK!$B$9:$H$55,$C$75,6))*F19) ->  | G75: =IF(G19="", "", (INDEX(BDD_Engrais_PK!$B$9:$H$55,$C$75,3)*INDEX(BDD_Engrais_PK!$B$9:$H$55,$C$75,6))*G19) ->  | H75: =IF(H19="", "", (INDEX(BDD_Engrais_PK!$B$9:$H$55,$C$75,3)*INDEX(BDD_Engrais_PK!$B$9:$H$55,$C$75,6))*H19) ->  | U75: 65 | V75: 65
C76: =C20 -> 25 | D76: =IF(D20="", "", (INDEX(BDD_Engrais_PK!$B$9:$H$55,$C$76,3)*INDEX(BDD_Engrais_PK!$B$9:$H$55,$C$76,6))*D20) ->  | E76: =IF(E20="", "", (INDEX(BDD_Engrais_PK!$B$9:$H$55,$C$76,3)*INDEX(BDD_Engrais_PK!$B$9:$H$55,$C$76,6))*E20) ->  | F76: =IF(F20="", "", (INDEX(BDD_Engrais_PK!$B$9:$H$55,$C$76,3)*INDEX(BDD_Engrais_PK!$B$9:$H$55,$C$76,6))*F20) ->  | G76: =IF(G20="", "", (INDEX(BDD_Engrais_PK!$B$9:$H$55,$C$76,3)*INDEX(BDD_Engrais_PK!$B$9:$H$55,$C$76,6))*G20) ->  | H76: =IF(H20="", "", (INDEX(BDD_Engrais_PK!$B$9:$H$55,$C$76,3)*INDEX(BDD_Engrais_PK!$B$9:$H$55,$C$76,6))*H20) ->  | U76: 66 | V76: 66
C77: =C21 -> 24 | D77: =IF(D21="", "", (INDEX(BDD_Engrais_PK!$B$9:$H$55,$C$77,3)*INDEX(BDD_Engrais_PK!$B$9:$H$55,$C$77,6))*D21) ->  | E77: =IF(E21="", "", (INDEX(BDD_Engrais_PK!$B$9:$H$55,$C$77,3)*INDEX(BDD_Engrais_PK!$B$9:$H$55,$C$77,6))*E21) ->  | F77: =IF(F21="", "", (INDEX(BDD_Engrais_PK!$B$9:$H$55,$C$77,3)*INDEX(BDD_Engrais_PK!$B$9:$H$55,$C$77,6))*F21) ->  | G77: =IF(G21="", "", (INDEX(BDD_Engrais_PK!$B$9:$H$55,$C$77,3)*INDEX(BDD_Engrais_PK!$B$9:$H$55,$C$77,6))*G21) ->  | H77: =IF(H21="", "", (INDEX(BDD_Engrais_PK!$B$9:$H$55,$C$77,3)*INDEX(BDD_Engrais_PK!$B$9:$H$55,$C$77,6))*H21) ->  | U77: 67 | V77: 67
C78: =C22 -> 1 | D78: =IF(D22="", "", (INDEX(BDD_Engrais_PK!$B$9:$H$55,$C$78,3)*INDEX(BDD_Engrais_PK!$B$9:$H$55,$C$78,6))*D22) ->  | E78: =IF(E22="", "", (INDEX(BDD_Engrais_PK!$B$9:$H$55,$C$78,3)*INDEX(BDD_Engrais_PK!$B$9:$H$55,$C$78,6))*E22) ->  | F78: =IF(F22="", "", (INDEX(BDD_Engrais_PK!$B$9:$H$55,$C$78,3)*INDEX(BDD_Engrais_PK!$B$9:$H$55,$C$78,6))*F22) ->  | G78: =IF(G22="", "", (INDEX(BDD_Engrais_PK!$B$9:$H$55,$C$78,3)*INDEX(BDD_Engrais_PK!$B$9:$H$55,$C$78,6))*G22) ->  | H78: =IF(H22="", "", (INDEX(BDD_Engrais_PK!$B$9:$H$55,$C$78,3)*INDEX(BDD_Engrais_PK!$B$9:$H$55,$C$78,6))*H22) ->  | U78: 68 | V78: 68
C79: =C23 -> 1 | D79: =IF(D23="", "", (INDEX(BDD_Engrais_PK!$B$9:$H$55,$C$79,3)*INDEX(BDD_Engrais_PK!$B$9:$H$55,$C$79,6))*D23) ->  | E79: =IF(E23="", "", (INDEX(BDD_Engrais_PK!$B$9:$H$55,$C$79,3)*INDEX(BDD_Engrais_PK!$B$9:$H$55,$C$79,6))*E23) ->  | F79: =IF(F23="", "", (INDEX(BDD_Engrais_PK!$B$9:$H$55,$C$79,3)*INDEX(BDD_Engrais_PK!$B$9:$H$55,$C$79,6))*F23) ->  | G79: =IF(G23="", "", (INDEX(BDD_Engrais_PK!$B$9:$H$55,$C$79,3)*INDEX(BDD_Engrais_PK!$B$9:$H$55,$C$79,6))*G23) ->  | H79: =IF(H23="", "", (INDEX(BDD_Engrais_PK!$B$9:$H$55,$C$79,3)*INDEX(BDD_Engrais_PK!$B$9:$H$55,$C$79,6))*H23) ->  | U79: 69 | V79: 69
C80: BESOIN | E80: =E16 -> 0 | F80: =F16 -> 0 | G80: =G16 -> 0 | H80: =H16 -> 0 | I80: =AVERAGE(D80:H80) -> 0 | U80: 70 | V80: 70
C81: ENGRAIS | D81: =SUM(D75:D79) -> 0 | E81: =SUM(E75:E79) -> 0 | F81: =SUM(F75:F79) -> 0 | G81: =SUM(G75:G79) -> 0 | H81: =SUM(H75:H79) -> 0 | I81: =AVERAGE(D81:H81) -> 0 | U81: 71 | V81: 71
C82: ECART | D82: =IF(D80="", "", D81-D80) ->  | E82: =IF(E80="", "", E81-E80) -> 0 | F82: =IF(F80="", "", F81-F80) -> 0 | G82: =IF(G80="", "", G81-G80) -> 0 | H82: =IF(H80="", "", H81-H80) -> 0 | I82: =AVERAGE(D82:H82) -> 0 | U82: 72 | V82: 72
U83: 73 | V83: 73
C84: ENGRAIS K | I84: MOYENNE | U84: 74 | V84: 74
C85: =C19 -> 3 | D85: =IF(D19="", "", (INDEX(BDD_Engrais_PK!$B$9:$H$55,$C$85,4)*INDEX(BDD_Engrais_PK!$B$9:$H$55,$C$85,7))*D19) ->  | E85: =IF(E19="", "", (INDEX(BDD_Engrais_PK!$B$9:$H$55,$C$85,4)*INDEX(BDD_Engrais_PK!$B$9:$H$55,$C$85,7))*E19) ->  | F85: =IF(F19="", "", (INDEX(BDD_Engrais_PK!$B$9:$H$55,$C$85,4)*INDEX(BDD_Engrais_PK!$B$9:$H$55,$C$85,7))*F19) ->  | G85: =IF(G19="", "", (INDEX(BDD_Engrais_PK!$B$9:$H$55,$C$85,4)*INDEX(BDD_Engrais_PK!$B$9:$H$55,$C$85,7))*G19) ->  | H85: =IF(H19="", "", (INDEX(BDD_Engrais_PK!$B$9:$H$55,$C$85,4)*INDEX(BDD_Engrais_PK!$B$9:$H$55,$C$85,7))*H19) ->  | U85: 75 | V85: 75
C86: =C20 -> 25 | D86: =IF(D20="", "", (INDEX(BDD_Engrais_PK!$B$9:$H$55,$C$86,4)*INDEX(BDD_Engrais_PK!$B$9:$H$55,$C$86,7))*D20) ->  | E86: =IF(E20="", "", (INDEX(BDD_Engrais_PK!$B$9:$H$55,$C$86,4)*INDEX(BDD_Engrais_PK!$B$9:$H$55,$C$86,7))*E20) ->  | F86: =IF(F20="", "", (INDEX(BDD_Engrais_PK!$B$9:$H$55,$C$86,4)*INDEX(BDD_Engrais_PK!$B$9:$H$55,$C$86,7))*F20) ->  | G86: =IF(G20="", "", (INDEX(BDD_Engrais_PK!$B$9:$H$55,$C$86,4)*INDEX(BDD_Engrais_PK!$B$9:$H$55,$C$86,7))*G20) ->  | H86: =IF(H20="", "", (INDEX(BDD_Engrais_PK!$B$9:$H$55,$C$86,4)*INDEX(BDD_Engrais_PK!$B$9:$H$55,$C$86,7))*H20) ->  | U86: 76 | V86: 76
C87: =C21 -> 24 | D87: =IF(D21="", "", (INDEX(BDD_Engrais_PK!$B$9:$H$55,$C$87,4)*INDEX(BDD_Engrais_PK!$B$9:$H$55,$C$87,7))*D21) ->  | E87: =IF(E21="", "", (INDEX(BDD_Engrais_PK!$B$9:$H$55,$C$87,4)*INDEX(BDD_Engrais_PK!$B$9:$H$55,$C$87,7))*E21) ->  | F87: =IF(F21="", "", (INDEX(BDD_Engrais_PK!$B$9:$H$55,$C$87,4)*INDEX(BDD_Engrais_PK!$B$9:$H$55,$C$87,7))*F21) ->  | G87: =IF(G21="", "", (INDEX(BDD_Engrais_PK!$B$9:$H$55,$C$87,4)*INDEX(BDD_Engrais_PK!$B$9:$H$55,$C$87,7))*G21) ->  | H87: =IF(H21="", "", (INDEX(BDD_Engrais_PK!$B$9:$H$55,$C$87,4)*INDEX(BDD_Engrais_PK!$B$9:$H$55,$C$87,7))*H21) ->  | U87: 77 | V87: 77
C88: =C22 -> 1 | D88: =IF(D22="", "", (INDEX(BDD_Engrais_PK!$B$9:$H$55,$C$88,4)*INDEX(BDD_Engrais_PK!$B$9:$H$55,$C$88,7))*D22) ->  | E88: =IF(E22="", "", (INDEX(BDD_Engrais_PK!$B$9:$H$55,$C$88,4)*INDEX(BDD_Engrais_PK!$B$9:$H$55,$C$88,7))*E22) ->  | F88: =IF(F22="", "", (INDEX(BDD_Engrais_PK!$B$9:$H$55,$C$88,4)*INDEX(BDD_Engrais_PK!$B$9:$H$55,$C$88,7))*F22) ->  | G88: =IF(G22="", "", (INDEX(BDD_Engrais_PK!$B$9:$H$55,$C$88,4)*INDEX(BDD_Engrais_PK!$B$9:$H$55,$C$88,7))*G22) ->  | H88: =IF(H22="", "", (INDEX(BDD_Engrais_PK!$B$9:$H$55,$C$88,4)*INDEX(BDD_Engrais_PK!$B$9:$H$55,$C$88,7))*H22) ->  | U88: 78 | V88: 78
C89: =C23 -> 1 | D89: =IF(D23="", "", (INDEX(BDD_Engrais_PK!$B$9:$H$55,$C$89,4)*INDEX(BDD_Engrais_PK!$B$9:$H$55,$C$89,7))*D23) ->  | E89: =IF(E23="", "", (INDEX(BDD_Engrais_PK!$B$9:$H$55,$C$89,4)*INDEX(BDD_Engrais_PK!$B$9:$H$55,$C$89,7))*E23) ->  | F89: =IF(F23="", "", (INDEX(BDD_Engrais_PK!$B$9:$H$55,$C$89,4)*INDEX(BDD_Engrais_PK!$B$9:$H$55,$C$89,7))*F23) ->  | G89: =IF(G23="", "", (INDEX(BDD_Engrais_PK!$B$9:$H$55,$C$89,4)*INDEX(BDD_Engrais_PK!$B$9:$H$55,$C$89,7))*G23) ->  | H89: =IF(H23="", "", (INDEX(BDD_Engrais_PK!$B$9:$H$55,$C$89,4)*INDEX(BDD_Engrais_PK!$B$9:$H$55,$C$89,7))*H23) ->  | U89: 79 | V89: 79
C90: BESOIN | E90: =E17 -> 0 | F90: =F17 -> 0 | G90: =G17 -> 0 | H90: =H17 -> 0 | I90: =AVERAGE(D90:H90) -> 0 | U90: 80 | V90: 80
C91: ENGRAIS | D91: =SUM(D85:D89) -> 0 | E91: =SUM(E85:E89) -> 0 | F91: =SUM(F85:F89) -> 0 | G91: =SUM(G85:G89) -> 0 | H91: =SUM(H85:H89) -> 0 | I91: =AVERAGE(D91:H91) -> 0 | U91: 81 | V91: 81
C92: ECART | D92: =IF(D90="", "", D91-D90) ->  | E92: =IF(E90="", "", E91-E90) -> 0 | F92: =IF(F90="", "", F91-F90) -> 0 | G92: =IF(G90="", "", G91-G90) -> 0 | H92: =IF(H90="", "", H91-H90) -> 0 | I92: =AVERAGE(D92:H92) -> 0 | U92: 82 | V92: 82
U93: 83 | V93: 83
U94: 84 | V94: 84
C95: GRAPHIQUE PK | D95: =C68 ->  | E95: =C69 ->  | F95: =C70 ->  | G95: =C71 ->  | H95: =C72 ->  | I95: =C73 -> MOYENNE | U95: 85 | V95: 85
C96: BESOINS | D96: =IF($I$23=TRUE, D80, D90) -> 0 | E96: 0 | F96: =IF($I$23=TRUE, F80, F90) -> 0 | G96: 0 | H96: 0 | I96: =AVERAGE(D96:H96) -> 0 | U96: 86 | V96: 86
C97: APPORTS REALISES | D97: 0 | E97: 0 | F97: 0 | G97: 0 | H97: 0 | I97: =AVERAGE(D97:H97) -> 0 | U97: 87 | V97: 87
C98: ECART | E98: 0 | F98: 0 | G98: 0 | H98: 0 | I98: =AVERAGE(D98:H98) -> 0 | U98: 88 | V98: 88
U99: 89 | V99: 89
U100: 90 | V100: 90
C101: MgO | U101: 91 | V101: 91
C102: =C19 -> 3 | D102: =IF($C$19="", "", INDEX(BDD_Engrais_PK!$B$9:$I$55,$C$102,8)*D19) -> 0 | E102: =IF($C$19="", "", INDEX(BDD_Engrais_PK!$B$9:$I$55,$C$102,8)*E19) -> 0 | F102: =IF($C$19="", "", INDEX(BDD_Engrais_PK!$B$9:$I$55,$C$102,8)*F19) -> 0 | G102: =IF($C$19="", "", INDEX(BDD_Engrais_PK!$B$9:$I$55,$C$102,8)*G19) -> 0 | H102: =IF($C$19="", "", INDEX(BDD_Engrais_PK!$B$9:$I$55,$C$102,8)*H19) -> 0 | U102: 92 | V102: 92
C103: =C20 -> 25 | D103: =IF($C$20="", "", INDEX(BDD_Engrais_PK!$B$9:$I$55,$C$103,8)*D20) -> 0 | E103: =IF($C$20="", "", INDEX(BDD_Engrais_PK!$B$9:$I$55,$C$103,8)*E20) -> 0 | F103: =IF($C$20="", "", INDEX(BDD_Engrais_PK!$B$9:$I$55,$C$103,8)*F20) -> 0 | G103: =IF($C$20="", "", INDEX(BDD_Engrais_PK!$B$9:$I$55,$C$103,8)*G20) -> 0 | H103: =IF($C$20="", "", INDEX(BDD_Engrais_PK!$B$9:$I$55,$C$103,8)*H20) -> 0 | U103: 93 | V103: 93
C104: =C21 -> 24 | D104: =IF($C$21="", "", INDEX(BDD_Engrais_PK!$B$9:$I$55,$C$104,8)*D21) -> 0 | E104: =IF($C$21="", "", INDEX(BDD_Engrais_PK!$B$9:$I$55,$C$104,8)*E21) -> 0 | F104: =IF($C$21="", "", INDEX(BDD_Engrais_PK!$B$9:$I$55,$C$104,8)*F21) -> 0 | G104: =IF($C$21="", "", INDEX(BDD_Engrais_PK!$B$9:$I$55,$C$104,8)*G21) -> 0 | H104: =IF($C$21="", "", INDEX(BDD_Engrais_PK!$B$9:$I$55,$C$104,8)*H21) -> 0 | U104: 94 | V104: 94
C105: =C22 -> 1 | D105: =IF($C$22="", "", INDEX(BDD_Engrais_PK!$B$9:$I$55,$C$105,8)*D22) -> 0 | E105: =IF($C$22="", "", INDEX(BDD_Engrais_PK!$B$9:$I$55,$C$105,8)*E22) -> 0 | F105: =IF($C$22="", "", INDEX(BDD_Engrais_PK!$B$9:$I$55,$C$105,8)*F22) -> 0 | G105: =IF($C$22="", "", INDEX(BDD_Engrais_PK!$B$9:$I$55,$C$105,8)*G22) -> 0 | H105: =IF($C$22="", "", INDEX(BDD_Engrais_PK!$B$9:$I$55,$C$105,8)*H22) -> 0 | U105: 95 | V105: 95
C106: =C23 -> 1 | D106: =IF($C$23="", "", INDEX(BDD_Engrais_PK!$B$9:$I$55,$C$106,8)*D23) -> 0 | E106: =IF($C$23="", "", INDEX(BDD_Engrais_PK!$B$9:$I$55,$C$106,8)*E23) -> 0 | F106: =IF($C$23="", "", INDEX(BDD_Engrais_PK!$B$9:$I$55,$C$106,8)*F23) -> 0 | G106: =IF($C$23="", "", INDEX(BDD_Engrais_PK!$B$9:$I$55,$C$106,8)*G23) -> 0 | H106: =IF($C$23="", "", INDEX(BDD_Engrais_PK!$B$9:$I$55,$C$106,8)*H23) -> 0 | U106: 96 | V106: 96
C107: SOMME | D107: =SUM(D102:H106) -> 0 | U107: 97 | V107: 97
U108: 98 | V108: 98
U109: 99 | V109: 99
U110: 100 | V110: 100
U111: 101 | V111: 101
U112: 102 | V112: 102
U113: 103 | V113: 103
U114: 104 | V114: 104
U115: 105 | V115: 105
U116: 106 | V116: 106
U117: 107 | V117: 107
U118: 108 | V118: 108
U119: 109 | V119: 109
U120: 110 | V120: 110
U121: 111 | V121: 111
U122: 112 | V122: 112
U123: 113 | V123: 113
U124: 114 | V124: 114
U125: 115 | V125: 115
U126: 116 | V126: 116
U127: 117 | V127: 117
U128: 118 | V128: 118
U129: 119 | V129: 119
U130: 120 | V130: 120
U131: 121 | V131: 121
U132: 122 | V132: 122
U133: 123 | V133: 123
U134: 124 | V134: 124
U135: 125 | V135: 125
U136: 126 | V136: 126
U137: 127 | V137: 127
U138: 128 | V138: 128
U139: 129 | V139: 129
U140: 130 | V140: 130
U141: 131 | V141: 131
U142: 132 | V142: 132
U143: 133 | V143: 133
U144: 134 | V144: 134
U145: 135 | V145: 135
U146: 136 | V146: 136
U147: 137 | V147: 137
U148: 138 | V148: 138
U149: 139 | V149: 139
U150: 140 | V150: 140
U151: 141 | V151: 141
U152: 142 | V152: 142
U153: 143 | V153: 143
U154: 144 | V154: 144
U155: 145 | V155: 145
U156: 146 | V156: 146
U157: 147 | V157: 147
U158: 148 | V158: 148
U159: 149 | V159: 149
U160: 150 | V160: 150
U161: 151 | V161: 151
U162: 152 | V162: 152
U163: 153 | V163: 153
U164: 154 | V164: 154
U165: 155 | V165: 155
U166: 156 | V166: 156
U167: 157 | V167: 157
U168: 158 | V168: 158
U169: 159 | V169: 159
U170: 160 | V170: 160
U171: 161 | V171: 161
U172: 162 | V172: 162

Sheet Calcul_Seuils_PK
A2: 0 | C2: Enfouis
A3: 1 | C3: Exportés
A4: 2 ou + | O4: =PK!C5 -> P2O5 (mg/kg) | P4: =PK!D5 -> 0
A6: PHOSPHORE | C6: Trenf | D6: Timp-10% | E6: Timp | F6: Timp+10% | G6: 2xTimp | H6: 3xTimp | O6: Trenf | P6: Timp-10% | Q6: Timp | R6: Timp+10% | S6: 2xTimp | T6: 3xTimp
B7: Nombres d'années sans apport
A8: Très exigeantes | B8: 0 | C8: 2.2 | D8: 1.5 | E8: 1.2 | F8: 1 | G8: 0.8 | H8: 0 | I8: 0
A9: Très exigeantes | B9: 1 | C9: 3.3 | D9: 2 | E9: 1.5 | F9: 1.2 | G9: 1 | H9: 0 | I9: 0
A10: Très exigeantes | B10: 2 ou + | C10: 3.7 | D10: 2.7 | E10: 2 | F10: 1.5 | G10: 1.2 | H10: 0.8 | I10: 0
A11: Moyennement exigeante | B11: 0 | C11: 1.6 | D11: 1 | E11: 1 | F11: 0 | G11: 0 | H11: 0 | I11: 0
A12: Moyennement exigeante | B12: 1 | C12: 1.8 | D12: 1.2 | E12: 1 | F12: 1 | G12: 0.8 | H12: 0 | I12: 0
A13: Moyennement exigeante | B13: 2 ou + | C13: 2 | D13: 1.7 | E13: 1.5 | F13: 1.2 | G13: 1 | H13: 0.6 | I13: 0
A14: Peu exigeante | B14: 0 | C14: 1.3 | D14: 1 | E14: 0.8 | F14: 0 | G14: 0 | H14: 0 | I14: 0
A15: Peu exigeante | B15: 1 | C15: 1.6 | D15: 1 | E15: 1 | F15: 0 | G15: 0 | H15: 0 | I15: 0
A16: Peu exigeante | B16: 2 ou + | C16: 1.6 | D16: 1.2 | E16: 1 | F16: 1 | G16: 0.8 | H16: 0 | I16: 0
A21: POTASSE GC | C21: Trenf | D21: Timp-10% | E21: Timp | F21: Timp+10% | G21: 2xTimp | H21: 3xTimp
B22: Nombres d'années sans apport
A23: Très exigeantes | B23: 0 | C23: 1.7 | D23: 1.2 | E23: 1 | F23: 0.8 | G23: 0.6 | H23: 0 | I23: 0
A24: Très exigeantes | B24: 1 | C24: 2 | D24: 1.4 | E24: 1.2 | F24: 1 | G24: 0.8 | H24: 0 | I24: 0
A25: Très exigeantes | B25: 2 ou + | C25: 2.3 | D25: 1.5 | E25: 1.4 | F25: 1.2 | G25: 1 | H25: 0.8 | I25: 0
A26: Moyennement exigeante | B26: 0 | C26: 1.6 | D26: 1.2 | E26: 1 | F26: 0 | G26: 0 | H26: 0 | I26: 0
A27: Moyennement exigeante | B27: 1 | C27: 2.2 | D27: 1.4 | E27: 1.2 | F27: 1 | G27: 0.5 | H27: 0 | I27: 0
A28: Moyennement exigeante | B28: 2 ou + | C28: 2.2 | D28: 1.6 | E28: 1.4 | F28: 1.2 | G28: 1 | H28: 0.8 | I28: 0
A29: Peu exigeante | B29: 0 | C29: 1.2 | D29: 1 | E29: 1 | F29: 0 | G29: 0 | H29: 0 | I29: 0
A30: Peu exigeante | B30: 1 | C30: 1.2 | D30: 1.1 | E30: 1 | F30: 0 | G30: 0 | H30: 0 | I30: 0
A31: Peu exigeante | B31: 2 ou + | C31: 1.2 | D31: 1.2 | E31: 1 | F31: 1 | G31: 1 | H31: 0 | I31: 0
A33: POTASSE FOURRAGERES
A34: Moyennement exigeante | B34: 0 | C34: 1 | D34: 1 | E34: 0.8 | F34: 0.6 | G34: 0 | H34: 0 | I34: 0
A35: Moyennement exigeante | B35: 1 | C35: 1.5 | D35: 1.2 | E35: 1 | F35: 0.8 | G35: 0.6 | H35: 0 | I35: 0
A36: Moyennement exigeante | B36: 2 ou + | C36: 1.5 | D36: 1.2 | E36: 1 | F36: 1 | G36: 0.8 | H36: 0.4 | I36: 0
A37: Maïs fourrage, Ray-grass, Luzerne
N75: 78 | O75: Rhône Alpes Saône et Loire
N76: 79 | O76: Rhône Alpes Saône et Loire
N77: 80 | O77: Rhône Alpes Saône et Loire
N78: 81 | O78: Rhône Alpes Saône et Loire
N79: 82 | O79: Rhône Alpes Saône et Loire
N80: 83 | O80: Rhône Alpes Saône et Loire
N81: 84 | O81: Rhône Alpes Saône et Loire
N82: 85 | O82: Rhône Alpes Saône et Loire
N83: 86 | O83: Sud Ouest
N84: 87 | O84: Sud Ouest

Sheet Calcul_PK
B4: Numero culture | C4: Numero tableau region | G4: 1 | H4: =IF(K4=0,"", K4) -> Champagne Ardenne | K4: =INDEX($A$23:$P$31,G4,PK!H5) -> Champagne Ardenne
G5: 2 | H5: =IF(K5=0,"", K5) -> Craie | K5: =INDEX($A$23:$P$31,G5,PK!H5) -> Craie
A6: Nord Picardie | B6: 1 | C6: 1 | G6: 3 | H6: Limon | K6: =INDEX($A$23:$P$31,G6,PK!H5) -> Limon
A7: Champagne Ardenne | B7: 2 | C7: 5 | G7: 4 | H7: Limon argileux | K7: =INDEX($A$23:$P$31,G7,PK!H5) -> Limon argileux
A8: Lorraine | B8: 3 | C8: 11 | G8: 5 | H8: Argilo-calcaire superficiel | K8: =INDEX($A$23:$P$31,G8,PK!H5) -> Argilo-calcaire superficiel
A9: Alsace | B9: 4 | C9: 16 | G9: 6 | H9: Argilo-calcaire profond | K9: =INDEX($A$23:$P$31,G9,PK!H5) -> Argilo-calcaire profond
A10: Franche Comté | B10: 5 | C10: 23 | G10: 7 | H10: Sable | K10: =INDEX($A$23:$P$31,G10,PK!H5) -> Sable
A11: Bourgogne | B11: 6 | C11: 30 | G11: 8 | K11: =INDEX($A$23:$P$31,G11,PK!H5) -> 0
A12: Centre limousin | B12: 7 | C12: 36 | G12: 9 | K12: =INDEX($A$23:$P$31,G12,PK!H5) -> 0
A13: Centre Bassin parisien | B13: 8 | C13: 44
A14: Haute Normandie | B14: 9 | C14: 51
A15: Bretagne pays de la Loire | B15: 10 | C15: 59
A16: Poitou Charente | B16: 11 | C16: 64
A17: Haute Marne | B17: 12 | C17: 70
A18: Auvergne | B18: 13 | C18: 73
A19: Rhône Alpes Saône et Loire | B19: 14 | C19: 78
A20: Sud Ouest | B20: 15 | C20: 86
B23: Nord Picardie | C23: Champagne Ardenne | D23: Lorraine | E23: Alsace | F23: Franche Comté | G23: Bourgogne | H23: Centre limousin | I23: Centre Bassin parisien | J23: Haute Normandie | K23: Bretagne pays de la Loire | L23: Poitou Charente | M23: Haute Marne | N23: Auvergne | O23: Rhône Alpes Saône et Loire | P23: Sud Ouest
B24: Limons battants | C24: Craie | D24: Argilo-calcaire profond | E24: Limons loess | F24: Limon (A< 20%) | G24: Argilo-calcaire superficiel | H24: Argilo-calcaire superficiel caillouteux | I24: Limon battant | J24: Limon des plateaux | K24: Limon sain et Limon sableux | L24: Terres de Groie | M24: Limon | N24: Terre noire | O24: Varenne | P24: Sols acides limoneux ou argileux (boulbènes, alluvions,Ségala)
B25: Limon argileux | C25: Limon | D25: Argilo-calcaire superficiel | E25: Alluvions de l'Ill | F25: Limon argileux | G25: Argilo-calcaire profond | H25: Argilo-calcaire profond peu caillouteux | I25: Limon de Beauce | J25: Limon caillouteux sur argile à silex | K25: Limon caillouteux superficiel | L25: Argilo-calcaire profond sur calcaire marneux | M25: Sols superficiels du Barrois et autres sols argileux à 30% argile | N25: Argilo-calcaire | O25: Gravier, dilivium | P25: Sols basiques ou argilo-calcaires (terreforts, alluvions)
B26: Argiles | C26: Limon argileux | D26: Limons | E26: Limons lehm | F26: Limon argileux superficiel de plateaux | G26: Limons et argiles profonds | H26: Limon argileux | I26: Sable | J26: Argilo-calcaire superficiel sur craie | K26: Sable | L26: Aubue lègère et champagne superficielle | M26: Sols superficiels du Barrois et autres sols argileux à 40% argile | N26: Granitique | O26: Limon blanc sain
B27: Cranettes | C27: Argilo-calcaire superficiel | D27: Limon argileux | E27: Hardt superficielle, Ried brun caillouteux | F27: Sols argileux de vallées | G27: Limons battants | H27: Limon battant | I27: Limon sableux | J27: Sable caillouteux non calcaire | K27: Argilo-calcaire profond sur marne | L27: Aubue lourde et champagne profonde | N27: Sologne | O27: Limon blanc humide
C28: Argilo-calcaire profond | D28: Argiles lourdes | E28: Hardt profonde, Ried brun profond, basse plaine rhénane | F28: Sols argileux, calcaires de vallées | G28: Sols sablo-graveleux | H28: Sable | I28: Argilo-calcaire superficiel caillouteux | J28: Limon | K28: Argilo-calcaire superficiel | L28: Limon, terres rouge, bomais, doucin limoneux | N28: Alluvions recentes (sableuses) | O28: Limon argileux sain
C29: Sable | E29: Argilo-calcaire profond Alsace bossue, basse plaine sous-vosgienne | F29: Limons hydromorphes | G29: Alluvions argileuses | H29: Limon sableux | I29: Argilo-calcaire profond peu caillouteux | J29: Argilo-calcaire | L29: Sol sableux | O29: Limon argileux humide
E30: Argilo-calcaire caillouteux Alsace bossue, basse plaine sous-vosgienne | F30: Argiles hydromorphes de vallées | H30: Limons sur argile à silex | I30: Argio-calcaire de Beauce | J30: Sable | O30: Argilo-calcaire profond
H31: Argile lourde | J31: Terres lourdes | O31: Argilo-calcaire superficiel

Sheet BDD_Engrais_PK
B3: LES FERTILISANTS MINERAUX ET ORGANIQUES PK
B8: Type de produit | C8: Azote total (kg/t) | D8: P2O5 (kg/t) | E8: K2O (kg/t) | F8: Equivalence N | G8: Equivalence P | H8: Equivalence K | I8: MgO (kg/t)
I9: 0
B10: Fumier de bovin sur litière cumulée | C10: 5.9 | D10: 2.8 | E10: 9.5 | F10: 0.22 | G10: 0.8 | H10: 1 | I10: 2.6
B11: Fumier de bovin compact | C11: 4.7 | D11: 2.3 | E11: 5.6 | F11: 0.22 | G11: 0.8 | H11: 1 | I11: 2.6
B12: Fumier de bovin mou | C12: 4.5 | D12: 2.2 | E12: 4.9 | F12: 0.22 | G12: 0.8 | H12: 1 | I12: 1.8
B13: Fumier d'ovins | C13: 6.7 | D13: 4 | E13: 12 | F13: 0.22 | G13: 0.8 | H13: 1 | I13: 1.4
B14: Fumier de caprins | C14: 6.1 | D14: 5.2 | E14: 12 | F14: 0.22 | G14: 0.8 | H14: 1 | I14: 0
B15: Fumier de poulet de chair | C15: 21.9 | D15: 14.7 | E15: 19 | F15: 0.5 | G15: 0.8 | H15: 1 | I15: 6.7
B16: Lisier de bovins | C16: 1.3 | D16: 1.5 | E16: 3.6 | F16: 0.5 | G16: 0.85 | H16: 1 | I16: 0.8
B17: Lisier de porc naisseur-engraisseur | C17: 3.5 | D17: 2.1 | E17: 2.5 | F17: 0.5 | G17: 0.95 | H17: 1 | I17: 0.6
B18: Lisier de porc charcutiers | C18: 3.7 | D18: 2.1 | E18: 2.5 | F18: 0.5 | G18: 0.95 | H18: 1 | I18: 0.6
B19: Fientes de poules pondeuses - cage | C19: 39.5 | D19: 37.8 | E19: 25.7 | F19: 0.5 | G19: 0.85 | H19: 1 | I19: 3
B20: Lisier de lapins | C20: 3.3 | D20: 2.5 | E20: 4.3 | F20: 0.5 | G20: 0.95 | H20: 1 | I20: 0
B21: Compost de fumier de bovins | C21: 6.7 | D21: 3.6 | E21: 10.8 | F21: 0.22 | G21: 0.7 | H21: 1 | I21: 2.6
B22: Vinasses concentrées de sucrerie | C22: 25 | D22: 2 | E22: 70 | F22: 0.25 | G22: 0.8 | H22: 1 | I22: 0.5
B23: Compost de déchets verts | C23: 10 | D23: 6 | E23: 11 | F23: 0.25 | G23: 0.55 | H23: 1 | I23: 2.9
B24: Compost d'ordures ménagères | C24: 11 | D24: 5 | E24: 6.6 | F24: 0.25 | G24: 0.7 | H24: 1 | I24: 2.9
B25: Boues urbaines liquides biologiques | C25: 2 | D25: 2.5 | E25: 0.9 | F25: 0.25 | G25: 0.9 | H25: 1 | I25: 0.2
B26: Boues urbaines chaulées biologiques | C26: 8.4 | D26: 9.4 | E26: 0.9 | F26: 0.25 | G26: 0.9 | H26: 1 | I26: 1.5
B27: Boues urbaines compostées | C27: 7 | D27: 7 | E27: 15 | F27: 0.25 | G27: 0.7 | H27: 1 | I27: 1.5
B28: Digestat brut de méthanisation | D28: 4.9 | E28: 1.3 | F28: 0 | G28: 0.85 | H28: 1 | I28: 0.3
B29: 0-20-30 | C29: 0 | D29: 200 | E29: 300 | F29: 0 | G29: 1 | H29: 1 | I29: 0
B30: 15-15-15 | C30: 15 | D30: 150 | E30: 150 | F30: 1 | G30: 1 | H30: 1 | I30: 0
B31: 18-46 | C31: 18 | D31: 460 | E31: 0 | F31: 1 | G31: 1 | H31: 0 | I31: 0
B32: 12-27-0 | C32: 12 | D32: 270 | E32: 0 | F32: 1 | G32: 1 | H32: 0 | I32: 0
B33: Super 45 | C33: 0 | D33: 450 | E33: 0 | F33: 0 | G33: 1 | H33: 0 | I33: 0
B34: KCL | C34: 0 | D34: 0 | E34: 600 | F34: 0 | G34: 0 | H34: 1 | I34: 0
B35: Patenkali | C35: 0 | D35: 0 | E35: 300 | F35: 0 | G35: 0 | H35: 1 | I35: 0
B36: Sulfate de potassium K2SO4 | C36: 0 | D36: 0 | E36: 500 | F36: 0 | G36: 0 | H36: 1 | I36: 0

Sheet Choix_engrais_phosphore
B3: CRITERES DE CHOIX DES ENGRAIS PHOSPHATES
B9: Ü Choix du type d'engrais en fonction du pH du sol | I9: Ü Solubilité eau des engrais phosphatés
B11: Formes des engrais phosphatés | C11: pH eau < 5.5 | D11: 5.5 < pH eau < 6.2 | E11: 6.2 < pH eau < 7.2 ou CaCO3 < 10% | F11: CaCO3 > 10% | I11: Solubilité dans un même volume d'eau à pH 7 | J11: Le phosphate est sous forme de
B12: Phosphate d'ammonium Superphosphate | I12: Elevées | J12: Phosphate d'ammoniaque Superphosphate
B13: Phosphates bicalciques | I13: Faible | J13: Phosphate bicalcique Scories Thomas
B14: Scories Thomas | J14: Phosphate alumoni-calcique (Phospal)
B15: Phosphates alumino-calciques | I15: Très faible | J15: Phosphates naturels tendres et durs
B16: Phosphates naturels | J16: Source : COMIFER
F17: Source : COMIFER
C18: Forme utilisable
C19: Forme généralement déconseillée

Sheet Feuil9
B7: Phosphore | D7: Potasse | F7: Exigence P | G7: Exigence K
A8: CULTURES | B8: Récolte (grain / feuille) | C8: Paille | D8: Grain | E8: Paille
A10: Avoine | B10: 0.75 | C10: 3 | D10: 0.45 | E10: 12 | F10: Peu exigeante | G10: Peu exigeante
A11: Betterave fourragère | B11: 0.55 | D11: 1.95 | F11: Très exigeante | G11: Très exigeante
A12: Betterave sucrière | B12: 0.5 | D12: 1.8 | F12: Très exigeante | G12: Très exigeante
A13: Blé dur | B13: 0.85 | C13: 1.7 | D13: 0.45 | E13: 12.3 | F13: Moyennement exigeante | G13: Très exigeante
A14: Blé tendre | B14: 0.65 | C14: 1.7 | D14: 0.5 | E14: 12.3 | F14: Peu exigeante | G14: Peu exigeante
A15: Blé/Blé | B15: 0.65 | C15: 1.7 | D15: 0.5 | E15: 12.3 | F15: Moyennement exigeante | G15: Peu exigeante
A16: Colza | B16: 1.25 | C16: 1.7 | D16: 0.85 | E16: 145 | F16: Très exigeante | G16: Moyennement exigeante
A17: Féverole | B17: 1.2 | D17: 1.3 | F17: Moyennement exigeante | G17: Moyennement exigeante
A18: Lentille | B18: 0.9 | F18: Moyennement exigeante | G18: Moyennement exigeante
A19: Lin oléagineux | B19: 1.35 | C19: 2.05 | D19: 0.8 | E19: 7.2 | F19: Peu exigeante | G19: Peu exigeante
A20: Lin textile | C20: 2.05 | E20: 7.2 | F20: Moyennement exigeante | G20: Moyennement exigeante
A21: Lupin | B21: 0.75 | D21: 1.05
A22: Luzerne déshydratée | B22: 5.8 | D22: 31.8 | F22: Très exigeante | G22: Moyennement exigeante | H22: F
A23: Luzerne foin | B23: 6.3 | D23: 26.2 | F23: Très exigeante | G23: Moyennement exigeante | H23: F
A24: Maïs | B24: 0.6 | D24: 0.55 | F24: Peu exigeante | G24: Peu exigeante
A25: Maïs grain | B25: 2.15 | D25: 3.4 | F25: Peu exigeante | G25: Moyennement exigeante
A26: Maïs ensilage | B26: 4.2 | D26: 11.9 | F26: Moyennement exigeante | G26: Moyennement exigeante | H26: F
A27: Millet | B27: 0.6 | D27: 1.4 | F27: Moyennement exigeante | G27: Moyennement exigeante
A28: Orge | B28: 0.65 | C28: 1 | D28: 0.55 | E28: 12.9 | F28: Peu exigeante | G28: Peu exigeante
A29: Pois Chiche | B29: 0.7 | D29: 0.7
A30: Pois de conserve | B30: 2.95 | C30: 2.1 | D30: 4 | E30: 19 | F30: Très exigeante | G30: Très exigeante
A31: Pois protéagineux | B31: 0.8 | C31: 2.1 | D31: 1.15 | E31: 19 | F31: Moyennement exigeante | G31: Moyennement exigeante
A32: Pomme de terre consommation | B32: 0.95 | D32: 3.9 | F32: Très exigeante | G32: Très exigeante
A33: Pomme de terre fécule | B33: 1.25 | D33: 5.1 | F33: Très exigeante | G33: Très exigeante
A34: Prairie naturelle (foin) | B34: 6.9 | D34: 29.9 | H34: F
A35: Prairie naturelle (pâture) | B35: 7.1 | D35: 25.9 | H35: F
A36: Prairie temporaire (foin) | B36: 5.7 | D36: 26.5 | H36: F
A37: Ray-grass anglais (foin) | B37: 6.7 | D37: 28.6 | F37: Moyennement exigeante | G37: Moyennement exigeante | H37: F
A38: Ray-grass italien (foin) | B38: 8.4 | D38: 33.7 | F38: Moyennement exigeante | G38: Moyennement exigeante | H38: F
A39: Seigle | B39: 0.65 | C39: 3 | D39: 0.45 | E39: 12 | F39: Peu exigeante | G39: Peu exigeante
A40: Soja | B40: 1 | D40: 1.6 | F40: Peu exigeante | G40: Moyennement exigeante
A41: Sorgho | B41: 0.7 | D41: 0.35 | F41: Moyennement exigeante | G41: Peu exigeante
A42: Tabac brun | B42: 2 | D42: 50
A43: Tabac Burley | B43: 3 | D43: 80
A44: Tabac Virginie | B44: 2.5 | D44: 30
A45: Tournesol | B45: 1.2 | D45: 1.05 | F45: Peu exigeante | G45: Moyennement exigeante
A46: Trèfle violet (ensilage) | B46: 8.3 | F46: Moyennement exigeante | G46: Moyennement exigeante | H46: F
A47: Triticale | B47: 0.65 | C47: 2 | D47: 0.5 | E47: 10 | F47: Peu exigeante | G47: Peu exigeante
A48: Vesce | B48: 1 | C48: 2 | D48: 1.95 | E48: 13 | F48: Moyennement exigeante | G48: Moyennement exigeante

Sheet BDD_Potasse
D1: Seuil Potasse en mg/kg
D2: Forte exigence | F2: Moyenne exigence | H2: Faible exigence
B3: Région | C3: Type de sols | D3: T renforcé | E3: T impasse | F3: T renforcé | G3: T impasse | H3: T renforcé | I3: T impasse
B4: Nord Picardie | C4: Limons battants | D4: 170 | E4: 300 | F4: 120 | G4: 180 | H4: 80 | I4: 150
B5: Nord Picardie | C5: Limon argileux | D5: 200 | E5: 400 | F5: 150 | G5: 220 | H5: 100 | I5: 150
B6: Nord Picardie | C6: Argiles | D6: 250 | E6: 450 | F6: 200 | G6: 270 | H6: 150 | I6: 200
B7: Nord Picardie | C7: Cranettes | D7: 200 | E7: 400 | F7: 80 | G7: 250 | H7: 50 | I7: 100
B8: Champagne Ardenne | C8: Craie | D8: 200 | E8: 400 | F8: 80 | G8: 250 | H8: 50 | I8: 100
B9: Champagne Ardenne | C9: Limon | D9: 170 | E9: 300 | F9: 120 | G9: 180 | H9: 80 | I9: 150
B10: Champagne Ardenne | C10: Limon argileux | D10: 200 | E10: 400 | F10: 150 | G10: 220 | H10: 100 | I10: 150
B11: Champagne Ardenne | C11: Argilo-calcaire superficiel | D11: 300 | E11: 450 | F11: 300 | G11: 400 | H11: 150 | I11: 300
B12: Champagne Ardenne | C12: Argilo-calcaire profond | D12: 250 | E12: 300 | F12: 200 | G12: 300 | H12: 100 | I12: 180
B13: Champagne Ardenne | C13: Sable | D13: 100 | E13: 100 | F13: 70 | G13: 100 | H13: 60 | I13: 100
B14: Lorraine | C14: Argilo-calcaire profond | D14: 250 | E14: 300 | F14: 200 | G14: 300 | H14: 100 | I14: 180
B15: Lorraine | C15: Argilo-calcaire superficiel | D15: 300 | E15: 450 | F15: 300 | G15: 400 | H15: 150 | I15: 300
B16: Lorraine | C16: Limons | D16: 170 | E16: 300 | F16: 120 | G16: 180 | H16: 80 | I16: 150
B17: Lorraine | C17: Limon argileux | D17: 200 | E17: 400 | F17: 150 | G17: 220 | H17: 100 | I17: 150
B18: Lorraine | C18: Argiles lourdes | D18: 300 | E18: 450 | F18: 300 | G18: 400 | H18: 150 | I18: 300
B19: Alsace | C19: Limons loess | D19: 200 | E19: 400 | F19: 150 | G19: 220 | H19: 100 | I19: 150
B20: Alsace | C20: Alluvions de l'Ill | D20: 200 | E20: 400 | F20: 150 | G20: 220 | H20: 100 | I20: 150
B21: Alsace | C21: Limons lehm | D21: 180 | E21: 300 | F21: 130 | G21: 190 | H21: 80 | I21: 160
B22: Alsace | C22: Hardt superficielle, Ried brun caillouteux | D22: 300 | E22: 400 | F22: 300 | G22: 400 | H22: 150 | I22: 300
B23: Alsace | C23: Hardt profonde, Ried brun profond, basse plaine rhénane | D23: 250 | E23: 300 | F23: 200 | G23: 300 | H23: 100 | I23: 180
B24: Alsace | C24: Argilo-calcaire profond Alsace bossue, basse plaine sous-vosgienne | D24: 250 | E24: 300 | F24: 200 | G24: 300 | H24: 100 | I24: 180
B25: Alsace | C25: Argilo-calcaire caillouteux Alsace bossue, basse plaine sous-vosgienne | D25: 300 | E25: 400 | F25: 300 | G25: 400 | H25: 150 | I25: 300
B26: Franche Comté | C26: Limon (A< 20%) | D26: 170 | E26: 300 | F26: 120 | G26: 180 | H26: 80 | I26: 150
B27: Franche Comté | C27: Limon argileux | D27: 200 | E27: 400 | F27: 150 | G27: 220 | H27: 100 | I27: 150
B28: Franche Comté | C28: Limon argileux superficiel de plateaux | D28: 220 | E28: 400 | F28: 170 | G28: 240 | H28: 100 | I28: 170
B29: Franche Comté | C29: Sols argileux de vallées | D29: 250 | E29: 450 | F29: 200 | G29: 270 | H29: 150 | I29: 200
B30: Franche Comté | C30: Sols argileux, calcaires de vallées | D30: 250 | E30: 300 | F30: 200 | G30: 300 | H30: 100 | I30: 180
B31: Franche Comté | C31: Limons hydromorphes | D31: 180 | E31: 300 | F31: 130 | G31: 190 | H31: 80 | I31: 160
B32: Franche Comté | C32: Argiles hydromorphes de vallées | D32: 260 | E32: 450 | F32: 210 | G32: 280 | H32: 150 | I32: 210
B33: Bourgogne | C33: Argilo-calcaire superficiel | D33: 300 | E33: 450 | F33: 300 | G33: 400 | H33: 150 | I33: 300
B34: Bourgogne | C34: Argilo-calcaire profond | D34: 250 | E34: 300 | F34: 200 | G34: 300 | H34: 100 | I34: 180
B35: Bourgogne | C35: Limons et argiles profonds | D35: 200 | E35: 300 | F35: 150 | G35: 220 | H35: 80 | I35: 150
B36: Bourgogne | C36: Limons battants | D36: 170 | E36: 300 | F36: 120 | G36: 180 | H36: 80 | I36: 150
B37: Bourgogne | C37: Sols sablo-graveleux | D37: 150 | E37: 200 | F37: 70 | G37: 120 | H37: 60 | I37: 100
B38: Bourgogne | C38: Alluvions argileuses | D38: 250 | E38: 450 | F38: 200 | G38: 290 | H38: 150 | I38: 200
B39: Centre limousin | C39: Argilo-calcaire superficiel caillouteux | D39: 300 | E39: 400 | F39: 300 | G39: 400 | H39: 150 | I39: 300
B40: Centre limousin | C40: Argilo-calcaire profond peu caillouteux | D40: 200 | E40: 300 | F40: 200 | G40: 300 | H40: 100 | I40: 180
B41: Centre limousin | C41: Limon argileux | D41: 200 | E41: 400 | F41: 150 | G41: 220 | H41: 100 | I41: 150
B42: Centre limousin | C42: Limon battant | D42: 170 | E42: 300 | F42: 120 | G42: 180 | H42: 80 | I42: 150
B43: Centre limousin | C43: Sable | D43: 150 | E43: 200 | F43: 70 | G43: 120 | H43: 40 | I43: 100
B44: Centre limousin | C44: Limon sableux | D44: 170 | E44: 300 | F44: 120 | G44: 180 | H44: 80 | I44: 150
B45: Centre limousin | C45: Limons sur argile à silex | D45: 180 | E45: 310 | F45: 130 | G45: 190 | H45: 90 | I45: 160
B46: Centre limousin | C46: Argile lourde | D46: 250 | E46: 450 | F46: 200 | G46: 270 | H46: 150 | I46: 200
B47: Centre Bassin parisien | C47: Limon battant | D47: 170 | E47: 300 | F47: 120 | G47: 180 | H47: 80 | I47: 150
B48: Centre Bassin parisien | C48: Limon de Beauce | D48: 200 | E48: 400 | F48: 150 | G48: 220 | H48: 100 | I48: 150
B49: Centre Bassin parisien | C49: Sable | D49: 150 | E49: 200 | F49: 70 | G49: 120 | H49: 40 | I49: 100
B50: Centre Bassin parisien | C50: Limon sableux | D50: 170 | E50: 250 | F50: 120 | G50: 180 | H50: 80 | I50: 150
B51: Centre Bassin parisien | C51: Argilo-calcaire superficiel caillouteux | D51: 300 | E51: 400 | F51: 300 | G51: 400 | H51: 150 | I51: 300
B52: Centre Bassin parisien | C52: Argilo-calcaire profond peu caillouteux | D52: 200 | E52: 300 | F52: 200 | G52: 300 | H52: 100 | I52: 180
B53: Centre Bassin parisien | C53: Argio-calcaire de Beauce | D53: 170 | E53: 300 | F53: 170 | G53: 250 | H53: 100 | I53: 200
B54: Haute Normandie | C54: Limon des plateaux | D54: 170 | E54: 300 | F54: 120 | G54: 180 | H54: 80 | I54: 150
B55: Haute Normandie | C55: Limon caillouteux sur argile à silex | D55: 180 | E55: 310 | F55: 130 | G55: 190 | H55: 90 | I55: 160
B56: Haute Normandie | C56: Argilo-calcaire superficiel sur craie | D56: 350 | E56: 450 | F56: 300 | G56: 400 | H56: 150 | I56: 300
B57: Haute Normandie | C57: Sable caillouteux non calcaire | D57: 160 | E57: 200 | F57: 80 | G57: 160 | H57: 40 | I57: 110
B58: Basse Normandie | C58: Limon | D58: 170 | E58: 300 | F58: 120 | G58: 180 | H58: 80 | I58: 150
B59: Basse Normandie | C59: Argilo-calcaire | D59: 250 | E59: 300 | F59: 200 | G59: 300 | H59: 100 | I59: 180
B60: Basse Normandie | C60: Sable | D60: 160 | E60: 200 | F60: 90 | G60: 160 | H60: 50 | I60: 110
B61: Basse Normandie | C61: Terres lourdes | D61: 250 | E61: 450 | F61: 200 | G61: 270 | H61: 150 | I61: 200
B62: Bretagne pays de la Loire | C62: Limon sain et Limon sableux | D62: 170 | E62: 300 | F62: 120 | G62: 180 | H62: 80 | I62: 150
B63: Bretagne pays de la Loire | C63: Limon caillouteux superficiel | D63: 190 | E63: 320 | F63: 140 | G63: 200 | H63: 100 | I63: 170
B64: Bretagne pays de la Loire | C64: Sable | D64: 100 | E64: 150 | F64: 70 | G64: 100 | H64: 50 | I64: 100
B65: Bretagne pays de la Loire | C65: Argilo-calcaire profond sur marne | D65: 250 | E65: 300 | F65: 200 | G65: 300 | H65: 100 | I65: 180
B66: Bretagne pays de la Loire | C66: Argilo-calcaire superficiel | D66: 400 | E66: 450 | F66: 300 | G66: 400 | H66: 150 | I66: 300
B67: Poitou Charente | C67: Terres de Groie | D67: 450 | E67: 500 | F67: 250 | G67: 450 | H67: 150 | I67: 300
B68: Poitou Charente | C68: Argilo-calcaire profond sur calcaire marneux | D68: 300 | E68: 350 | F68: 200 | G68: 300 | H68: 100 | I68: 180
B69: Poitou Charente | C69: Aubue lègère et champagne superficielle | D69: 200 | E69: 400 | F69: 80 | G69: 250 | H69: 50 | I69: 100
B70: Poitou Charente | C70: Aubue lourde et champagne profonde | D70: 200 | E70: 400 | F70: 80 | G70: 250 | H70: 50 | I70: 100
B71: Poitou Charente | C71: Limon, terres rouge, bomais, doucin limoneux | D71: 170 | E71: 300 | F71: 120 | G71: 180 | H71: 80 | I71: 150
B72: Poitou Charente | C72: Sol sableux | D72: 160 | E72: 200 | F72: 90 | G72: 130 | H72: 50 | I72: 130
B73: Haute Marne | C73: Limon | D73: 170 | E73: 300 | F73: 120 | G73: 180 | H73: 80 | I73: 150
B74: Haute Marne | C74: Sols superficiels du Barrois et autres sols argileux à 30% argile | D74: 250 | E74: 300 | F74: 200 | G74: 300 | H74: 100 | I74: 180
B75: Haute Marne | C75: Sols superficiels du Barrois et autres sols argileux à 40% argile | D75: 350 | E75: 450 | F75: 300 | G75: 400 | H75: 100 | I75: 300
B76: Auvergne | C76: Terre noire | D76: 250 | E76: 300 | F76: 200 | G76: 300 | H76: 100 | I76: 180
B77: Auvergne | C77: Argilo-calcaire | D77: 250 | E77: 300 | F77: 200 | G77: 300 | H77: 100 | I77: 180
B78: Auvergne | C78: Granitique | D78: 170 | E78: 300 | F78: 120 | G78: 160 | H78: 80 | I78: 150
B79: Auvergne | C79: Sologne | D79: 200 | E79: 300 | F79: 120 | G79: 220 | H79: 80 | I79: 150
B80: Auvergne | C80: Alluvions recentes (sableuses) | D80: 100 | E80: 150 | F80: 70 | G80: 100 | H80: 60 | I80: 100
B81: Rhône Alpes Saône et Loire | C81: Varenne | D81: 130 | E81: 230 | F81: 100 | G81: 170 | H81: 80 | I81: 130
B82: Rhône Alpes Saône et Loire | C82: Gravier, dilivium | D82: 110 | E82: 210 | F82: 80 | G82: 150 | H82: 60 | I82: 110
B83: Rhône Alpes Saône et Loire | C83: Limon blanc sain | D83: 170 | E83: 300 | F83: 120 | G83: 180 | H83: 80 | I83: 150
B84: Rhône Alpes Saône et Loire | C84: Limon blanc humide | D84: 180 | E84: 310 | F84: 130 | G84: 190 | H84: 90 | I84: 160
B85: Rhône Alpes Saône et Loire | C85: Limon argileux sain | D85: 200 | E85: 400 | F85: 150 | G85: 220 | H85: 100 | I85: 150
B86: Rhône Alpes Saône et Loire | C86: Limon argileux humide | D86: 210 | E86: 410 | F86: 160 | G86: 230 | H86: 110 | I86: 160
B87: Rhône Alpes Saône et Loire | C87: Argilo-calcaire profond | D87: 250 | E87: 300 | F87: 200 | G87: 300 | H87: 100 | I87: 180
B88: Rhône Alpes Saône et Loire | C88: Argilo-calcaire superficiel | D88: 350 | E88: 450 | F88: 300 | G88: 450 | H88: 150 | I88: 300
B89: Sud Ouest | C89: Sols acides limoneux ou argileux (boulbènes, alluvions,Ségala) | D89: 150 | E89: 200 | F89: 80 | G89: 120 | H89: 40 | I89: 120
B90: Sud Ouest | C90: Sols basiques ou argilo-calcaires (terreforts, alluvions) | D90: 150 | E90: 200 | F90: 80 | G90: 120 | H90: 40 | I90: 120

Sheet BDD_Phosphore
D1: Seuil P2O5 en mg/kg - Méthode Joret Hebert
D2: Très exigeant | F2: Moyennement exigeant | H2: peu exigeant
B3: Région | C3: Type de sols | D3: T renforcé | E3: T impasse | F3: T renforcé | G3: T impasse | H3: T renforcé | I3: T impasse | K3: Code | L3: Ligne
B4: Nord Picardie | C4: Limons battants | D4: =IF(PK!$E$5=1, BDD_Phosphore_JH!D4, IF(PK!$E$5=2, BDD_Phosphore_Olsen!C4, BDD_Phosphore_Dyer!C4)) -> 50 | E4: =IF(PK!$E$5=1, BDD_Phosphore_JH!E4, IF(PK!$E$5=2, BDD_Phosphore_Olsen!D4, BDD_Phosphore_Dyer!D4)) -> 80 | F4: =IF(PK!$E$5=1, BDD_Phosphore_JH!F4, IF(PK!$E$5=2, BDD_Phosphore_Olsen!E4, BDD_Phosphore_Dyer!E4)) -> 50 | G4: =IF(PK!$E$5=1, BDD_Phosphore_JH!G4, IF(PK!$E$5=2, BDD_Phosphore_Olsen!F4, BDD_Phosphore_Dyer!F4)) -> 80 | H4: =IF(PK!$E$5=1, BDD_Phosphore_JH!H4, IF(PK!$E$5=2, BDD_Phosphore_Olsen!G4, BDD_Phosphore_Dyer!G4)) -> 20 | I4: =IF(PK!$E$5=1, BDD_Phosphore_JH!I4, IF(PK!$E$5=2, BDD_Phosphore_Olsen!H4, BDD_Phosphore_Dyer!H4)) -> 70 | K4: 11 | L4: 1
B5: Nord Picardie | C5: Limon argileux | D5: =IF(PK!$E$5=1, BDD_Phosphore_JH!D5, IF(PK!$E$5=2, BDD_Phosphore_Olsen!C5, BDD_Phosphore_Dyer!C5)) -> 50 | E5: =IF(PK!$E$5=1, BDD_Phosphore_JH!E5, IF(PK!$E$5=2, BDD_Phosphore_Olsen!D5, BDD_Phosphore_Dyer!D5)) -> 80 | F5: =IF(PK!$E$5=1, BDD_Phosphore_JH!F5, IF(PK!$E$5=2, BDD_Phosphore_Olsen!E5, BDD_Phosphore_Dyer!E5)) -> 50 | G5: =IF(PK!$E$5=1, BDD_Phosphore_JH!G5, IF(PK!$E$5=2, BDD_Phosphore_Olsen!F5, BDD_Phosphore_Dyer!F5)) -> 80 | H5: =IF(PK!$E$5=1, BDD_Phosphore_JH!H5, IF(PK!$E$5=2, BDD_Phosphore_Olsen!G5, BDD_Phosphore_Dyer!G5)) -> 20 | I5: =IF(PK!$E$5=1, BDD_Phosphore_JH!I5, IF(PK!$E$5=2, BDD_Phosphore_Olsen!H5, BDD_Phosphore_Dyer!H5)) -> 70 | K5: 12 | L5: 2
B6: Nord Picardie | C6: Argiles | D6: =IF(PK!$E$5=1, BDD_Phosphore_JH!D6, IF(PK!$E$5=2, BDD_Phosphore_Olsen!C6, BDD_Phosphore_Dyer!C6)) -> 50 | E6: =IF(PK!$E$5=1, BDD_Phosphore_JH!E6, IF(PK!$E$5=2, BDD_Phosphore_Olsen!D6, BDD_Phosphore_Dyer!D6)) -> 80 | F6: =IF(PK!$E$5=1, BDD_Phosphore_JH!F6, IF(PK!$E$5=2, BDD_Phosphore_Olsen!E6, BDD_Phosphore_Dyer!E6)) -> 50 | G6: =IF(PK!$E$5=1, BDD_Phosphore_JH!G6, IF(PK!$E$5=2, BDD_Phosphore_Olsen!F6, BDD_Phosphore_Dyer!F6)) -> 80 | H6: =IF(PK!$E$5=1, BDD_Phosphore_JH!H6, IF(PK!$E$5=2, BDD_Phosphore_Olsen!G6, BDD_Phosphore_Dyer!G6)) -> 20 | I6: =IF(PK!$E$5=1, BDD_Phosphore_JH!I6, IF(PK!$E$5=2, BDD_Phosphore_Olsen!H6, BDD_Phosphore_Dyer!H6)) -> 70 | K6: 13 | L6: 3
B7: Nord Picardie | C7: Cranettes | D7: =IF(PK!$E$5=1, BDD_Phosphore_JH!D7, IF(PK!$E$5=2, BDD_Phosphore_Olsen!C7, BDD_Phosphore_Dyer!C7)) -> 145 | E7: =IF(PK!$E$5=1, BDD_Phosphore_JH!E7, IF(PK!$E$5=2, BDD_Phosphore_Olsen!D7, BDD_Phosphore_Dyer!D7)) -> 210 | F7: =IF(PK!$E$5=1, BDD_Phosphore_JH!F7, IF(PK!$E$5=2, BDD_Phosphore_Olsen!E7, BDD_Phosphore_Dyer!E7)) -> 130 | G7: =IF(PK!$E$5=1, BDD_Phosphore_JH!G7, IF(PK!$E$5=2, BDD_Phosphore_Olsen!F7, BDD_Phosphore_Dyer!F7)) -> 150 | H7: =IF(PK!$E$5=1, BDD_Phosphore_JH!H7, IF(PK!$E$5=2, BDD_Phosphore_Olsen!G7, BDD_Phosphore_Dyer!G7)) -> 60 | I7: =IF(PK!$E$5=1, BDD_Phosphore_JH!I7, IF(PK!$E$5=2, BDD_Phosphore_Olsen!H7, BDD_Phosphore_Dyer!H7)) -> 135 | K7: 14 | L7: 4
B8: Champagne Ardenne | C8: Craie | D8: =IF(PK!$E$5=1, BDD_Phosphore_JH!D8, IF(PK!$E$5=2, BDD_Phosphore_Olsen!C8, BDD_Phosphore_Dyer!C8)) -> 145 | E8: =IF(PK!$E$5=1, BDD_Phosphore_JH!E8, IF(PK!$E$5=2, BDD_Phosphore_Olsen!D8, BDD_Phosphore_Dyer!D8)) -> 210 | F8: =IF(PK!$E$5=1, BDD_Phosphore_JH!F8, IF(PK!$E$5=2, BDD_Phosphore_Olsen!E8, BDD_Phosphore_Dyer!E8)) -> 130 | G8: =IF(PK!$E$5=1, BDD_Phosphore_JH!G8, IF(PK!$E$5=2, BDD_Phosphore_Olsen!F8, BDD_Phosphore_Dyer!F8)) -> 150 | H8: =IF(PK!$E$5=1, BDD_Phosphore_JH!H8, IF(PK!$E$5=2, BDD_Phosphore_Olsen!G8, BDD_Phosphore_Dyer!G8)) -> 60 | I8: =IF(PK!$E$5=1, BDD_Phosphore_JH!I8, IF(PK!$E$5=2, BDD_Phosphore_Olsen!H8, BDD_Phosphore_Dyer!H8)) -> 135 | K8: 21 | L8: 5
B9: Champagne Ardenne | C9: Limon | D9: =IF(PK!$E$5=1, BDD_Phosphore_JH!D9, IF(PK!$E$5=2, BDD_Phosphore_Olsen!C9, BDD_Phosphore_Dyer!C9)) -> 50 | E9: =IF(PK!$E$5=1, BDD_Phosphore_JH!E9, IF(PK!$E$5=2, BDD_Phosphore_Olsen!D9, BDD_Phosphore_Dyer!D9)) -> 80 | F9: =IF(PK!$E$5=1, BDD_Phosphore_JH!F9, IF(PK!$E$5=2, BDD_Phosphore_Olsen!E9, BDD_Phosphore_Dyer!E9)) -> 50 | G9: =IF(PK!$E$5=1, BDD_Phosphore_JH!G9, IF(PK!$E$5=2, BDD_Phosphore_Olsen!F9, BDD_Phosphore_Dyer!F9)) -> 80 | H9: =IF(PK!$E$5=1, BDD_Phosphore_JH!H9, IF(PK!$E$5=2, BDD_Phosphore_Olsen!G9, BDD_Phosphore_Dyer!G9)) -> 20 | I9: =IF(PK!$E$5=1, BDD_Phosphore_JH!I9, IF(PK!$E$5=2, BDD_Phosphore_Olsen!H9, BDD_Phosphore_Dyer!H9)) -> 70 | K9: 22 | L9: 6
B10: Champagne Ardenne | C10: Limon argileux | D10: =IF(PK!$E$5=1, BDD_Phosphore_JH!D10, IF(PK!$E$5=2, BDD_Phosphore_Olsen!C10, BDD_Phosphore_Dyer!C10)) -> 50 | E10: =IF(PK!$E$5=1, BDD_Phosphore_JH!E10, IF(PK!$E$5=2, BDD_Phosphore_Olsen!D10, BDD_Phosphore_Dyer!D10)) -> 80 | F10: =IF(PK!$E$5=1, BDD_Phosphore_JH!F10, IF(PK!$E$5=2, BDD_Phosphore_Olsen!E10, BDD_Phosphore_Dyer!E10)) -> 50 | G10: =IF(PK!$E$5=1, BDD_Phosphore_JH!G10, IF(PK!$E$5=2, BDD_Phosphore_Olsen!F10, BDD_Phosphore_Dyer!F10)) -> 80 | H10: =IF(PK!$E$5=1, BDD_Phosphore_JH!H10, IF(PK!$E$5=2, BDD_Phosphore_Olsen!G10, BDD_Phosphore_Dyer!G10)) -> 20 | I10: =IF(PK!$E$5=1, BDD_Phosphore_JH!I10, IF(PK!$E$5=2, BDD_Phosphore_Olsen!H10, BDD_Phosphore_Dyer!H10)) -> 70 | K10: 23 | L10: 7
B11: Champagne Ardenne | C11: Argilo-calcaire superficiel | D11: =IF(PK!$E$5=1, BDD_Phosphore_JH!D11, IF(PK!$E$5=2, BDD_Phosphore_Olsen!C11, BDD_Phosphore_Dyer!C11)) -> 60 | E11: =IF(PK!$E$5=1, BDD_Phosphore_JH!E11, IF(PK!$E$5=2, BDD_Phosphore_Olsen!D11, BDD_Phosphore_Dyer!D11)) -> 90 | F11: =IF(PK!$E$5=1, BDD_Phosphore_JH!F11, IF(PK!$E$5=2, BDD_Phosphore_Olsen!E11, BDD_Phosphore_Dyer!E11)) -> 60 | G11: =IF(PK!$E$5=1, BDD_Phosphore_JH!G11, IF(PK!$E$5=2, BDD_Phosphore_Olsen!F11, BDD_Phosphore_Dyer!F11)) -> 90 | H11: =IF(PK!$E$5=1, BDD_Phosphore_JH!H11, IF(PK!$E$5=2, BDD_Phosphore_Olsen!G11, BDD_Phosphore_Dyer!G11)) -> 30 | I11: =IF(PK!$E$5=1, BDD_Phosphore_JH!I11, IF(PK!$E$5=2, BDD_Phosphore_Olsen!H11, BDD_Phosphore_Dyer!H11)) -> 80 | K11: 24 | L11: 8
B12: Champagne Ardenne | C12: Argilo-calcaire profond | D12: =IF(PK!$E$5=1, BDD_Phosphore_JH!D12, IF(PK!$E$5=2, BDD_Phosphore_Olsen!C12, BDD_Phosphore_Dyer!C12)) -> 60 | E12: =IF(PK!$E$5=1, BDD_Phosphore_JH!E12, IF(PK!$E$5=2, BDD_Phosphore_Olsen!D12, BDD_Phosphore_Dyer!D12)) -> 90 | F12: =IF(PK!$E$5=1, BDD_Phosphore_JH!F12, IF(PK!$E$5=2, BDD_Phosphore_Olsen!E12, BDD_Phosphore_Dyer!E12)) -> 60 | G12: =IF(PK!$E$5=1, BDD_Phosphore_JH!G12, IF(PK!$E$5=2, BDD_Phosphore_Olsen!F12, BDD_Phosphore_Dyer!F12)) -> 90 | H12: =IF(PK!$E$5=1, BDD_Phosphore_JH!H12, IF(PK!$E$5=2, BDD_Phosphore_Olsen!G12, BDD_Phosphore_Dyer!G12)) -> 30 | I12: =IF(PK!$E$5=1, BDD_Phosphore_JH!I12, IF(PK!$E$5=2, BDD_Phosphore_Olsen!H12, BDD_Phosphore_Dyer!H12)) -> 80 | K12: 25 | L12: 9
B13: Champagne Ardenne | C13: Sable | D13: =IF(PK!$E$5=1, BDD_Phosphore_JH!D13, IF(PK!$E$5=2, BDD_Phosphore_Olsen!C13, BDD_Phosphore_Dyer!C13)) -> 50 | E13: =IF(PK!$E$5=1, BDD_Phosphore_JH!E13, IF(PK!$E$5=2, BDD_Phosphore_Olsen!D13, BDD_Phosphore_Dyer!D13)) -> 80 | F13: =IF(PK!$E$5=1, BDD_Phosphore_JH!F13, IF(PK!$E$5=2, BDD_Phosphore_Olsen!E13, BDD_Phosphore_Dyer!E13)) -> 50 | G13: =IF(PK!$E$5=1, BDD_Phosphore_JH!G13, IF(PK!$E$5=2, BDD_Phosphore_Olsen!F13, BDD_Phosphore_Dyer!F13)) -> 80 | H13: =IF(PK!$E$5=1, BDD_Phosphore_JH!H13, IF(PK!$E$5=2, BDD_Phosphore_Olsen!G13, BDD_Phosphore_Dyer!G13)) -> 20 | I13: =IF(PK!$E$5=1, BDD_Phosphore_JH!I13, IF(PK!$E$5=2, BDD_Phosphore_Olsen!H13, BDD_Phosphore_Dyer!H13)) -> 70 | K13: 26 | L13: 10
B14: Lorraine | C14: Argilo-calcaire profond | D14: =IF(PK!$E$5=1, BDD_Phosphore_JH!D14, IF(PK!$E$5=2, BDD_Phosphore_Olsen!C14, BDD_Phosphore_Dyer!C14)) -> 60 | E14: =IF(PK!$E$5=1, BDD_Phosphore_JH!E14, IF(PK!$E$5=2, BDD_Phosphore_Olsen!D14, BDD_Phosphore_Dyer!D14)) -> 90 | F14: =IF(PK!$E$5=1, BDD_Phosphore_JH!F14, IF(PK!$E$5=2, BDD_Phosphore_Olsen!E14, BDD_Phosphore_Dyer!E14)) -> 60 | G14: =IF(PK!$E$5=1, BDD_Phosphore_JH!G14, IF(PK!$E$5=2, BDD_Phosphore_Olsen!F14, BDD_Phosphore_Dyer!F14)) -> 90 | H14: =IF(PK!$E$5=1, BDD_Phosphore_JH!H14, IF(PK!$E$5=2, BDD_Phosphore_Olsen!G14, BDD_Phosphore_Dyer!G14)) -> 30 | I14: =IF(PK!$E$5=1, BDD_Phosphore_JH!I14, IF(PK!$E$5=2, BDD_Phosphore_Olsen!H14, BDD_Phosphore_Dyer!H14)) -> 80 | K14: 31 | L14: 11
B15: Lorraine | C15: Argilo-calcaire superficiel | D15: =IF(PK!$E$5=1, BDD_Phosphore_JH!D15, IF(PK!$E$5=2, BDD_Phosphore_Olsen!C15, BDD_Phosphore_Dyer!C15)) -> 60 | E15: =IF(PK!$E$5=1, BDD_Phosphore_JH!E15, IF(PK!$E$5=2, BDD_Phosphore_Olsen!D15, BDD_Phosphore_Dyer!D15)) -> 90 | F15: =IF(PK!$E$5=1, BDD_Phosphore_JH!F15, IF(PK!$E$5=2, BDD_Phosphore_Olsen!E15, BDD_Phosphore_Dyer!E15)) -> 60 | G15: =IF(PK!$E$5=1, BDD_Phosphore_JH!G15, IF(PK!$E$5=2, BDD_Phosphore_Olsen!F15, BDD_Phosphore_Dyer!F15)) -> 90 | H15: =IF(PK!$E$5=1, BDD_Phosphore_JH!H15, IF(PK!$E$5=2, BDD_Phosphore_Olsen!G15, BDD_Phosphore_Dyer!G15)) -> 30 | I15: =IF(PK!$E$5=1, BDD_Phosphore_JH!I15, IF(PK!$E$5=2, BDD_Phosphore_Olsen!H15, BDD_Phosphore_Dyer!H15)) -> 80 | K15: 32 | L15: 12
B16: Lorraine | C16: Limons | D16: =IF(PK!$E$5=1, BDD_Phosphore_JH!D16, IF(PK!$E$5=2, BDD_Phosphore_Olsen!C16, BDD_Phosphore_Dyer!C16)) -> 50 | E16: =IF(PK!$E$5=1, BDD_Phosphore_JH!E16, IF(PK!$E$5=2, BDD_Phosphore_Olsen!D16, BDD_Phosphore_Dyer!D16)) -> 80 | F16: =IF(PK!$E$5=1, BDD_Phosphore_JH!F16, IF(PK!$E$5=2, BDD_Phosphore_Olsen!E16, BDD_Phosphore_Dyer!E16)) -> 50 | G16: =IF(PK!$E$5=1, BDD_Phosphore_JH!G16, IF(PK!$E$5=2, BDD_Phosphore_Olsen!F16, BDD_Phosphore_Dyer!F16)) -> 80 | H16: =IF(PK!$E$5=1, BDD_Phosphore_JH!H16, IF(PK!$E$5=2, BDD_Phosphore_Olsen!G16, BDD_Phosphore_Dyer!G16)) -> 20 | I16: =IF(PK!$E$5=1, BDD_Phosphore_JH!I16, IF(PK!$E$5=2, BDD_Phosphore_Olsen!H16, BDD_Phosphore_Dyer!H16)) -> 70 | K16: 33 | L16: 13
B17: Lorraine | C17: Limon argileux | D17: =IF(PK!$E$5=1, BDD_Phosphore_JH!D17, IF(PK!$E$5=2, BDD_Phosphore_Olsen!C17, BDD_Phosphore_Dyer!C17)) -> 50 | E17: =IF(PK!$E$5=1, BDD_Phosphore_JH!E17, IF(PK!$E$5=2, BDD_Phosphore_Olsen!D17, BDD_Phosphore_Dyer!D17)) -> 80 | F17: =IF(PK!$E$5=1, BDD_Phosphore_JH!F17, IF(PK!$E$5=2, BDD_Phosphore_Olsen!E17, BDD_Phosphore_Dyer!E17)) -> 50 | G17: =IF(PK!$E$5=1, BDD_Phosphore_JH!G17, IF(PK!$E$5=2, BDD_Phosphore_Olsen!F17, BDD_Phosphore_Dyer!F17)) -> 80 | H17: =IF(PK!$E$5=1, BDD_Phosphore_JH!H17, IF(PK!$E$5=2, BDD_Phosphore_Olsen!G17, BDD_Phosphore_Dyer!G17)) -> 20 | I17: =IF(PK!$E$5=1, BDD_Phosphore_JH!I17, IF(PK!$E$5=2, BDD_Phosphore_Olsen!H17, BDD_Phosphore_Dyer!H17)) -> 70 | K17: 34 | L17: 14
B18: Lorraine | C18: Argiles lourdes | D18: =IF(PK!$E$5=1, BDD_Phosphore_JH!D18, IF(PK!$E$5=2, BDD_Phosphore_Olsen!C18, BDD_Phosphore_Dyer!C18)) -> 50 | E18: =IF(PK!$E$5=1, BDD_Phosphore_JH!E18, IF(PK!$E$5=2, BDD_Phosphore_Olsen!D18, BDD_Phosphore_Dyer!D18)) -> 80 | F18: =IF(PK!$E$5=1, BDD_Phosphore_JH!F18, IF(PK!$E$5=2, BDD_Phosphore_Olsen!E18, BDD_Phosphore_Dyer!E18)) -> 50 | G18: =IF(PK!$E$5=1, BDD_Phosphore_JH!G18, IF(PK!$E$5=2, BDD_Phosphore_Olsen!F18, BDD_Phosphore_Dyer!F18)) -> 80 | H18: =IF(PK!$E$5=1, BDD_Phosphore_JH!H18, IF(PK!$E$5=2, BDD_Phosphore_Olsen!G18, BDD_Phosphore_Dyer!G18)) -> 20 | I18: =IF(PK!$E$5=1, BDD_Phosphore_JH!I18, IF(PK!$E$5=2, BDD_Phosphore_Olsen!H18, BDD_Phosphore_Dyer!H18)) -> 70 | K18: 35 | L18: 15
B19: Alsace | C19: Limons loess | D19: =IF(PK!$E$5=1, BDD_Phosphore_JH!D19, IF(PK!$E$5=2, BDD_Phosphore_Olsen!C19, BDD_Phosphore_Dyer!C19)) -> 50 | E19: =IF(PK!$E$5=1, BDD_Phosphore_JH!E19, IF(PK!$E$5=2, BDD_Phosphore_Olsen!D19, BDD_Phosphore_Dyer!D19)) -> 80 | F19: =IF(PK!$E$5=1, BDD_Phosphore_JH!F19, IF(PK!$E$5=2, BDD_Phosphore_Olsen!E19, BDD_Phosphore_Dyer!E19)) -> 50 | G19: =IF(PK!$E$5=1, BDD_Phosphore_JH!G19, IF(PK!$E$5=2, BDD_Phosphore_Olsen!F19, BDD_Phosphore_Dyer!F19)) -> 80 | H19: =IF(PK!$E$5=1, BDD_Phosphore_JH!H19, IF(PK!$E$5=2, BDD_Phosphore_Olsen!G19, BDD_Phosphore_Dyer!G19)) -> 20 | I19: =IF(PK!$E$5=1, BDD_Phosphore_JH!I19, IF(PK!$E$5=2, BDD_Phosphore_Olsen!H19, BDD_Phosphore_Dyer!H19)) -> 70 | K19: 41 | L19: 16
B20: Alsace | C20: Alluvions de l'Ill | D20: =IF(PK!$E$5=1, BDD_Phosphore_JH!D20, IF(PK!$E$5=2, BDD_Phosphore_Olsen!C20, BDD_Phosphore_Dyer!C20)) -> 50 | E20: =IF(PK!$E$5=1, BDD_Phosphore_JH!E20, IF(PK!$E$5=2, BDD_Phosphore_Olsen!D20, BDD_Phosphore_Dyer!D20)) -> 80 | F20: =IF(PK!$E$5=1, BDD_Phosphore_JH!F20, IF(PK!$E$5=2, BDD_Phosphore_Olsen!E20, BDD_Phosphore_Dyer!E20)) -> 50 | G20: =IF(PK!$E$5=1, BDD_Phosphore_JH!G20, IF(PK!$E$5=2, BDD_Phosphore_Olsen!F20, BDD_Phosphore_Dyer!F20)) -> 80 | H20: =IF(PK!$E$5=1, BDD_Phosphore_JH!H20, IF(PK!$E$5=2, BDD_Phosphore_Olsen!G20, BDD_Phosphore_Dyer!G20)) -> 20 | I20: =IF(PK!$E$5=1, BDD_Phosphore_JH!I20, IF(PK!$E$5=2, BDD_Phosphore_Olsen!H20, BDD_Phosphore_Dyer!H20)) -> 70 | K20: 42 | L20: 17
B21: Alsace | C21: Limons lehm | D21: =IF(PK!$E$5=1, BDD_Phosphore_JH!D21, IF(PK!$E$5=2, BDD_Phosphore_Olsen!C21, BDD_Phosphore_Dyer!C21)) -> 50 | E21: =IF(PK!$E$5=1, BDD_Phosphore_JH!E21, IF(PK!$E$5=2, BDD_Phosphore_Olsen!D21, BDD_Phosphore_Dyer!D21)) -> 80 | F21: =IF(PK!$E$5=1, BDD_Phosphore_JH!F21, IF(PK!$E$5=2, BDD_Phosphore_Olsen!E21, BDD_Phosphore_Dyer!E21)) -> 50 | G21: =IF(PK!$E$5=1, BDD_Phosphore_JH!G21, IF(PK!$E$5=2, BDD_Phosphore_Olsen!F21, BDD_Phosphore_Dyer!F21)) -> 80 | H21: =IF(PK!$E$5=1, BDD_Phosphore_JH!H21, IF(PK!$E$5=2, BDD_Phosphore_Olsen!G21, BDD_Phosphore_Dyer!G21)) -> 20 | I21: =IF(PK!$E$5=1, BDD_Phosphore_JH!I21, IF(PK!$E$5=2, BDD_Phosphore_Olsen!H21, BDD_Phosphore_Dyer!H21)) -> 70 | K21: 43 | L21: 18
B22: Alsace | C22: Hardt superficielle, Ried brun caillouteux | D22: =IF(PK!$E$5=1, BDD_Phosphore_JH!D22, IF(PK!$E$5=2, BDD_Phosphore_Olsen!C22, BDD_Phosphore_Dyer!C22)) -> 60 | E22: =IF(PK!$E$5=1, BDD_Phosphore_JH!E22, IF(PK!$E$5=2, BDD_Phosphore_Olsen!D22, BDD_Phosphore_Dyer!D22)) -> 90 | F22: =IF(PK!$E$5=1, BDD_Phosphore_JH!F22, IF(PK!$E$5=2, BDD_Phosphore_Olsen!E22, BDD_Phosphore_Dyer!E22)) -> 60 | G22: =IF(PK!$E$5=1, BDD_Phosphore_JH!G22, IF(PK!$E$5=2, BDD_Phosphore_Olsen!F22, BDD_Phosphore_Dyer!F22)) -> 90 | H22: =IF(PK!$E$5=1, BDD_Phosphore_JH!H22, IF(PK!$E$5=2, BDD_Phosphore_Olsen!G22, BDD_Phosphore_Dyer!G22)) -> 30 | I22: =IF(PK!$E$5=1, BDD_Phosphore_JH!I22, IF(PK!$E$5=2, BDD_Phosphore_Olsen!H22, BDD_Phosphore_Dyer!H22)) -> 80 | K22: 44 | L22: 19
B23: Alsace | C23: Hardt profonde, Ried brun profond, basse plaine rhénane | D23: =IF(PK!$E$5=1, BDD_Phosphore_JH!D23, IF(PK!$E$5=2, BDD_Phosphore_Olsen!C23, BDD_Phosphore_Dyer!C23)) -> 60 | E23: =IF(PK!$E$5=1, BDD_Phosphore_JH!E23, IF(PK!$E$5=2, BDD_Phosphore_Olsen!D23, BDD_Phosphore_Dyer!D23)) -> 90 | F23: =IF(PK!$E$5=1, BDD_Phosphore_JH!F23, IF(PK!$E$5=2, BDD_Phosphore_Olsen!E23, BDD_Phosphore_Dyer!E23)) -> 60 | G23: =IF(PK!$E$5=1, BDD_Phosphore_JH!G23, IF(PK!$E$5=2, BDD_Phosphore_Olsen!F23, BDD_Phosphore_Dyer!F23)) -> 90 | H23: =IF(PK!$E$5=1, BDD_Phosphore_JH!H23, IF(PK!$E$5=2, BDD_Phosphore_Olsen!G23, BDD_Phosphore_Dyer!G23)) -> 30 | I23: =IF(PK!$E$5=1, BDD_Phosphore_JH!I23, IF(PK!$E$5=2, BDD_Phosphore_Olsen!H23, BDD_Phosphore_Dyer!H23)) -> 80 | K23: 45 | L23: 20
B24: Alsace | C24: Argilo-calcaire profond Alsace bossue, basse plaine sous-vosgienne | D24: =IF(PK!$E$5=1, BDD_Phosphore_JH!D24, IF(PK!$E$5=2, BDD_Phosphore_Olsen!C24, BDD_Phosphore_Dyer!C24)) -> 60 | E24: =IF(PK!$E$5=1, BDD_Phosphore_JH!E24, IF(PK!$E$5=2, BDD_Phosphore_Olsen!D24, BDD_Phosphore_Dyer!D24)) -> 90 | F24: =IF(PK!$E$5=1, BDD_Phosphore_JH!F24, IF(PK!$E$5=2, BDD_Phosphore_Olsen!E24, BDD_Phosphore_Dyer!E24)) -> 60 | G24: =IF(PK!$E$5=1, BDD_Phosphore_JH!G24, IF(PK!$E$5=2, BDD_Phosphore_Olsen!F24, BDD_Phosphore_Dyer!F24)) -> 90 | H24: =IF(PK!$E$5=1, BDD_Phosphore_JH!H24, IF(PK!$E$5=2, BDD_Phosphore_Olsen!G24, BDD_Phosphore_Dyer!G24)) -> 30 | I24: =IF(PK!$E$5=1, BDD_Phosphore_JH!I24, IF(PK!$E$5=2, BDD_Phosphore_Olsen!H24, BDD_Phosphore_Dyer!H24)) -> 80 | K24: 46 | L24: 21
B25: Alsace | C25: Argilo-calcaire caillouteux Alsace bossue, basse plaine sous-vosgienne | D25: =IF(PK!$E$5=1, BDD_Phosphore_JH!D25, IF(PK!$E$5=2, BDD_Phosphore_Olsen!C25, BDD_Phosphore_Dyer!C25)) -> 60 | E25: =IF(PK!$E$5=1, BDD_Phosphore_JH!E25, IF(PK!$E$5=2, BDD_Phosphore_Olsen!D25, BDD_Phosphore_Dyer!D25)) -> 90 | F25: =IF(PK!$E$5=1, BDD_Phosphore_JH!F25, IF(PK!$E$5=2, BDD_Phosphore_Olsen!E25, BDD_Phosphore_Dyer!E25)) -> 60 | G25: =IF(PK!$E$5=1, BDD_Phosphore_JH!G25, IF(PK!$E$5=2, BDD_Phosphore_Olsen!F25, BDD_Phosphore_Dyer!F25)) -> 90 | H25: =IF(PK!$E$5=1, BDD_Phosphore_JH!H25, IF(PK!$E$5=2, BDD_Phosphore_Olsen!G25, BDD_Phosphore_Dyer!G25)) -> 30 | I25: =IF(PK!$E$5=1, BDD_Phosphore_JH!I25, IF(PK!$E$5=2, BDD_Phosphore_Olsen!H25, BDD_Phosphore_Dyer!H25)) -> 80 | K25: 47 | L25: 22
B26: Franche Comté | C26: Limon (A< 20%) | D26: =IF(PK!$E$5=1, BDD_Phosphore_JH!D26, IF(PK!$E$5=2, BDD_Phosphore_Olsen!C26, BDD_Phosphore_Dyer!C26)) -> 50 | E26: =IF(PK!$E$5=1, BDD_Phosphore_JH!E26, IF(PK!$E$5=2, BDD_Phosphore_Olsen!D26, BDD_Phosphore_Dyer!D26)) -> 80 | F26: =IF(PK!$E$5=1, BDD_Phosphore_JH!F26, IF(PK!$E$5=2, BDD_Phosphore_Olsen!E26, BDD_Phosphore_Dyer!E26)) -> 50 | G26: =IF(PK!$E$5=1, BDD_Phosphore_JH!G26, IF(PK!$E$5=2, BDD_Phosphore_Olsen!F26, BDD_Phosphore_Dyer!F26)) -> 80 | H26: =IF(PK!$E$5=1, BDD_Phosphore_JH!H26, IF(PK!$E$5=2, BDD_Phosphore_Olsen!G26, BDD_Phosphore_Dyer!G26)) -> 20 | I26: =IF(PK!$E$5=1, BDD_Phosphore_JH!I26, IF(PK!$E$5=2, BDD_Phosphore_Olsen!H26, BDD_Phosphore_Dyer!H26)) -> 70 | K26: 51 | L26: 23
B27: Franche Comté | C27: Limon argileux | D27: =IF(PK!$E$5=1, BDD_Phosphore_JH!D27, IF(PK!$E$5=2, BDD_Phosphore_Olsen!C27, BDD_Phosphore_Dyer!C27)) -> 50 | E27: =IF(PK!$E$5=1, BDD_Phosphore_JH!E27, IF(PK!$E$5=2, BDD_Phosphore_Olsen!D27, BDD_Phosphore_Dyer!D27)) -> 80 | F27: =IF(PK!$E$5=1, BDD_Phosphore_JH!F27, IF(PK!$E$5=2, BDD_Phosphore_Olsen!E27, BDD_Phosphore_Dyer!E27)) -> 50 | G27: =IF(PK!$E$5=1, BDD_Phosphore_JH!G27, IF(PK!$E$5=2, BDD_Phosphore_Olsen!F27, BDD_Phosphore_Dyer!F27)) -> 80 | H27: =IF(PK!$E$5=1, BDD_Phosphore_JH!H27, IF(PK!$E$5=2, BDD_Phosphore_Olsen!G27, BDD_Phosphore_Dyer!G27)) -> 20 | I27: =IF(PK!$E$5=1, BDD_Phosphore_JH!I27, IF(PK!$E$5=2, BDD_Phosphore_Olsen!H27, BDD_Phosphore_Dyer!H27)) -> 70 | K27: 52 | L27: 24
B28: Franche Comté | C28: Limon argileux superficiel de plateaux | D28: =IF(PK!$E$5=1, BDD_Phosphore_JH!D28, IF(PK!$E$5=2, BDD_Phosphore_Olsen!C28, BDD_Phosphore_Dyer!C28)) -> 50 | E28: =IF(PK!$E$5=1, BDD_Phosphore_JH!E28, IF(PK!$E$5=2, BDD_Phosphore_Olsen!D28, BDD_Phosphore_Dyer!D28)) -> 80 | F28: =IF(PK!$E$5=1, BDD_Phosphore_JH!F28, IF(PK!$E$5=2, BDD_Phosphore_Olsen!E28, BDD_Phosphore_Dyer!E28)) -> 50 | G28: =IF(PK!$E$5=1, BDD_Phosphore_JH!G28, IF(PK!$E$5=2, BDD_Phosphore_Olsen!F28, BDD_Phosphore_Dyer!F28)) -> 80 | H28: =IF(PK!$E$5=1, BDD_Phosphore_JH!H28, IF(PK!$E$5=2, BDD_Phosphore_Olsen!G28, BDD_Phosphore_Dyer!G28)) -> 20 | I28: =IF(PK!$E$5=1, BDD_Phosphore_JH!I28, IF(PK!$E$5=2, BDD_Phosphore_Olsen!H28, BDD_Phosphore_Dyer!H28)) -> 70 | K28: 53 | L28: 25
B29: Franche Comté | C29: Sols argileux de vallées | D29: =IF(PK!$E$5=1, BDD_Phosphore_JH!D29, IF(PK!$E$5=2, BDD_Phosphore_Olsen!C29, BDD_Phosphore_Dyer!C29)) -> 50 | E29: =IF(PK!$E$5=1, BDD_Phosphore_JH!E29, IF(PK!$E$5=2, BDD_Phosphore_Olsen!D29, BDD_Phosphore_Dyer!D29)) -> 80 | F29: =IF(PK!$E$5=1, BDD_Phosphore_JH!F29, IF(PK!$E$5=2, BDD_Phosphore_Olsen!E29, BDD_Phosphore_Dyer!E29)) -> 50 | G29: =IF(PK!$E$5=1, BDD_Phosphore_JH!G29, IF(PK!$E$5=2, BDD_Phosphore_Olsen!F29, BDD_Phosphore_Dyer!F29)) -> 80 | H29: =IF(PK!$E$5=1, BDD_Phosphore_JH!H29, IF(PK!$E$5=2, BDD_Phosphore_Olsen!G29, BDD_Phosphore_Dyer!G29)) -> 20 | I29: =IF(PK!$E$5=1, BDD_Phosphore_JH!I29, IF(PK!$E$5=2, BDD_Phosphore_Olsen!H29, BDD_Phosphore_Dyer!H29)) -> 70 | K29: 54 | L29: 26
B30: Franche Comté | C30: Sols argileux, calcaires de vallées | D30: =IF(PK!$E$5=1, BDD_Phosphore_JH!D30, IF(PK!$E$5=2, BDD_Phosphore_Olsen!C30, BDD_Phosphore_Dyer!C30)) -> 60 | E30: =IF(PK!$E$5=1, BDD_Phosphore_JH!E30, IF(PK!$E$5=2, BDD_Phosphore_Olsen!D30, BDD_Phosphore_Dyer!D30)) -> 90 | F30: =IF(PK!$E$5=1, BDD_Phosphore_JH!F30, IF(PK!$E$5=2, BDD_Phosphore_Olsen!E30, BDD_Phosphore_Dyer!E30)) -> 60 | G30: =IF(PK!$E$5=1, BDD_Phosphore_JH!G30, IF(PK!$E$5=2, BDD_Phosphore_Olsen!F30, BDD_Phosphore_Dyer!F30)) -> 90 | H30: =IF(PK!$E$5=1, BDD_Phosphore_JH!H30, IF(PK!$E$5=2, BDD_Phosphore_Olsen!G30, BDD_Phosphore_Dyer!G30)) -> 30 | I30: =IF(PK!$E$5=1, BDD_Phosphore_JH!I30, IF(PK!$E$5=2, BDD_Phosphore_Olsen!H30, BDD_Phosphore_Dyer!H30)) -> 80 | K30: 55 | L30: 27
B31: Franche Comté | C31: Limons hydromorphes | D31: =IF(PK!$E$5=1, BDD_Phosphore_JH!D31, IF(PK!$E$5=2, BDD_Phosphore_Olsen!C31, BDD_Phosphore_Dyer!C31)) -> 50 | E31: =IF(PK!$E$5=1, BDD_Phosphore_JH!E31, IF(PK!$E$5=2, BDD_Phosphore_Olsen!D31, BDD_Phosphore_Dyer!D31)) -> 80 | F31: =IF(PK!$E$5=1, BDD_Phosphore_JH!F31, IF(PK!$E$5=2, BDD_Phosphore_Olsen!E31, BDD_Phosphore_Dyer!E31)) -> 50 | G31: =IF(PK!$E$5=1, BDD_Phosphore_JH!G31, IF(PK!$E$5=2, BDD_Phosphore_Olsen!F31, BDD_Phosphore_Dyer!F31)) -> 80 | H31: =IF(PK!$E$5=1, BDD_Phosphore_JH!H31, IF(PK!$E$5=2, BDD_Phosphore_Olsen!G31, BDD_Phosphore_Dyer!G31)) -> 20 | I31: =IF(PK!$E$5=1, BDD_Phosphore_JH!I31, IF(PK!$E$5=2, BDD_Phosphore_Olsen!H31, BDD_Phosphore_Dyer!H31)) -> 70 | K31: 56 | L31: 28
B32: Franche Comté | C32: Argiles hydromorphes de vallées | D32: =IF(PK!$E$5=1, BDD_Phosphore_JH!D32, IF(PK!$E$5=2, BDD_Phosphore_Olsen!C32, BDD_Phosphore_Dyer!C32)) -> 50 | E32: =IF(PK!$E$5=1, BDD_Phosphore_JH!E32, IF(PK!$E$5=2, BDD_Phosphore_Olsen!D32, BDD_Phosphore_Dyer!D32)) -> 80 | F32: =IF(PK!$E$5=1, BDD_Phosphore_JH!F32, IF(PK!$E$5=2, BDD_Phosphore_Olsen!E32, BDD_Phosphore_Dyer!E32)) -> 50 | G32: =IF(PK!$E$5=1, BDD_Phosphore_JH!G32, IF(PK!$E$5=2, BDD_Phosphore_Olsen!F32, BDD_Phosphore_Dyer!F32)) -> 80 | H32: =IF(PK!$E$5=1, BDD_Phosphore_JH!H32, IF(PK!$E$5=2, BDD_Phosphore_Olsen!G32, BDD_Phosphore_Dyer!G32)) -> 20 | I32: =IF(PK!$E$5=1, BDD_Phosphore_JH!I32, IF(PK!$E$5=2, BDD_Phosphore_Olsen!H32, BDD_Phosphore_Dyer!H32)) -> 70 | K32: 57 | L32: 29
B33: Bourgogne | C33: Argilo-calcaire superficiel | D33: =IF(PK!$E$5=1, BDD_Phosphore_JH!D33, IF(PK!$E$5=2, BDD_Phosphore_Olsen!C33, BDD_Phosphore_Dyer!C33)) -> 60 | E33: =IF(PK!$E$5=1, BDD_Phosphore_JH!E33, IF(PK!$E$5=2, BDD_Phosphore_Olsen!D33, BDD_Phosphore_Dyer!D33)) -> 90 | F33: =IF(PK!$E$5=1, BDD_Phosphore_JH!F33, IF(PK!$E$5=2, BDD_Phosphore_Olsen!E33, BDD_Phosphore_Dyer!E33)) -> 60 | G33: =IF(PK!$E$5=1, BDD_Phosphore_JH!G33, IF(PK!$E$5=2, BDD_Phosphore_Olsen!F33, BDD_Phosphore_Dyer!F33)) -> 90 | H33: =IF(PK!$E$5=1, BDD_Phosphore_JH!H33, IF(PK!$E$5=2, BDD_Phosphore_Olsen!G33, BDD_Phosphore_Dyer!G33)) -> 30 | I33: =IF(PK!$E$5=1, BDD_Phosphore_JH!I33, IF(PK!$E$5=2, BDD_Phosphore_Olsen!H33, BDD_Phosphore_Dyer!H33)) -> 80 | K33: 61 | L33: 30
B34: Bourgogne | C34: Argilo-calcaire profond | D34: =IF(PK!$E$5=1, BDD_Phosphore_JH!D34, IF(PK!$E$5=2, BDD_Phosphore_Olsen!C34, BDD_Phosphore_Dyer!C34)) -> 60 | E34: =IF(PK!$E$5=1, BDD_Phosphore_JH!E34, IF(PK!$E$5=2, BDD_Phosphore_Olsen!D34, BDD_Phosphore_Dyer!D34)) -> 90 | F34: =IF(PK!$E$5=1, BDD_Phosphore_JH!F34, IF(PK!$E$5=2, BDD_Phosphore_Olsen!E34, BDD_Phosphore_Dyer!E34)) -> 60 | G34: =IF(PK!$E$5=1, BDD_Phosphore_JH!G34, IF(PK!$E$5=2, BDD_Phosphore_Olsen!F34, BDD_Phosphore_Dyer!F34)) -> 90 | H34: =IF(PK!$E$5=1, BDD_Phosphore_JH!H34, IF(PK!$E$5=2, BDD_Phosphore_Olsen!G34, BDD_Phosphore_Dyer!G34)) -> 30 | I34: =IF(PK!$E$5=1, BDD_Phosphore_JH!I34, IF(PK!$E$5=2, BDD_Phosphore_Olsen!H34, BDD_Phosphore_Dyer!H34)) -> 80 | K34: 62 | L34: 31
B35: Bourgogne | C35: Limons et argiles profonds | D35: =IF(PK!$E$5=1, BDD_Phosphore_JH!D35, IF(PK!$E$5=2, BDD_Phosphore_Olsen!C35, BDD_Phosphore_Dyer!C35)) -> 50 | E35: =IF(PK!$E$5=1, BDD_Phosphore_JH!E35, IF(PK!$E$5=2, BDD_Phosphore_Olsen!D35, BDD_Phosphore_Dyer!D35)) -> 80 | F35: =IF(PK!$E$5=1, BDD_Phosphore_JH!F35, IF(PK!$E$5=2, BDD_Phosphore_Olsen!E35, BDD_Phosphore_Dyer!E35)) -> 50 | G35: =IF(PK!$E$5=1, BDD_Phosphore_JH!G35, IF(PK!$E$5=2, BDD_Phosphore_Olsen!F35, BDD_Phosphore_Dyer!F35)) -> 80 | H35: =IF(PK!$E$5=1, BDD_Phosphore_JH!H35, IF(PK!$E$5=2, BDD_Phosphore_Olsen!G35, BDD_Phosphore_Dyer!G35)) -> 20 | I35: =IF(PK!$E$5=1, BDD_Phosphore_JH!I35, IF(PK!$E$5=2, BDD_Phosphore_Olsen!H35, BDD_Phosphore_Dyer!H35)) -> 70 | K35: 63 | L35: 32
B36: Bourgogne | C36: Limons battants | D36: =IF(PK!$E$5=1, BDD_Phosphore_JH!D36, IF(PK!$E$5=2, BDD_Phosphore_Olsen!C36, BDD_Phosphore_Dyer!C36)) -> 50 | E36: =IF(PK!$E$5=1, BDD_Phosphore_JH!E36, IF(PK!$E$5=2, BDD_Phosphore_Olsen!D36, BDD_Phosphore_Dyer!D36)) -> 80 | F36: =IF(PK!$E$5=1, BDD_Phosphore_JH!F36, IF(PK!$E$5=2, BDD_Phosphore_Olsen!E36, BDD_Phosphore_Dyer!E36)) -> 50 | G36: =IF(PK!$E$5=1, BDD_Phosphore_JH!G36, IF(PK!$E$5=2, BDD_Phosphore_Olsen!F36, BDD_Phosphore_Dyer!F36)) -> 80 | H36: =IF(PK!$E$5=1, BDD_Phosphore_JH!H36, IF(PK!$E$5=2, BDD_Phosphore_Olsen!G36, BDD_Phosphore_Dyer!G36)) -> 20 | I36: =IF(PK!$E$5=1, BDD_Phosphore_JH!I36, IF(PK!$E$5=2, BDD_Phosphore_Olsen!H36, BDD_Phosphore_Dyer!H36)) -> 70 | K36: 64 | L36: 33
B37: Bourgogne | C37: Sols sablo-graveleux | D37: =IF(PK!$E$5=1, BDD_Phosphore_JH!D37, IF(PK!$E$5=2, BDD_Phosphore_Olsen!C37, BDD_Phosphore_Dyer!C37)) -> 50 | E37: =IF(PK!$E$5=1, BDD_Phosphore_JH!E37, IF(PK!$E$5=2, BDD_Phosphore_Olsen!D37, BDD_Phosphore_Dyer!D37)) -> 80 | F37: =IF(PK!$E$5=1, BDD_Phosphore_JH!F37, IF(PK!$E$5=2, BDD_Phosphore_Olsen!E37, BDD_Phosphore_Dyer!E37)) -> 50 | G37: =IF(PK!$E$5=1, BDD_Phosphore_JH!G37, IF(PK!$E$5=2, BDD_Phosphore_Olsen!F37, BDD_Phosphore_Dyer!F37)) -> 80 | H37: =IF(PK!$E$5=1, BDD_Phosphore_JH!H37, IF(PK!$E$5=2, BDD_Phosphore_Olsen!G37, BDD_Phosphore_Dyer!G37)) -> 20 | I37: =IF(PK!$E$5=1, BDD_Phosphore_JH!I37, IF(PK!$E$5=2, BDD_Phosphore_Olsen!H37, BDD_Phosphore_Dyer!H37)) -> 70 | K37: 65 | L37: 34
B38: Bourgogne | C38: Alluvions argileuses | D38: =IF(PK!$E$5=1, BDD_Phosphore_JH!D38, IF(PK!$E$5=2, BDD_Phosphore_Olsen!C38, BDD_Phosphore_Dyer!C38)) -> 50 | E38: =IF(PK!$E$5=1, BDD_Phosphore_JH!E38, IF(PK!$E$5=2, BDD_Phosphore_Olsen!D38, BDD_Phosphore_Dyer!D38)) -> 80 | F38: =IF(PK!$E$5=1, BDD_Phosphore_JH!F38, IF(PK!$E$5=2, BDD_Phosphore_Olsen!E38, BDD_Phosphore_Dyer!E38)) -> 50 | G38: =IF(PK!$E$5=1, BDD_Phosphore_JH!G38, IF(PK!$E$5=2, BDD_Phosphore_Olsen!F38, BDD_Phosphore_Dyer!F38)) -> 80 | H38: =IF(PK!$E$5=1, BDD_Phosphore_JH!H38, IF(PK!$E$5=2, BDD_Phosphore_Olsen!G38, BDD_Phosphore_Dyer!G38)) -> 20 | I38: =IF(PK!$E$5=1, BDD_Phosphore_JH!I38, IF(PK!$E$5=2, BDD_Phosphore_Olsen!H38, BDD_Phosphore_Dyer!H38)) -> 70 | K38: 66 | L38: 35
B39: Centre limousin | C39: Argilo-calcaire superficiel caillouteux | D39: =IF(PK!$E$5=1, BDD_Phosphore_JH!D39, IF(PK!$E$5=2, BDD_Phosphore_Olsen!C39, BDD_Phosphore_Dyer!C39)) -> 60 | E39: =IF(PK!$E$5=1, BDD_Phosphore_JH!E39, IF(PK!$E$5=2, BDD_Phosphore_Olsen!D39, BDD_Phosphore_Dyer!D39)) -> 90 | F39: =IF(PK!$E$5=1, BDD_Phosphore_JH!F39, IF(PK!$E$5=2, BDD_Phosphore_Olsen!E39, BDD_Phosphore_Dyer!E39)) -> 60 | G39: =IF(PK!$E$5=1, BDD_Phosphore_JH!G39, IF(PK!$E$5=2, BDD_Phosphore_Olsen!F39, BDD_Phosphore_Dyer!F39)) -> 90 | H39: =IF(PK!$E$5=1, BDD_Phosphore_JH!H39, IF(PK!$E$5=2, BDD_Phosphore_Olsen!G39, BDD_Phosphore_Dyer!G39)) -> 30 | I39: =IF(PK!$E$5=1, BDD_Phosphore_JH!I39, IF(PK!$E$5=2, BDD_Phosphore_Olsen!H39, BDD_Phosphore_Dyer!H39)) -> 80 | K39: 71 | L39: 36
B40: Centre limousin | C40: Argilo-calcaire profond peu caillouteux | D40: =IF(PK!$E$5=1, BDD_Phosphore_JH!D40, IF(PK!$E$5=2, BDD_Phosphore_Olsen!C40, BDD_Phosphore_Dyer!C40)) -> 60 | E40: =IF(PK!$E$5=1, BDD_Phosphore_JH!E40, IF(PK!$E$5=2, BDD_Phosphore_Olsen!D40, BDD_Phosphore_Dyer!D40)) -> 90 | F40: =IF(PK!$E$5=1, BDD_Phosphore_JH!F40, IF(PK!$E$5=2, BDD_Phosphore_Olsen!E40, BDD_Phosphore_Dyer!E40)) -> 60 | G40: =IF(PK!$E$5=1, BDD_Phosphore_JH!G40, IF(PK!$E$5=2, BDD_Phosphore_Olsen!F40, BDD_Phosphore_Dyer!F40)) -> 90 | H40: =IF(PK!$E$5=1, BDD_Phosphore_JH!H40, IF(PK!$E$5=2, BDD_Phosphore_Olsen!G40, BDD_Phosphore_Dyer!G40)) -> 30 | I40: =IF(PK!$E$5=1, BDD_Phosphore_JH!I40, IF(PK!$E$5=2, BDD_Phosphore_Olsen!H40, BDD_Phosphore_Dyer!H40)) -> 80 | K40: 72 | L40: 37
B41: Centre limousin | C41: Limon argileux | D41: =IF(PK!$E$5=1, BDD_Phosphore_JH!D41, IF(PK!$E$5=2, BDD_Phosphore_Olsen!C41, BDD_Phosphore_Dyer!C41)) -> 50 | E41: =IF(PK!$E$5=1, BDD_Phosphore_JH!E41, IF(PK!$E$5=2, BDD_Phosphore_Olsen!D41, BDD_Phosphore_Dyer!D41)) -> 80 | F41: =IF(PK!$E$5=1, BDD_Phosphore_JH!F41, IF(PK!$E$5=2, BDD_Phosphore_Olsen!E41, BDD_Phosphore_Dyer!E41)) -> 50 | G41: =IF(PK!$E$5=1, BDD_Phosphore_JH!G41, IF(PK!$E$5=2, BDD_Phosphore_Olsen!F41, BDD_Phosphore_Dyer!F41)) -> 80 | H41: =IF(PK!$E$5=1, BDD_Phosphore_JH!H41, IF(PK!$E$5=2, BDD_Phosphore_Olsen!G41, BDD_Phosphore_Dyer!G41)) -> 20 | I41: =IF(PK!$E$5=1, BDD_Phosphore_JH!I41, IF(PK!$E$5=2, BDD_Phosphore_Olsen!H41, BDD_Phosphore_Dyer!H41)) -> 70 | K41: 73 | L41: 38
B42: Centre limousin | C42: Limon battant | D42: =IF(PK!$E$5=1, BDD_Phosphore_JH!D42, IF(PK!$E$5=2, BDD_Phosphore_Olsen!C42, BDD_Phosphore_Dyer!C42)) -> 50 | E42: =IF(PK!$E$5=1, BDD_Phosphore_JH!E42, IF(PK!$E$5=2, BDD_Phosphore_Olsen!D42, BDD_Phosphore_Dyer!D42)) -> 80 | F42: =IF(PK!$E$5=1, BDD_Phosphore_JH!F42, IF(PK!$E$5=2, BDD_Phosphore_Olsen!E42, BDD_Phosphore_Dyer!E42)) -> 50 | G42: =IF(PK!$E$5=1, BDD_Phosphore_JH!G42, IF(PK!$E$5=2, BDD_Phosphore_Olsen!F42, BDD_Phosphore_Dyer!F42)) -> 80 | H42: =IF(PK!$E$5=1, BDD_Phosphore_JH!H42, IF(PK!$E$5=2, BDD_Phosphore_Olsen!G42, BDD_Phosphore_Dyer!G42)) -> 20 | I42: =IF(PK!$E$5=1, BDD_Phosphore_JH!I42, IF(PK!$E$5=2, BDD_Phosphore_Olsen!H42, BDD_Phosphore_Dyer!H42)) -> 70 | K42: 74 | L42: 39
B43: Centre limousin | C43: Sable | D43: =IF(PK!$E$5=1, BDD_Phosphore_JH!D43, IF(PK!$E$5=2, BDD_Phosphore_Olsen!C43, BDD_Phosphore_Dyer!C43)) -> 50 | E43: =IF(PK!$E$5=1, BDD_Phosphore_JH!E43, IF(PK!$E$5=2, BDD_Phosphore_Olsen!D43, BDD_Phosphore_Dyer!D43)) -> 80 | F43: =IF(PK!$E$5=1, BDD_Phosphore_JH!F43, IF(PK!$E$5=2, BDD_Phosphore_Olsen!E43, BDD_Phosphore_Dyer!E43)) -> 50 | G43: =IF(PK!$E$5=1, BDD_Phosphore_JH!G43, IF(PK!$E$5=2, BDD_Phosphore_Olsen!F43, BDD_Phosphore_Dyer!F43)) -> 80 | H43: =IF(PK!$E$5=1, BDD_Phosphore_JH!H43, IF(PK!$E$5=2, BDD_Phosphore_Olsen!G43, BDD_Phosphore_Dyer!G43)) -> 20 | I43: =IF(PK!$E$5=1, BDD_Phosphore_JH!I43, IF(PK!$E$5=2, BDD_Phosphore_Olsen!H43, BDD_Phosphore_Dyer!H43)) -> 70 | K43: 75 | L43: 40
B44: Centre limousin | C44: Limon sableux | D44: =IF(PK!$E$5=1, BDD_Phosphore_JH!D44, IF(PK!$E$5=2, BDD_Phosphore_Olsen!C44, BDD_Phosphore_Dyer!C44)) -> 50 | E44: =IF(PK!$E$5=1, BDD_Phosphore_JH!E44, IF(PK!$E$5=2, BDD_Phosphore_Olsen!D44, BDD_Phosphore_Dyer!D44)) -> 80 | F44: =IF(PK!$E$5=1, BDD_Phosphore_JH!F44, IF(PK!$E$5=2, BDD_Phosphore_Olsen!E44, BDD_Phosphore_Dyer!E44)) -> 50 | G44: =IF(PK!$E$5=1, BDD_Phosphore_JH!G44, IF(PK!$E$5=2, BDD_Phosphore_Olsen!F44, BDD_Phosphore_Dyer!F44)) -> 80 | H44: =IF(PK!$E$5=1, BDD_Phosphore_JH!H44, IF(PK!$E$5=2, BDD_Phosphore_Olsen!G44, BDD_Phosphore_Dyer!G44)) -> 20 | I44: =IF(PK!$E$5=1, BDD_Phosphore_JH!I44, IF(PK!$E$5=2, BDD_Phosphore_Olsen!H44, BDD_Phosphore_Dyer!H44)) -> 70 | K44: 76 | L44: 41
B45: Centre limousin | C45: Limons sur argile à silex | D45: =IF(PK!$E$5=1, BDD_Phosphore_JH!D45, IF(PK!$E$5=2, BDD_Phosphore_Olsen!C45, BDD_Phosphore_Dyer!C45)) -> 50 | E45: =IF(PK!$E$5=1, BDD_Phosphore_JH!E45, IF(PK!$E$5=2, BDD_Phosphore_Olsen!D45, BDD_Phosphore_Dyer!D45)) -> 80 | F45: =IF(PK!$E$5=1, BDD_Phosphore_JH!F45, IF(PK!$E$5=2, BDD_Phosphore_Olsen!E45, BDD_Phosphore_Dyer!E45)) -> 50 | G45: =IF(PK!$E$5=1, BDD_Phosphore_JH!G45, IF(PK!$E$5=2, BDD_Phosphore_Olsen!F45, BDD_Phosphore_Dyer!F45)) -> 80 | H45: =IF(PK!$E$5=1, BDD_Phosphore_JH!H45, IF(PK!$E$5=2, BDD_Phosphore_Olsen!G45, BDD_Phosphore_Dyer!G45)) -> 20 | I45: =IF(PK!$E$5=1, BDD_Phosphore_JH!I45, IF(PK!$E$5=2, BDD_Phosphore_Olsen!H45, BDD_Phosphore_Dyer!H45)) -> 70 | K45: 77 | L45: 42
B46: Centre limousin | C46: Argile lourde | D46: =IF(PK!$E$5=1, BDD_Phosphore_JH!D46, IF(PK!$E$5=2, BDD_Phosphore_Olsen!C46, BDD_Phosphore_Dyer!C46)) -> 50 | E46: =IF(PK!$E$5=1, BDD_Phosphore_JH!E46, IF(PK!$E$5=2, BDD_Phosphore_Olsen!D46, BDD_Phosphore_Dyer!D46)) -> 80 | F46: =IF(PK!$E$5=1, BDD_Phosphore_JH!F46, IF(PK!$E$5=2, BDD_Phosphore_Olsen!E46, BDD_Phosphore_Dyer!E46)) -> 50 | G46: =IF(PK!$E$5=1, BDD_Phosphore_JH!G46, IF(PK!$E$5=2, BDD_Phosphore_Olsen!F46, BDD_Phosphore_Dyer!F46)) -> 80 | H46: =IF(PK!$E$5=1, BDD_Phosphore_JH!H46, IF(PK!$E$5=2, BDD_Phosphore_Olsen!G46, BDD_Phosphore_Dyer!G46)) -> 20 | I46: =IF(PK!$E$5=1, BDD_Phosphore_JH!I46, IF(PK!$E$5=2, BDD_Phosphore_Olsen!H46, BDD_Phosphore_Dyer!H46)) -> 70 | K46: 78 | L46: 43
B47: Centre Bassin parisien | C47: Limon battant | D47: =IF(PK!$E$5=1, BDD_Phosphore_JH!D47, IF(PK!$E$5=2, BDD_Phosphore_Olsen!C47, BDD_Phosphore_Dyer!C47)) -> 50 | E47: =IF(PK!$E$5=1, BDD_Phosphore_JH!E47, IF(PK!$E$5=2, BDD_Phosphore_Olsen!D47, BDD_Phosphore_Dyer!D47)) -> 80 | F47: =IF(PK!$E$5=1, BDD_Phosphore_JH!F47, IF(PK!$E$5=2, BDD_Phosphore_Olsen!E47, BDD_Phosphore_Dyer!E47)) -> 50 | G47: =IF(PK!$E$5=1, BDD_Phosphore_JH!G47, IF(PK!$E$5=2, BDD_Phosphore_Olsen!F47, BDD_Phosphore_Dyer!F47)) -> 80 | H47: =IF(PK!$E$5=1, BDD_Phosphore_JH!H47, IF(PK!$E$5=2, BDD_Phosphore_Olsen!G47, BDD_Phosphore_Dyer!G47)) -> 20 | I47: =IF(PK!$E$5=1, BDD_Phosphore_JH!I47, IF(PK!$E$5=2, BDD_Phosphore_Olsen!H47, BDD_Phosphore_Dyer!H47)) -> 70 | K47: 81 | L47: 44
B48: Centre Bassin parisien | C48: Limon de Beauce | D48: =IF(PK!$E$5=1, BDD_Phosphore_JH!D48, IF(PK!$E$5=2, BDD_Phosphore_Olsen!C48, BDD_Phosphore_Dyer!C48)) -> 50 | E48: =IF(PK!$E$5=1, BDD_Phosphore_JH!E48, IF(PK!$E$5=2, BDD_Phosphore_Olsen!D48, BDD_Phosphore_Dyer!D48)) -> 80 | F48: =IF(PK!$E$5=1, BDD_Phosphore_JH!F48, IF(PK!$E$5=2, BDD_Phosphore_Olsen!E48, BDD_Phosphore_Dyer!E48)) -> 50 | G48: =IF(PK!$E$5=1, BDD_Phosphore_JH!G48, IF(PK!$E$5=2, BDD_Phosphore_Olsen!F48, BDD_Phosphore_Dyer!F48)) -> 80 | H48: =IF(PK!$E$5=1, BDD_Phosphore_JH!H48, IF(PK!$E$5=2, BDD_Phosphore_Olsen!G48, BDD_Phosphore_Dyer!G48)) -> 20 | I48: =IF(PK!$E$5=1, BDD_Phosphore_JH!I48, IF(PK!$E$5=2, BDD_Phosphore_Olsen!H48, BDD_Phosphore_Dyer!H48)) -> 70 | K48: 82 | L48: 45
B49: Centre Bassin parisien | C49: Sable | D49: =IF(PK!$E$5=1, BDD_Phosphore_JH!D49, IF(PK!$E$5=2, BDD_Phosphore_Olsen!C49, BDD_Phosphore_Dyer!C49)) -> 50 | E49: =IF(PK!$E$5=1, BDD_Phosphore_JH!E49, IF(PK!$E$5=2, BDD_Phosphore_Olsen!D49, BDD_Phosphore_Dyer!D49)) -> 80 | F49: =IF(PK!$E$5=1, BDD_Phosphore_JH!F49, IF(PK!$E$5=2, BDD_Phosphore_Olsen!E49, BDD_Phosphore_Dyer!E49)) -> 50 | G49: =IF(PK!$E$5=1, BDD_Phosphore_JH!G49, IF(PK!$E$5=2, BDD_Phosphore_Olsen!F49, BDD_Phosphore_Dyer!F49)) -> 80 | H49: =IF(PK!$E$5=1, BDD_Phosphore_JH!H49, IF(PK!$E$5=2, BDD_Phosphore_Olsen!G49, BDD_Phosphore_Dyer!G49)) -> 20 | I49: =IF(PK!$E$5=1, BDD_Phosphore_JH!I49, IF(PK!$E$5=2, BDD_Phosphore_Olsen!H49, BDD_Phosphore_Dyer!H49)) -> 70 | K49: 83 | L49: 46
B50: Centre Bassin parisien | C50: Limon sableux | D50: =IF(PK!$E$5=1, BDD_Phosphore_JH!D50, IF(PK!$E$5=2, BDD_Phosphore_Olsen!C50, BDD_Phosphore_Dyer!C50)) -> 50 | E50: =IF(PK!$E$5=1, BDD_Phosphore_JH!E50, IF(PK!$E$5=2, BDD_Phosphore_Olsen!D50, BDD_Phosphore_Dyer!D50)) -> 80 | F50: =IF(PK!$E$5=1, BDD_Phosphore_JH!F50, IF(PK!$E$5=2, BDD_Phosphore_Olsen!E50, BDD_Phosphore_Dyer!E50)) -> 50 | G50: =IF(PK!$E$5=1, BDD_Phosphore_JH!G50, IF(PK!$E$5=2, BDD_Phosphore_Olsen!F50, BDD_Phosphore_Dyer!F50)) -> 80 | H50: =IF(PK!$E$5=1, BDD_Phosphore_JH!H50, IF(PK!$E$5=2, BDD_Phosphore_Olsen!G50, BDD_Phosphore_Dyer!G50)) -> 20 | I50: =IF(PK!$E$5=1, BDD_Phosphore_JH!I50, IF(PK!$E$5=2, BDD_Phosphore_Olsen!H50, BDD_Phosphore_Dyer!H50)) -> 70 | K50: 84 | L50: 47
B51: Centre Bassin parisien | C51: Argilo-calcaire superficiel caillouteux | D51: =IF(PK!$E$5=1, BDD_Phosphore_JH!D51, IF(PK!$E$5=2, BDD_Phosphore_Olsen!C51, BDD_Phosphore_Dyer!C51)) -> 60 | E51: =IF(PK!$E$5=1, BDD_Phosphore_JH!E51, IF(PK!$E$5=2, BDD_Phosphore_Olsen!D51, BDD_Phosphore_Dyer!D51)) -> 90 | F51: =IF(PK!$E$5=1, BDD_Phosphore_JH!F51, IF(PK!$E$5=2, BDD_Phosphore_Olsen!E51, BDD_Phosphore_Dyer!E51)) -> 60 | G51: =IF(PK!$E$5=1, BDD_Phosphore_JH!G51, IF(PK!$E$5=2, BDD_Phosphore_Olsen!F51, BDD_Phosphore_Dyer!F51)) -> 90 | H51: =IF(PK!$E$5=1, BDD_Phosphore_JH!H51, IF(PK!$E$5=2, BDD_Phosphore_Olsen!G51, BDD_Phosphore_Dyer!G51)) -> 30 | I51: =IF(PK!$E$5=1, BDD_Phosphore_JH!I51, IF(PK!$E$5=2, BDD_Phosphore_Olsen!H51, BDD_Phosphore_Dyer!H51)) -> 80 | K51: 85 | L51: 48
B52: Centre Bassin parisien | C52: Argilo-calcaire profond peu caillouteux | D52: =IF(PK!$E$5=1, BDD_Phosphore_JH!D52, IF(PK!$E$5=2, BDD_Phosphore_Olsen!C52, BDD_Phosphore_Dyer!C52)) -> 60 | E52: =IF(PK!$E$5=1, BDD_Phosphore_JH!E52, IF(PK!$E$5=2, BDD_Phosphore_Olsen!D52, BDD_Phosphore_Dyer!D52)) -> 90 | F52: =IF(PK!$E$5=1, BDD_Phosphore_JH!F52, IF(PK!$E$5=2, BDD_Phosphore_Olsen!E52, BDD_Phosphore_Dyer!E52)) -> 60 | G52: =IF(PK!$E$5=1, BDD_Phosphore_JH!G52, IF(PK!$E$5=2, BDD_Phosphore_Olsen!F52, BDD_Phosphore_Dyer!F52)) -> 90 | H52: =IF(PK!$E$5=1, BDD_Phosphore_JH!H52, IF(PK!$E$5=2, BDD_Phosphore_Olsen!G52, BDD_Phosphore_Dyer!G52)) -> 30 | I52: =IF(PK!$E$5=1, BDD_Phosphore_JH!I52, IF(PK!$E$5=2, BDD_Phosphore_Olsen!H52, BDD_Phosphore_Dyer!H52)) -> 80 | K52: 86 | L52: 49
B53: Centre Bassin parisien | C53: Argio-calcaire de Beauce | D53: =IF(PK!$E$5=1, BDD_Phosphore_JH!D53, IF(PK!$E$5=2, BDD_Phosphore_Olsen!C53, BDD_Phosphore_Dyer!C53)) -> 60 | E53: =IF(PK!$E$5=1, BDD_Phosphore_JH!E53, IF(PK!$E$5=2, BDD_Phosphore_Olsen!D53, BDD_Phosphore_Dyer!D53)) -> 90 | F53: =IF(PK!$E$5=1, BDD_Phosphore_JH!F53, IF(PK!$E$5=2, BDD_Phosphore_Olsen!E53, BDD_Phosphore_Dyer!E53)) -> 60 | G53: =IF(PK!$E$5=1, BDD_Phosphore_JH!G53, IF(PK!$E$5=2, BDD_Phosphore_Olsen!F53, BDD_Phosphore_Dyer!F53)) -> 90 | H53: =IF(PK!$E$5=1, BDD_Phosphore_JH!H53, IF(PK!$E$5=2, BDD_Phosphore_Olsen!G53, BDD_Phosphore_Dyer!G53)) -> 30 | I53: =IF(PK!$E$5=1, BDD_Phosphore_JH!I53, IF(PK!$E$5=2, BDD_Phosphore_Olsen!H53, BDD_Phosphore_Dyer!H53)) -> 80 | K53: 87 | L53: 50
B54: Haute Normandie | C54: Limon des plateaux | D54: =IF(PK!$E$5=1, BDD_Phosphore_JH!D54, IF(PK!$E$5=2, BDD_Phosphore_Olsen!C54, BDD_Phosphore_Dyer!C54)) -> 50 | E54: =IF(PK!$E$5=1, BDD_Phosphore_JH!E54, IF(PK!$E$5=2, BDD_Phosphore_Olsen!D54, BDD_Phosphore_Dyer!D54)) -> 80 | F54: =IF(PK!$E$5=1, BDD_Phosphore_JH!F54, IF(PK!$E$5=2, BDD_Phosphore_Olsen!E54, BDD_Phosphore_Dyer!E54)) -> 50 | G54: =IF(PK!$E$5=1, BDD_Phosphore_JH!G54, IF(PK!$E$5=2, BDD_Phosphore_Olsen!F54, BDD_Phosphore_Dyer!F54)) -> 80 | H54: =IF(PK!$E$5=1, BDD_Phosphore_JH!H54, IF(PK!$E$5=2, BDD_Phosphore_Olsen!G54, BDD_Phosphore_Dyer!G54)) -> 20 | I54: =IF(PK!$E$5=1, BDD_Phosphore_JH!I54, IF(PK!$E$5=2, BDD_Phosphore_Olsen!H54, BDD_Phosphore_Dyer!H54)) -> 70 | K54: 91 | L54: 51
B55: Haute Normandie | C55: Limon caillouteux sur argile à silex | D55: =IF(PK!$E$5=1, BDD_Phosphore_JH!D55, IF(PK!$E$5=2, BDD_Phosphore_Olsen!C55, BDD_Phosphore_Dyer!C55)) -> 50 | E55: =IF(PK!$E$5=1, BDD_Phosphore_JH!E55, IF(PK!$E$5=2, BDD_Phosphore_Olsen!D55, BDD_Phosphore_Dyer!D55)) -> 80 | F55: =IF(PK!$E$5=1, BDD_Phosphore_JH!F55, IF(PK!$E$5=2, BDD_Phosphore_Olsen!E55, BDD_Phosphore_Dyer!E55)) -> 50 | G55: =IF(PK!$E$5=1, BDD_Phosphore_JH!G55, IF(PK!$E$5=2, BDD_Phosphore_Olsen!F55, BDD_Phosphore_Dyer!F55)) -> 80 | H55: =IF(PK!$E$5=1, BDD_Phosphore_JH!H55, IF(PK!$E$5=2, BDD_Phosphore_Olsen!G55, BDD_Phosphore_Dyer!G55)) -> 20 | I55: =IF(PK!$E$5=1, BDD_Phosphore_JH!I55, IF(PK!$E$5=2, BDD_Phosphore_Olsen!H55, BDD_Phosphore_Dyer!H55)) -> 70 | K55: 92 | L55: 52
B56: Haute Normandie | C56: Argilo-calcaire superficiel sur craie | D56: =IF(PK!$E$5=1, BDD_Phosphore_JH!D56, IF(PK!$E$5=2, BDD_Phosphore_Olsen!C56, BDD_Phosphore_Dyer!C56)) -> 60 | E56: =IF(PK!$E$5=1, BDD_Phosphore_JH!E56, IF(PK!$E$5=2, BDD_Phosphore_Olsen!D56, BDD_Phosphore_Dyer!D56)) -> 100 | F56: =IF(PK!$E$5=1, BDD_Phosphore_JH!F56, IF(PK!$E$5=2, BDD_Phosphore_Olsen!E56, BDD_Phosphore_Dyer!E56)) -> 60 | G56: =IF(PK!$E$5=1, BDD_Phosphore_JH!G56, IF(PK!$E$5=2, BDD_Phosphore_Olsen!F56, BDD_Phosphore_Dyer!F56)) -> 90 | H56: =IF(PK!$E$5=1, BDD_Phosphore_JH!H56, IF(PK!$E$5=2, BDD_Phosphore_Olsen!G56, BDD_Phosphore_Dyer!G56)) -> 30 | I56: =IF(PK!$E$5=1, BDD_Phosphore_JH!I56, IF(PK!$E$5=2, BDD_Phosphore_Olsen!H56, BDD_Phosphore_Dyer!H56)) -> 80 | K56: 93 | L56: 53
B57: Haute Normandie | C57: Sable caillouteux non calcaire | D57: =IF(PK!$E$5=1, BDD_Phosphore_JH!D57, IF(PK!$E$5=2, BDD_Phosphore_Olsen!C57, BDD_Phosphore_Dyer!C57)) -> 50 | E57: =IF(PK!$E$5=1, BDD_Phosphore_JH!E57, IF(PK!$E$5=2, BDD_Phosphore_Olsen!D57, BDD_Phosphore_Dyer!D57)) -> 80 | F57: =IF(PK!$E$5=1, BDD_Phosphore_JH!F57, IF(PK!$E$5=2, BDD_Phosphore_Olsen!E57, BDD_Phosphore_Dyer!E57)) -> 50 | G57: =IF(PK!$E$5=1, BDD_Phosphore_JH!G57, IF(PK!$E$5=2, BDD_Phosphore_Olsen!F57, BDD_Phosphore_Dyer!F57)) -> 80 | H57: =IF(PK!$E$5=1, BDD_Phosphore_JH!H57, IF(PK!$E$5=2, BDD_Phosphore_Olsen!G57, BDD_Phosphore_Dyer!G57)) -> 20 | I57: =IF(PK!$E$5=1, BDD_Phosphore_JH!I57, IF(PK!$E$5=2, BDD_Phosphore_Olsen!H57, BDD_Phosphore_Dyer!H57)) -> 70 | K57: 94 | L57: 54
B58: Basse Normandie | C58: Limon | D58: =IF(PK!$E$5=1, BDD_Phosphore_JH!D58, IF(PK!$E$5=2, BDD_Phosphore_Olsen!C58, BDD_Phosphore_Dyer!C58)) -> 50 | E58: =IF(PK!$E$5=1, BDD_Phosphore_JH!E58, IF(PK!$E$5=2, BDD_Phosphore_Olsen!D58, BDD_Phosphore_Dyer!D58)) -> 80 | F58: =IF(PK!$E$5=1, BDD_Phosphore_JH!F58, IF(PK!$E$5=2, BDD_Phosphore_Olsen!E58, BDD_Phosphore_Dyer!E58)) -> 50 | G58: =IF(PK!$E$5=1, BDD_Phosphore_JH!G58, IF(PK!$E$5=2, BDD_Phosphore_Olsen!F58, BDD_Phosphore_Dyer!F58)) -> 80 | H58: =IF(PK!$E$5=1, BDD_Phosphore_JH!H58, IF(PK!$E$5=2, BDD_Phosphore_Olsen!G58, BDD_Phosphore_Dyer!G58)) -> 20 | I58: =IF(PK!$E$5=1, BDD_Phosphore_JH!I58, IF(PK!$E$5=2, BDD_Phosphore_Olsen!H58, BDD_Phosphore_Dyer!H58)) -> 70 | K58: 101 | L58: 55
B59: Basse Normandie | C59: Argilo-calcaire | D59: =IF(PK!$E$5=1, BDD_Phosphore_JH!D59, IF(PK!$E$5=2, BDD_Phosphore_Olsen!C59, BDD_Phosphore_Dyer!C59)) -> 60 | E59: =IF(PK!$E$5=1, BDD_Phosphore_JH!E59, IF(PK!$E$5=2, BDD_Phosphore_Olsen!D59, BDD_Phosphore_Dyer!D59)) -> 90 | F59: =IF(PK!$E$5=1, BDD_Phosphore_JH!F59, IF(PK!$E$5=2, BDD_Phosphore_Olsen!E59, BDD_Phosphore_Dyer!E59)) -> 60 | G59: =IF(PK!$E$5=1, BDD_Phosphore_JH!G59, IF(PK!$E$5=2, BDD_Phosphore_Olsen!F59, BDD_Phosphore_Dyer!F59)) -> 90 | H59: =IF(PK!$E$5=1, BDD_Phosphore_JH!H59, IF(PK!$E$5=2, BDD_Phosphore_Olsen!G59, BDD_Phosphore_Dyer!G59)) -> 30 | I59: =IF(PK!$E$5=1, BDD_Phosphore_JH!I59, IF(PK!$E$5=2, BDD_Phosphore_Olsen!H59, BDD_Phosphore_Dyer!H59)) -> 80 | K59: 102 | L59: 56
B60: Basse Normandie | C60: Sable | D60: =IF(PK!$E$5=1, BDD_Phosphore_JH!D60, IF(PK!$E$5=2, BDD_Phosphore_Olsen!C60, BDD_Phosphore_Dyer!C60)) -> 50 | E60: =IF(PK!$E$5=1, BDD_Phosphore_JH!E60, IF(PK!$E$5=2, BDD_Phosphore_Olsen!D60, BDD_Phosphore_Dyer!D60)) -> 80 | F60: =IF(PK!$E$5=1, BDD_Phosphore_JH!F60, IF(PK!$E$5=2, BDD_Phosphore_Olsen!E60, BDD_Phosphore_Dyer!E60)) -> 50 | G60: =IF(PK!$E$5=1, BDD_Phosphore_JH!G60, IF(PK!$E$5=2, BDD_Phosphore_Olsen!F60, BDD_Phosphore_Dyer!F60)) -> 80 | H60: =IF(PK!$E$5=1, BDD_Phosphore_JH!H60, IF(PK!$E$5=2, BDD_Phosphore_Olsen!G60, BDD_Phosphore_Dyer!G60)) -> 20 | I60: =IF(PK!$E$5=1, BDD_Phosphore_JH!I60, IF(PK!$E$5=2, BDD_Phosphore_Olsen!H60, BDD_Phosphore_Dyer!H60)) -> 70 | K60: 103 | L60: 57
B61: Basse Normandie | C61: Terres lourdes | D61: =IF(PK!$E$5=1, BDD_Phosphore_JH!D61, IF(PK!$E$5=2, BDD_Phosphore_Olsen!C61, BDD_Phosphore_Dyer!C61)) -> 50 | E61: =IF(PK!$E$5=1, BDD_Phosphore_JH!E61, IF(PK!$E$5=2, BDD_Phosphore_Olsen!D61, BDD_Phosphore_Dyer!D61)) -> 80 | F61: =IF(PK!$E$5=1, BDD_Phosphore_JH!F61, IF(PK!$E$5=2, BDD_Phosphore_Olsen!E61, BDD_Phosphore_Dyer!E61)) -> 50 | G61: =IF(PK!$E$5=1, BDD_Phosphore_JH!G61, IF(PK!$E$5=2, BDD_Phosphore_Olsen!F61, BDD_Phosphore_Dyer!F61)) -> 80 | H61: =IF(PK!$E$5=1, BDD_Phosphore_JH!H61, IF(PK!$E$5=2, BDD_Phosphore_Olsen!G61, BDD_Phosphore_Dyer!G61)) -> 20 | I61: =IF(PK!$E$5=1, BDD_Phosphore_JH!I61, IF(PK!$E$5=2, BDD_Phosphore_Olsen!H61, BDD_Phosphore_Dyer!H61)) -> 70 | K61: 104 | L61: 58
B62: Bretagne pays de la Loire | C62: Limon sain et Limon sableux | D62: =IF(PK!$E$5=1, BDD_Phosphore_JH!D62, IF(PK!$E$5=2, BDD_Phosphore_Olsen!C62, BDD_Phosphore_Dyer!C62)) -> 50 | E62: =IF(PK!$E$5=1, BDD_Phosphore_JH!E62, IF(PK!$E$5=2, BDD_Phosphore_Olsen!D62, BDD_Phosphore_Dyer!D62)) -> 80 | F62: =IF(PK!$E$5=1, BDD_Phosphore_JH!F62, IF(PK!$E$5=2, BDD_Phosphore_Olsen!E62, BDD_Phosphore_Dyer!E62)) -> 50 | G62: =IF(PK!$E$5=1, BDD_Phosphore_JH!G62, IF(PK!$E$5=2, BDD_Phosphore_Olsen!F62, BDD_Phosphore_Dyer!F62)) -> 80 | H62: =IF(PK!$E$5=1, BDD_Phosphore_JH!H62, IF(PK!$E$5=2, BDD_Phosphore_Olsen!G62, BDD_Phosphore_Dyer!G62)) -> 20 | I62: =IF(PK!$E$5=1, BDD_Phosphore_JH!I62, IF(PK!$E$5=2, BDD_Phosphore_Olsen!H62, BDD_Phosphore_Dyer!H62)) -> 70 | K62: 111 | L62: 59
B63: Bretagne pays de la Loire | C63: Limon caillouteux superficiel | D63: =IF(PK!$E$5=1, BDD_Phosphore_JH!D63, IF(PK!$E$5=2, BDD_Phosphore_Olsen!C63, BDD_Phosphore_Dyer!C63)) -> 50 | E63: =IF(PK!$E$5=1, BDD_Phosphore_JH!E63, IF(PK!$E$5=2, BDD_Phosphore_Olsen!D63, BDD_Phosphore_Dyer!D63)) -> 80 | F63: =IF(PK!$E$5=1, BDD_Phosphore_JH!F63, IF(PK!$E$5=2, BDD_Phosphore_Olsen!E63, BDD_Phosphore_Dyer!E63)) -> 50 | G63: =IF(PK!$E$5=1, BDD_Phosphore_JH!G63, IF(PK!$E$5=2, BDD_Phosphore_Olsen!F63, BDD_Phosphore_Dyer!F63)) -> 80 | H63: =IF(PK!$E$5=1, BDD_Phosphore_JH!H63, IF(PK!$E$5=2, BDD_Phosphore_Olsen!G63, BDD_Phosphore_Dyer!G63)) -> 20 | I63: =IF(PK!$E$5=1, BDD_Phosphore_JH!I63, IF(PK!$E$5=2, BDD_Phosphore_Olsen!H63, BDD_Phosphore_Dyer!H63)) -> 70 | K63: 112 | L63: 60
B64: Bretagne pays de la Loire | C64: Sable | D64: =IF(PK!$E$5=1, BDD_Phosphore_JH!D64, IF(PK!$E$5=2, BDD_Phosphore_Olsen!C64, BDD_Phosphore_Dyer!C64)) -> 50 | E64: =IF(PK!$E$5=1, BDD_Phosphore_JH!E64, IF(PK!$E$5=2, BDD_Phosphore_Olsen!D64, BDD_Phosphore_Dyer!D64)) -> 80 | F64: =IF(PK!$E$5=1, BDD_Phosphore_JH!F64, IF(PK!$E$5=2, BDD_Phosphore_Olsen!E64, BDD_Phosphore_Dyer!E64)) -> 50 | G64: =IF(PK!$E$5=1, BDD_Phosphore_JH!G64, IF(PK!$E$5=2, BDD_Phosphore_Olsen!F64, BDD_Phosphore_Dyer!F64)) -> 80 | H64: =IF(PK!$E$5=1, BDD_Phosphore_JH!H64, IF(PK!$E$5=2, BDD_Phosphore_Olsen!G64, BDD_Phosphore_Dyer!G64)) -> 20 | I64: =IF(PK!$E$5=1, BDD_Phosphore_JH!I64, IF(PK!$E$5=2, BDD_Phosphore_Olsen!H64, BDD_Phosphore_Dyer!H64)) -> 70 | K64: 113 | L64: 61
B65: Bretagne pays de la Loire | C65: Argilo-calcaire profond sur marne | D65: =IF(PK!$E$5=1, BDD_Phosphore_JH!D65, IF(PK!$E$5=2, BDD_Phosphore_Olsen!C65, BDD_Phosphore_Dyer!C65)) -> 60 | E65: =IF(PK!$E$5=1, BDD_Phosphore_JH!E65, IF(PK!$E$5=2, BDD_Phosphore_Olsen!D65, BDD_Phosphore_Dyer!D65)) -> 90 | F65: =IF(PK!$E$5=1, BDD_Phosphore_JH!F65, IF(PK!$E$5=2, BDD_Phosphore_Olsen!E65, BDD_Phosphore_Dyer!E65)) -> 60 | G65: =IF(PK!$E$5=1, BDD_Phosphore_JH!G65, IF(PK!$E$5=2, BDD_Phosphore_Olsen!F65, BDD_Phosphore_Dyer!F65)) -> 90 | H65: =IF(PK!$E$5=1, BDD_Phosphore_JH!H65, IF(PK!$E$5=2, BDD_Phosphore_Olsen!G65, BDD_Phosphore_Dyer!G65)) -> 30 | I65: =IF(PK!$E$5=1, BDD_Phosphore_JH!I65, IF(PK!$E$5=2, BDD_Phosphore_Olsen!H65, BDD_Phosphore_Dyer!H65)) -> 80 | K65: 114 | L65: 62
B66: Bretagne pays de la Loire | C66: Argilo-calcaire superficiel | D66: =IF(PK!$E$5=1, BDD_Phosphore_JH!D66, IF(PK!$E$5=2, BDD_Phosphore_Olsen!C66, BDD_Phosphore_Dyer!C66)) -> 60 | E66: =IF(PK!$E$5=1, BDD_Phosphore_JH!E66, IF(PK!$E$5=2, BDD_Phosphore_Olsen!D66, BDD_Phosphore_Dyer!D66)) -> 90 | F66: =IF(PK!$E$5=1, BDD_Phosphore_JH!F66, IF(PK!$E$5=2, BDD_Phosphore_Olsen!E66, BDD_Phosphore_Dyer!E66)) -> 60 | G66: =IF(PK!$E$5=1, BDD_Phosphore_JH!G66, IF(PK!$E$5=2, BDD_Phosphore_Olsen!F66, BDD_Phosphore_Dyer!F66)) -> 90 | H66: =IF(PK!$E$5=1, BDD_Phosphore_JH!H66, IF(PK!$E$5=2, BDD_Phosphore_Olsen!G66, BDD_Phosphore_Dyer!G66)) -> 30 | I66: =IF(PK!$E$5=1, BDD_Phosphore_JH!I66, IF(PK!$E$5=2, BDD_Phosphore_Olsen!H66, BDD_Phosphore_Dyer!H66)) -> 80 | K66: 115 | L66: 63
B67: Poitou Charente | C67: Terres de Groie | D67: =IF(PK!$E$5=1, BDD_Phosphore_JH!D67, IF(PK!$E$5=2, BDD_Phosphore_Olsen!C67, BDD_Phosphore_Dyer!C67)) -> 60 | E67: =IF(PK!$E$5=1, BDD_Phosphore_JH!E67, IF(PK!$E$5=2, BDD_Phosphore_Olsen!D67, BDD_Phosphore_Dyer!D67)) -> 90 | F67: =IF(PK!$E$5=1, BDD_Phosphore_JH!F67, IF(PK!$E$5=2, BDD_Phosphore_Olsen!E67, BDD_Phosphore_Dyer!E67)) -> 60 | G67: =IF(PK!$E$5=1, BDD_Phosphore_JH!G67, IF(PK!$E$5=2, BDD_Phosphore_Olsen!F67, BDD_Phosphore_Dyer!F67)) -> 90 | H67: =IF(PK!$E$5=1, BDD_Phosphore_JH!H67, IF(PK!$E$5=2, BDD_Phosphore_Olsen!G67, BDD_Phosphore_Dyer!G67)) -> 30 | I67: =IF(PK!$E$5=1, BDD_Phosphore_JH!I67, IF(PK!$E$5=2, BDD_Phosphore_Olsen!H67, BDD_Phosphore_Dyer!H67)) -> 80 | K67: 121 | L67: 64
B68: Poitou Charente | C68: Argilo-calcaire profond sur calcaire marneux | D68: =IF(PK!$E$5=1, BDD_Phosphore_JH!D68, IF(PK!$E$5=2, BDD_Phosphore_Olsen!C68, BDD_Phosphore_Dyer!C68)) -> 60 | E68: =IF(PK!$E$5=1, BDD_Phosphore_JH!E68, IF(PK!$E$5=2, BDD_Phosphore_Olsen!D68, BDD_Phosphore_Dyer!D68)) -> 90 | F68: =IF(PK!$E$5=1, BDD_Phosphore_JH!F68, IF(PK!$E$5=2, BDD_Phosphore_Olsen!E68, BDD_Phosphore_Dyer!E68)) -> 60 | G68: =IF(PK!$E$5=1, BDD_Phosphore_JH!G68, IF(PK!$E$5=2, BDD_Phosphore_Olsen!F68, BDD_Phosphore_Dyer!F68)) -> 90 | H68: =IF(PK!$E$5=1, BDD_Phosphore_JH!H68, IF(PK!$E$5=2, BDD_Phosphore_Olsen!G68, BDD_Phosphore_Dyer!G68)) -> 30 | I68: =IF(PK!$E$5=1, BDD_Phosphore_JH!I68, IF(PK!$E$5=2, BDD_Phosphore_Olsen!H68, BDD_Phosphore_Dyer!H68)) -> 80 | K68: 122 | L68: 65
B69: Poitou Charente | C69: Aubue lègère et champagne superficielle | D69: =IF(PK!$E$5=1, BDD_Phosphore_JH!D69, IF(PK!$E$5=2, BDD_Phosphore_Olsen!C69, BDD_Phosphore_Dyer!C69)) -> 145 | E69: =IF(PK!$E$5=1, BDD_Phosphore_JH!E69, IF(PK!$E$5=2, BDD_Phosphore_Olsen!D69, BDD_Phosphore_Dyer!D69)) -> 210 | F69: =IF(PK!$E$5=1, BDD_Phosphore_JH!F69, IF(PK!$E$5=2, BDD_Phosphore_Olsen!E69, BDD_Phosphore_Dyer!E69)) -> 130 | G69: =IF(PK!$E$5=1, BDD_Phosphore_JH!G69, IF(PK!$E$5=2, BDD_Phosphore_Olsen!F69, BDD_Phosphore_Dyer!F69)) -> 150 | H69: =IF(PK!$E$5=1, BDD_Phosphore_JH!H69, IF(PK!$E$5=2, BDD_Phosphore_Olsen!G69, BDD_Phosphore_Dyer!G69)) -> 60 | I69: =IF(PK!$E$5=1, BDD_Phosphore_JH!I69, IF(PK!$E$5=2, BDD_Phosphore_Olsen!H69, BDD_Phosphore_Dyer!H69)) -> 135 | K69: 123 | L69: 66
B70: Poitou Charente | C70: Aubue lourde et champagne profonde | D70: =IF(PK!$E$5=1, BDD_Phosphore_JH!D70, IF(PK!$E$5=2, BDD_Phosphore_Olsen!C70, BDD_Phosphore_Dyer!C70)) -> 145 | E70: =IF(PK!$E$5=1, BDD_Phosphore_JH!E70, IF(PK!$E$5=2, BDD_Phosphore_Olsen!D70, BDD_Phosphore_Dyer!D70)) -> 210 | F70: =IF(PK!$E$5=1, BDD_Phosphore_JH!F70, IF(PK!$E$5=2, BDD_Phosphore_Olsen!E70, BDD_Phosphore_Dyer!E70)) -> 130 | G70: =IF(PK!$E$5=1, BDD_Phosphore_JH!G70, IF(PK!$E$5=2, BDD_Phosphore_Olsen!F70, BDD_Phosphore_Dyer!F70)) -> 150 | H70: =IF(PK!$E$5=1, BDD_Phosphore_JH!H70, IF(PK!$E$5=2, BDD_Phosphore_Olsen!G70, BDD_Phosphore_Dyer!G70)) -> 60 | I70: =IF(PK!$E$5=1, BDD_Phosphore_JH!I70, IF(PK!$E$5=2, BDD_Phosphore_Olsen!H70, BDD_Phosphore_Dyer!H70)) -> 135 | K70: 124 | L70: 67
B71: Poitou Charente | C71: Limon, terres rouge, bomais, doucin limoneux | D71: =IF(PK!$E$5=1, BDD_Phosphore_JH!D71, IF(PK!$E$5=2, BDD_Phosphore_Olsen!C71, BDD_Phosphore_Dyer!C71)) -> 50 | E71: =IF(PK!$E$5=1, BDD_Phosphore_JH!E71, IF(PK!$E$5=2, BDD_Phosphore_Olsen!D71, BDD_Phosphore_Dyer!D71)) -> 80 | F71: =IF(PK!$E$5=1, BDD_Phosphore_JH!F71, IF(PK!$E$5=2, BDD_Phosphore_Olsen!E71, BDD_Phosphore_Dyer!E71)) -> 50 | G71: =IF(PK!$E$5=1, BDD_Phosphore_JH!G71, IF(PK!$E$5=2, BDD_Phosphore_Olsen!F71, BDD_Phosphore_Dyer!F71)) -> 80 | H71: =IF(PK!$E$5=1, BDD_Phosphore_JH!H71, IF(PK!$E$5=2, BDD_Phosphore_Olsen!G71, BDD_Phosphore_Dyer!G71)) -> 20 | I71: =IF(PK!$E$5=1, BDD_Phosphore_JH!I71, IF(PK!$E$5=2, BDD_Phosphore_Olsen!H71, BDD_Phosphore_Dyer!H71)) -> 70 | K71: 125 | L71: 68
B72: Poitou Charente | C72: Sol sableux | D72: =IF(PK!$E$5=1, BDD_Phosphore_JH!D72, IF(PK!$E$5=2, BDD_Phosphore_Olsen!C72, BDD_Phosphore_Dyer!C72)) -> 50 | E72: =IF(PK!$E$5=1, BDD_Phosphore_JH!E72, IF(PK!$E$5=2, BDD_Phosphore_Olsen!D72, BDD_Phosphore_Dyer!D72)) -> 80 | F72: =IF(PK!$E$5=1, BDD_Phosphore_JH!F72, IF(PK!$E$5=2, BDD_Phosphore_Olsen!E72, BDD_Phosphore_Dyer!E72)) -> 50 | G72: =IF(PK!$E$5=1, BDD_Phosphore_JH!G72, IF(PK!$E$5=2, BDD_Phosphore_Olsen!F72, BDD_Phosphore_Dyer!F72)) -> 80 | H72: =IF(PK!$E$5=1, BDD_Phosphore_JH!H72, IF(PK!$E$5=2, BDD_Phosphore_Olsen!G72, BDD_Phosphore_Dyer!G72)) -> 20 | I72: =IF(PK!$E$5=1, BDD_Phosphore_JH!I72, IF(PK!$E$5=2, BDD_Phosphore_Olsen!H72, BDD_Phosphore_Dyer!H72)) -> 70 | K72: 126 | L72: 69
B73: Haute Marne | C73: Limon | D73: =IF(PK!$E$5=1, BDD_Phosphore_JH!D73, IF(PK!$E$5=2, BDD_Phosphore_Olsen!C73, BDD_Phosphore_Dyer!C73)) -> 50 | E73: =IF(PK!$E$5=1, BDD_Phosphore_JH!E73, IF(PK!$E$5=2, BDD_Phosphore_Olsen!D73, BDD_Phosphore_Dyer!D73)) -> 80 | F73: =IF(PK!$E$5=1, BDD_Phosphore_JH!F73, IF(PK!$E$5=2, BDD_Phosphore_Olsen!E73, BDD_Phosphore_Dyer!E73)) -> 50 | G73: =IF(PK!$E$5=1, BDD_Phosphore_JH!G73, IF(PK!$E$5=2, BDD_Phosphore_Olsen!F73, BDD_Phosphore_Dyer!F73)) -> 80 | H73: =IF(PK!$E$5=1, BDD_Phosphore_JH!H73, IF(PK!$E$5=2, BDD_Phosphore_Olsen!G73, BDD_Phosphore_Dyer!G73)) -> 20 | I73: =IF(PK!$E$5=1, BDD_Phosphore_JH!I73, IF(PK!$E$5=2, BDD_Phosphore_Olsen!H73, BDD_Phosphore_Dyer!H73)) -> 70 | K73: 131 | L73: 70
B74: Haute Marne | C74: Sols superficiels du Barrois et autres sols argileux à 30% argile | D74: =IF(PK!$E$5=1, BDD_Phosphore_JH!D74, IF(PK!$E$5=2, BDD_Phosphore_Olsen!C74, BDD_Phosphore_Dyer!C74)) -> 60 | E74: =IF(PK!$E$5=1, BDD_Phosphore_JH!E74, IF(PK!$E$5=2, BDD_Phosphore_Olsen!D74, BDD_Phosphore_Dyer!D74)) -> 90 | F74: =IF(PK!$E$5=1, BDD_Phosphore_JH!F74, IF(PK!$E$5=2, BDD_Phosphore_Olsen!E74, BDD_Phosphore_Dyer!E74)) -> 60 | G74: =IF(PK!$E$5=1, BDD_Phosphore_JH!G74, IF(PK!$E$5=2, BDD_Phosphore_Olsen!F74, BDD_Phosphore_Dyer!F74)) -> 90 | H74: =IF(PK!$E$5=1, BDD_Phosphore_JH!H74, IF(PK!$E$5=2, BDD_Phosphore_Olsen!G74, BDD_Phosphore_Dyer!G74)) -> 30 | I74: =IF(PK!$E$5=1, BDD_Phosphore_JH!I74, IF(PK!$E$5=2, BDD_Phosphore_Olsen!H74, BDD_Phosphore_Dyer!H74)) -> 80 | K74: 132 | L74: 71
B75: Haute Marne | C75: Sols superficiels du Barrois et autres sols argileux à 40% argile | D75: =IF(PK!$E$5=1, BDD_Phosphore_JH!D75, IF(PK!$E$5=2, BDD_Phosphore_Olsen!C75, BDD_Phosphore_Dyer!C75)) -> 60 | E75: =IF(PK!$E$5=1, BDD_Phosphore_JH!E75, IF(PK!$E$5=2, BDD_Phosphore_Olsen!D75, BDD_Phosphore_Dyer!D75)) -> 90 | F75: =IF(PK!$E$5=1, BDD_Phosphore_JH!F75, IF(PK!$E$5=2, BDD_Phosphore_Olsen!E75, BDD_Phosphore_Dyer!E75)) -> 60 | G75: =IF(PK!$E$5=1, BDD_Phosphore_JH!G75, IF(PK!$E$5=2, BDD_Phosphore_Olsen!F75, BDD_Phosphore_Dyer!F75)) -> 90 | H75: =IF(PK!$E$5=1, BDD_Phosphore_JH!H75, IF(PK!$E$5=2, BDD_Phosphore_Olsen!G75, BDD_Phosphore_Dyer!G75)) -> 30 | I75: =IF(PK!$E$5=1, BDD_Phosphore_JH!I75, IF(PK!$E$5=2, BDD_Phosphore_Olsen!H75, BDD_Phosphore_Dyer!H75)) -> 80 | K75: 133 | L75: 72
B76: Auvergne | C76: Terre noire | D76: =IF(PK!$E$5=1, BDD_Phosphore_JH!D76, IF(PK!$E$5=2, BDD_Phosphore_Olsen!C76, BDD_Phosphore_Dyer!C76)) -> 50 | E76: =IF(PK!$E$5=1, BDD_Phosphore_JH!E76, IF(PK!$E$5=2, BDD_Phosphore_Olsen!D76, BDD_Phosphore_Dyer!D76)) -> 80 | F76: =IF(PK!$E$5=1, BDD_Phosphore_JH!F76, IF(PK!$E$5=2, BDD_Phosphore_Olsen!E76, BDD_Phosphore_Dyer!E76)) -> 50 | G76: =IF(PK!$E$5=1, BDD_Phosphore_JH!G76, IF(PK!$E$5=2, BDD_Phosphore_Olsen!F76, BDD_Phosphore_Dyer!F76)) -> 80 | H76: =IF(PK!$E$5=1, BDD_Phosphore_JH!H76, IF(PK!$E$5=2, BDD_Phosphore_Olsen!G76, BDD_Phosphore_Dyer!G76)) -> 20 | I76: =IF(PK!$E$5=1, BDD_Phosphore_JH!I76, IF(PK!$E$5=2, BDD_Phosphore_Olsen!H76, BDD_Phosphore_Dyer!H76)) -> 70 | K76: 141 | L76: 73
B77: Auvergne | C77: Argilo-calcaire | D77: =IF(PK!$E$5=1, BDD_Phosphore_JH!D77, IF(PK!$E$5=2, BDD_Phosphore_Olsen!C77, BDD_Phosphore_Dyer!C77)) -> 60 | E77: =IF(PK!$E$5=1, BDD_Phosphore_JH!E77, IF(PK!$E$5=2, BDD_Phosphore_Olsen!D77, BDD_Phosphore_Dyer!D77)) -> 90 | F77: =IF(PK!$E$5=1, BDD_Phosphore_JH!F77, IF(PK!$E$5=2, BDD_Phosphore_Olsen!E77, BDD_Phosphore_Dyer!E77)) -> 60 | G77: =IF(PK!$E$5=1, BDD_Phosphore_JH!G77, IF(PK!$E$5=2, BDD_Phosphore_Olsen!F77, BDD_Phosphore_Dyer!F77)) -> 90 | H77: =IF(PK!$E$5=1, BDD_Phosphore_JH!H77, IF(PK!$E$5=2, BDD_Phosphore_Olsen!G77, BDD_Phosphore_Dyer!G77)) -> 30 | I77: =IF(PK!$E$5=1, BDD_Phosphore_JH!I77, IF(PK!$E$5=2, BDD_Phosphore_Olsen!H77, BDD_Phosphore_Dyer!H77)) -> 80 | K77: 142 | L77: 74
B78: Auvergne | C78: Granitique | D78: =IF(PK!$E$5=1, BDD_Phosphore_JH!D78, IF(PK!$E$5=2, BDD_Phosphore_Olsen!C78, BDD_Phosphore_Dyer!C78)) -> 50 | E78: =IF(PK!$E$5=1, BDD_Phosphore_JH!E78, IF(PK!$E$5=2, BDD_Phosphore_Olsen!D78, BDD_Phosphore_Dyer!D78)) -> 80 | F78: =IF(PK!$E$5=1, BDD_Phosphore_JH!F78, IF(PK!$E$5=2, BDD_Phosphore_Olsen!E78, BDD_Phosphore_Dyer!E78)) -> 50 | G78: =IF(PK!$E$5=1, BDD_Phosphore_JH!G78, IF(PK!$E$5=2, BDD_Phosphore_Olsen!F78, BDD_Phosphore_Dyer!F78)) -> 80 | H78: =IF(PK!$E$5=1, BDD_Phosphore_JH!H78, IF(PK!$E$5=2, BDD_Phosphore_Olsen!G78, BDD_Phosphore_Dyer!G78)) -> 20 | I78: =IF(PK!$E$5=1, BDD_Phosphore_JH!I78, IF(PK!$E$5=2, BDD_Phosphore_Olsen!H78, BDD_Phosphore_Dyer!H78)) -> 70 | K78: 143 | L78: 75
B79: Auvergne | C79: Sologne | D79: =IF(PK!$E$5=1, BDD_Phosphore_JH!D79, IF(PK!$E$5=2, BDD_Phosphore_Olsen!C79, BDD_Phosphore_Dyer!C79)) -> 50 | E79: =IF(PK!$E$5=1, BDD_Phosphore_JH!E79, IF(PK!$E$5=2, BDD_Phosphore_Olsen!D79, BDD_Phosphore_Dyer!D79)) -> 80 | F79: =IF(PK!$E$5=1, BDD_Phosphore_JH!F79, IF(PK!$E$5=2, BDD_Phosphore_Olsen!E79, BDD_Phosphore_Dyer!E79)) -> 50 | G79: =IF(PK!$E$5=1, BDD_Phosphore_JH!G79, IF(PK!$E$5=2, BDD_Phosphore_Olsen!F79, BDD_Phosphore_Dyer!F79)) -> 80 | H79: =IF(PK!$E$5=1, BDD_Phosphore_JH!H79, IF(PK!$E$5=2, BDD_Phosphore_Olsen!G79, BDD_Phosphore_Dyer!G79)) -> 20 | I79: =IF(PK!$E$5=1, BDD_Phosphore_JH!I79, IF(PK!$E$5=2, BDD_Phosphore_Olsen!H79, BDD_Phosphore_Dyer!H79)) -> 70 | K79: 144 | L79: 76
B80: Auvergne | C80: Alluvions recentes (sableuses) | D80: =IF(PK!$E$5=1, BDD_Phosphore_JH!D80, IF(PK!$E$5=2, BDD_Phosphore_Olsen!C80, BDD_Phosphore_Dyer!C80)) -> 50 | E80: =IF(PK!$E$5=1, BDD_Phosphore_JH!E80, IF(PK!$E$5=2, BDD_Phosphore_Olsen!D80, BDD_Phosphore_Dyer!D80)) -> 80 | F80: =IF(PK!$E$5=1, BDD_Phosphore_JH!F80, IF(PK!$E$5=2, BDD_Phosphore_Olsen!E80, BDD_Phosphore_Dyer!E80)) -> 50 | G80: =IF(PK!$E$5=1, BDD_Phosphore_JH!G80, IF(PK!$E$5=2, BDD_Phosphore_Olsen!F80, BDD_Phosphore_Dyer!F80)) -> 80 | H80: =IF(PK!$E$5=1, BDD_Phosphore_JH!H80, IF(PK!$E$5=2, BDD_Phosphore_Olsen!G80, BDD_Phosphore_Dyer!G80)) -> 20 | I80: =IF(PK!$E$5=1, BDD_Phosphore_JH!I80, IF(PK!$E$5=2, BDD_Phosphore_Olsen!H80, BDD_Phosphore_Dyer!H80)) -> 70 | K80: 145 | L80: 77
B81: Rhône Alpes Saône et Loire | C81: Varenne | D81: =IF(PK!$E$5=1, BDD_Phosphore_JH!D81, IF(PK!$E$5=2, BDD_Phosphore_Olsen!C81, BDD_Phosphore_Dyer!C81)) -> 50 | E81: =IF(PK!$E$5=1, BDD_Phosphore_JH!E81, IF(PK!$E$5=2, BDD_Phosphore_Olsen!D81, BDD_Phosphore_Dyer!D81)) -> 80 | F81: =IF(PK!$E$5=1, BDD_Phosphore_JH!F81, IF(PK!$E$5=2, BDD_Phosphore_Olsen!E81, BDD_Phosphore_Dyer!E81)) -> 50 | G81: =IF(PK!$E$5=1, BDD_Phosphore_JH!G81, IF(PK!$E$5=2, BDD_Phosphore_Olsen!F81, BDD_Phosphore_Dyer!F81)) -> 80 | H81: =IF(PK!$E$5=1, BDD_Phosphore_JH!H81, IF(PK!$E$5=2, BDD_Phosphore_Olsen!G81, BDD_Phosphore_Dyer!G81)) -> 20 | I81: =IF(PK!$E$5=1, BDD_Phosphore_JH!I81, IF(PK!$E$5=2, BDD_Phosphore_Olsen!H81, BDD_Phosphore_Dyer!H81)) -> 70 | K81: 151 | L81: 78
B82: Rhône Alpes Saône et Loire | C82: Gravier, dilivium | D82: =IF(PK!$E$5=1, BDD_Phosphore_JH!D82, IF(PK!$E$5=2, BDD_Phosphore_Olsen!C82, BDD_Phosphore_Dyer!C82)) -> 50 | E82: =IF(PK!$E$5=1, BDD_Phosphore_JH!E82, IF(PK!$E$5=2, BDD_Phosphore_Olsen!D82, BDD_Phosphore_Dyer!D82)) -> 80 | F82: =IF(PK!$E$5=1, BDD_Phosphore_JH!F82, IF(PK!$E$5=2, BDD_Phosphore_Olsen!E82, BDD_Phosphore_Dyer!E82)) -> 50 | G82: =IF(PK!$E$5=1, BDD_Phosphore_JH!G82, IF(PK!$E$5=2, BDD_Phosphore_Olsen!F82, BDD_Phosphore_Dyer!F82)) -> 80 | H82: =IF(PK!$E$5=1, BDD_Phosphore_JH!H82, IF(PK!$E$5=2, BDD_Phosphore_Olsen!G82, BDD_Phosphore_Dyer!G82)) -> 20 | I82: =IF(PK!$E$5=1, BDD_Phosphore_JH!I82, IF(PK!$E$5=2, BDD_Phosphore_Olsen!H82, BDD_Phosphore_Dyer!H82)) -> 70 | K82: 152 | L82: 79
B83: Rhône Alpes Saône et Loire | C83: Limon blanc sain | D83: =IF(PK!$E$5=1, BDD_Phosphore_JH!D83, IF(PK!$E$5=2, BDD_Phosphore_Olsen!C83, BDD_Phosphore_Dyer!C83)) -> 50 | E83: =IF(PK!$E$5=1, BDD_Phosphore_JH!E83, IF(PK!$E$5=2, BDD_Phosphore_Olsen!D83, BDD_Phosphore_Dyer!D83)) -> 80 | F83: =IF(PK!$E$5=1, BDD_Phosphore_JH!F83, IF(PK!$E$5=2, BDD_Phosphore_Olsen!E83, BDD_Phosphore_Dyer!E83)) -> 50 | G83: =IF(PK!$E$5=1, BDD_Phosphore_JH!G83, IF(PK!$E$5=2, BDD_Phosphore_Olsen!F83, BDD_Phosphore_Dyer!F83)) -> 80 | H83: =IF(PK!$E$5=1, BDD_Phosphore_JH!H83, IF(PK!$E$5=2, BDD_Phosphore_Olsen!G83, BDD_Phosphore_Dyer!G83)) -> 20 | I83: =IF(PK!$E$5=1, BDD_Phosphore_JH!I83, IF(PK!$E$5=2, BDD_Phosphore_Olsen!H83, BDD_Phosphore_Dyer!H83)) -> 70 | K83: 153 | L83: 80
B84: Rhône Alpes Saône et Loire | C84: Limon blanc humide | D84: =IF(PK!$E$5=1, BDD_Phosphore_JH!D84, IF(PK!$E$5=2, BDD_Phosphore_Olsen!C84, BDD_Phosphore_Dyer!C84)) -> 50 | E84: =IF(PK!$E$5=1, BDD_Phosphore_JH!E84, IF(PK!$E$5=2, BDD_Phosphore_Olsen!D84, BDD_Phosphore_Dyer!D84)) -> 80 | F84: =IF(PK!$E$5=1, BDD_Phosphore_JH!F84, IF(PK!$E$5=2, BDD_Phosphore_Olsen!E84, BDD_Phosphore_Dyer!E84)) -> 50 | G84: =IF(PK!$E$5=1, BDD_Phosphore_JH!G84, IF(PK!$E$5=2, BDD_Phosphore_Olsen!F84, BDD_Phosphore_Dyer!F84)) -> 80 | H84: =IF(PK!$E$5=1, BDD_Phosphore_JH!H84, IF(PK!$E$5=2, BDD_Phosphore_Olsen!G84, BDD_Phosphore_Dyer!G84)) -> 20 | I84: =IF(PK!$E$5=1, BDD_Phosphore_JH!I84, IF(PK!$E$5=2, BDD_Phosphore_Olsen!H84, BDD_Phosphore_Dyer!H84)) -> 70 | K84: 154 | L84: 81
B85: Rhône Alpes Saône et Loire | C85: Limon argileux sain | D85: =IF(PK!$E$5=1, BDD_Phosphore_JH!D85, IF(PK!$E$5=2, BDD_Phosphore_Olsen!C85, BDD_Phosphore_Dyer!C85)) -> 50 | E85: =IF(PK!$E$5=1, BDD_Phosphore_JH!E85, IF(PK!$E$5=2, BDD_Phosphore_Olsen!D85, BDD_Phosphore_Dyer!D85)) -> 80 | F85: =IF(PK!$E$5=1, BDD_Phosphore_JH!F85, IF(PK!$E$5=2, BDD_Phosphore_Olsen!E85, BDD_Phosphore_Dyer!E85)) -> 50 | G85: =IF(PK!$E$5=1, BDD_Phosphore_JH!G85, IF(PK!$E$5=2, BDD_Phosphore_Olsen!F85, BDD_Phosphore_Dyer!F85)) -> 80 | H85: =IF(PK!$E$5=1, BDD_Phosphore_JH!H85, IF(PK!$E$5=2, BDD_Phosphore_Olsen!G85, BDD_Phosphore_Dyer!G85)) -> 20 | I85: =IF(PK!$E$5=1, BDD_Phosphore_JH!I85, IF(PK!$E$5=2, BDD_Phosphore_Olsen!H85, BDD_Phosphore_Dyer!H85)) -> 70 | K85: 155 | L85: 82
B86: Rhône Alpes Saône et Loire | C86: Limon argileux humide | D86: =IF(PK!$E$5=1, BDD_Phosphore_JH!D86, IF(PK!$E$5=2, BDD_Phosphore_Olsen!C86, BDD_Phosphore_Dyer!C86)) -> 50 | E86: =IF(PK!$E$5=1, BDD_Phosphore_JH!E86, IF(PK!$E$5=2, BDD_Phosphore_Olsen!D86, BDD_Phosphore_Dyer!D86)) -> 80 | F86: =IF(PK!$E$5=1, BDD_Phosphore_JH!F86, IF(PK!$E$5=2, BDD_Phosphore_Olsen!E86, BDD_Phosphore_Dyer!E86)) -> 50 | G86: =IF(PK!$E$5=1, BDD_Phosphore_JH!G86, IF(PK!$E$5=2, BDD_Phosphore_Olsen!F86, BDD_Phosphore_Dyer!F86)) -> 80 | H86: =IF(PK!$E$5=1, BDD_Phosphore_JH!H86, IF(PK!$E$5=2, BDD_Phosphore_Olsen!G86, BDD_Phosphore_Dyer!G86)) -> 20 | I86: =IF(PK!$E$5=1, BDD_Phosphore_JH!I86, IF(PK!$E$5=2, BDD_Phosphore_Olsen!H86, BDD_Phosphore_Dyer!H86)) -> 70 | K86: 156 | L86: 83
B87: Rhône Alpes Saône et Loire | C87: Argilo-calcaire profond | D87: =IF(PK!$E$5=1, BDD_Phosphore_JH!D87, IF(PK!$E$5=2, BDD_Phosphore_Olsen!C87, BDD_Phosphore_Dyer!C87)) -> 60 | E87: =IF(PK!$E$5=1, BDD_Phosphore_JH!E87, IF(PK!$E$5=2, BDD_Phosphore_Olsen!D87, BDD_Phosphore_Dyer!D87)) -> 90 | F87: =IF(PK!$E$5=1, BDD_Phosphore_JH!F87, IF(PK!$E$5=2, BDD_Phosphore_Olsen!E87, BDD_Phosphore_Dyer!E87)) -> 60 | G87: =IF(PK!$E$5=1, BDD_Phosphore_JH!G87, IF(PK!$E$5=2, BDD_Phosphore_Olsen!F87, BDD_Phosphore_Dyer!F87)) -> 90 | H87: =IF(PK!$E$5=1, BDD_Phosphore_JH!H87, IF(PK!$E$5=2, BDD_Phosphore_Olsen!G87, BDD_Phosphore_Dyer!G87)) -> 30 | I87: =IF(PK!$E$5=1, BDD_Phosphore_JH!I87, IF(PK!$E$5=2, BDD_Phosphore_Olsen!H87, BDD_Phosphore_Dyer!H87)) -> 80 | K87: 157 | L87: 84
B88: Rhône Alpes Saône et Loire | C88: Argilo-calcaire superficiel | D88: =IF(PK!$E$5=1, BDD_Phosphore_JH!D88, IF(PK!$E$5=2, BDD_Phosphore_Olsen!C88, BDD_Phosphore_Dyer!C88)) -> 60 | E88: =IF(PK!$E$5=1, BDD_Phosphore_JH!E88, IF(PK!$E$5=2, BDD_Phosphore_Olsen!D88, BDD_Phosphore_Dyer!D88)) -> 90 | F88: =IF(PK!$E$5=1, BDD_Phosphore_JH!F88, IF(PK!$E$5=2, BDD_Phosphore_Olsen!E88, BDD_Phosphore_Dyer!E88)) -> 60 | G88: =IF(PK!$E$5=1, BDD_Phosphore_JH!G88, IF(PK!$E$5=2, BDD_Phosphore_Olsen!F88, BDD_Phosphore_Dyer!F88)) -> 90 | H88: =IF(PK!$E$5=1, BDD_Phosphore_JH!H88, IF(PK!$E$5=2, BDD_Phosphore_Olsen!G88, BDD_Phosphore_Dyer!G88)) -> 30 | I88: =IF(PK!$E$5=1, BDD_Phosphore_JH!I88, IF(PK!$E$5=2, BDD_Phosphore_Olsen!H88, BDD_Phosphore_Dyer!H88)) -> 80 | K88: 158 | L88: 85
B89: Sud Ouest | C89: Sols acides limoneux ou argileux (boulbènes, alluvions,Ségala) | D89: =IF(PK!$E$5=1, BDD_Phosphore_JH!D89, IF(PK!$E$5=2, BDD_Phosphore_Olsen!C89, BDD_Phosphore_Dyer!C89)) -> 40 | E89: =IF(PK!$E$5=1, BDD_Phosphore_JH!E89, IF(PK!$E$5=2, BDD_Phosphore_Olsen!D89, BDD_Phosphore_Dyer!D89)) -> 80 | F89: =IF(PK!$E$5=1, BDD_Phosphore_JH!F89, IF(PK!$E$5=2, BDD_Phosphore_Olsen!E89, BDD_Phosphore_Dyer!E89)) -> 30 | G89: =IF(PK!$E$5=1, BDD_Phosphore_JH!G89, IF(PK!$E$5=2, BDD_Phosphore_Olsen!F89, BDD_Phosphore_Dyer!F89)) -> 80 | H89: =IF(PK!$E$5=1, BDD_Phosphore_JH!H89, IF(PK!$E$5=2, BDD_Phosphore_Olsen!G89, BDD_Phosphore_Dyer!G89)) -> 20 | I89: =IF(PK!$E$5=1, BDD_Phosphore_JH!I89, IF(PK!$E$5=2, BDD_Phosphore_Olsen!H89, BDD_Phosphore_Dyer!H89)) -> 45 | K89: 161 | L89: 86
B90: Sud Ouest | C90: Sols basiques ou argilo-calcaires (terreforts, alluvions) | D90: =IF(PK!$E$5=1, BDD_Phosphore_JH!D90, IF(PK!$E$5=2, BDD_Phosphore_Olsen!C90, BDD_Phosphore_Dyer!C90)) -> 40 | E90: =IF(PK!$E$5=1, BDD_Phosphore_JH!E90, IF(PK!$E$5=2, BDD_Phosphore_Olsen!D90, BDD_Phosphore_Dyer!D90)) -> 80 | F90: =IF(PK!$E$5=1, BDD_Phosphore_JH!F90, IF(PK!$E$5=2, BDD_Phosphore_Olsen!E90, BDD_Phosphore_Dyer!E90)) -> 30 | G90: =IF(PK!$E$5=1, BDD_Phosphore_JH!G90, IF(PK!$E$5=2, BDD_Phosphore_Olsen!F90, BDD_Phosphore_Dyer!F90)) -> 80 | H90: =IF(PK!$E$5=1, BDD_Phosphore_JH!H90, IF(PK!$E$5=2, BDD_Phosphore_Olsen!G90, BDD_Phosphore_Dyer!G90)) -> 20 | I90: =IF(PK!$E$5=1, BDD_Phosphore_JH!I90, IF(PK!$E$5=2, BDD_Phosphore_Olsen!H90, BDD_Phosphore_Dyer!H90)) -> 45 | K90: 162 | L90: 87

Sheet BDD_Phosphore_JH
D1: Seuil P2O5 en mg/kg - Méthode Joret Hebert
D2: Très exigeant | F2: Moyennement exigeant | H2: peu exigeant
B3: Région | C3: Type de sols | D3: T renforcé | E3: T impasse | F3: T renforcé | G3: T impasse | H3: T renforcé | I3: T impasse | K3: Code | L3: Ligne
B4: Nord Picardie | C4: Limons battants | D4: 100 | E4: 160 | F4: 100 | G4: 160 | H4: 70 | I4: 150 | K4: 11 | L4: 1
B5: Nord Picardie | C5: Limon argileux | D5: 100 | E5: 160 | F5: 100 | G5: 160 | H5: 70 | I5: 150 | K5: 12 | L5: 2
B6: Nord Picardie | C6: Argiles | D6: 100 | E6: 160 | F6: 100 | G6: 160 | H6: 70 | I6: 150 | K6: 13 | L6: 3
B7: Nord Picardie | C7: Cranettes | D7: 280 | E7: 400 | F7: 250 | G7: 300 | H7: 200 | I7: 260 | K7: 14 | L7: 4
B8: Champagne Ardenne | C8: Craie | D8: 280 | E8: 400 | F8: 250 | G8: 300 | H8: 200 | I8: 260 | K8: 21 | L8: 5
B9: Champagne Ardenne | C9: Limon | D9: 100 | E9: 160 | F9: 100 | G9: 160 | H9: 70 | I9: 150 | K9: 22 | L9: 6
B10: Champagne Ardenne | C10: Limon argileux | D10: 100 | E10: 160 | F10: 100 | G10: 160 | H10: 70 | I10: 150 | K10: 23 | L10: 7
B11: Champagne Ardenne | C11: Argilo-calcaire superficiel | D11: 140 | E11: 200 | F11: 80 | G11: 180 | H11: 70 | I11: 150 | K11: 24 | L11: 8
B12: Champagne Ardenne | C12: Argilo-calcaire profond | D12: 120 | E12: 180 | F12: 80 | G12: 120 | H12: 50 | I12: 120 | K12: 25 | L12: 9
B13: Champagne Ardenne | C13: Sable | D13: 60 | E13: 160 | F13: 60 | G13: 160 | H13: 40 | I13: 130 | K13: 26 | L13: 10
B14: Lorraine | C14: Argilo-calcaire profond | D14: 120 | E14: 180 | F14: 80 | G14: 120 | H14: 50 | I14: 120 | K14: 31 | L14: 11
B15: Lorraine | C15: Argilo-calcaire superficiel | D15: 140 | E15: 200 | F15: 80 | G15: 180 | H15: 70 | I15: 150 | K15: 32 | L15: 12
B16: Lorraine | C16: Limons | D16: 100 | E16: 160 | F16: 100 | G16: 160 | H16: 70 | I16: 150 | K16: 33 | L16: 13
B17: Lorraine | C17: Limon argileux | D17: 100 | E17: 160 | F17: 100 | G17: 160 | H17: 70 | I17: 150 | K17: 34 | L17: 14
B18: Lorraine | C18: Argiles lourdes | D18: 100 | E18: 160 | F18: 100 | G18: 160 | H18: 70 | I18: 150 | K18: 35 | L18: 15
B19: Alsace | C19: Limons loess | D19: 100 | E19: 160 | F19: 100 | G19: 160 | H19: 70 | I19: 150 | K19: 41 | L19: 16
B20: Alsace | C20: Alluvions de l'Ill | D20: 100 | E20: 160 | F20: 100 | G20: 160 | H20: 70 | I20: 150 | K20: 42 | L20: 17
B21: Alsace | C21: Limons lehm | D21: 120 | E21: 160 | F21: 120 | G21: 180 | H21: 70 | I21: 170 | K21: 43 | L21: 18
B22: Alsace | C22: Hardt superficielle, Ried brun caillouteux | D22: 140 | E22: 200 | F22: 80 | G22: 180 | H22: 70 | I22: 150 | K22: 44 | L22: 19
B23: Alsace | C23: Hardt profonde, Ried brun profond, basse plaine rhénane | D23: 120 | E23: 180 | F23: 80 | G23: 120 | H23: 50 | I23: 120 | K23: 45 | L23: 20
B24: Alsace | C24: Argilo-calcaire profond Alsace bossue, basse plaine sous-vosgienne | D24: 120 | E24: 180 | F24: 80 | G24: 120 | H24: 50 | I24: 120 | K24: 46 | L24: 21
B25: Alsace | C25: Argilo-calcaire caillouteux Alsace bossue, basse plaine sous-vosgienne | D25: 140 | E25: 200 | F25: 80 | G25: 180 | H25: 70 | I25: 150 | K25: 47 | L25: 22
B26: Franche Comté | C26: Limon (A< 20%) | D26: 100 | E26: 160 | F26: 100 | G26: 160 | H26: 70 | I26: 150 | K26: 51 | L26: 23
B27: Franche Comté | C27: Limon argileux | D27: 100 | E27: 160 | F27: 100 | G27: 160 | H27: 70 | I27: 150 | K27: 52 | L27: 24
B28: Franche Comté | C28: Limon argileux superficiel de plateaux | D28: 110 | E28: 160 | F28: 110 | G28: 170 | H28: 70 | I28: 160 | K28: 53 | L28: 25
B29: Franche Comté | C29: Sols argileux de vallées | D29: 100 | E29: 160 | F29: 100 | G29: 160 | H29: 70 | I29: 150 | K29: 54 | L29: 26
B30: Franche Comté | C30: Sols argileux, calcaires de vallées | D30: 120 | E30: 180 | F30: 80 | G30: 120 | H30: 50 | I30: 120 | K30: 55 | L30: 27
B31: Franche Comté | C31: Limons hydromorphes | D31: 120 | E31: 160 | F31: 120 | G31: 180 | H31: 70 | I31: 170 | K31: 56 | L31: 28
B32: Franche Comté | C32: Argiles hydromorphes de vallées | D32: 120 | E32: 160 | F32: 120 | G32: 180 | H32: 70 | I32: 170 | K32: 57 | L32: 29
B33: Bourgogne | C33: Argilo-calcaire superficiel | D33: 140 | E33: 200 | F33: 80 | G33: 180 | H33: 70 | I33: 150 | K33: 61 | L33: 30
B34: Bourgogne | C34: Argilo-calcaire profond | D34: 120 | E34: 180 | F34: 80 | G34: 120 | H34: 50 | I34: 120 | K34: 62 | L34: 31
B35: Bourgogne | C35: Limons et argiles profonds | D35: 80 | E35: 160 | F35: 80 | G35: 130 | H35: 70 | I35: 120 | K35: 63 | L35: 32
B36: Bourgogne | C36: Limons battants | D36: 100 | E36: 160 | F36: 100 | G36: 160 | H36: 70 | I36: 150 | K36: 64 | L36: 33
B37: Bourgogne | C37: Sols sablo-graveleux | D37: 60 | E37: 160 | F37: 60 | G37: 160 | H37: 40 | I37: 130 | K37: 65 | L37: 34
B38: Bourgogne | C38: Alluvions argileuses | D38: 100 | E38: 160 | F38: 100 | G38: 160 | H38: 70 | I38: 150 | K38: 66 | L38: 35
B39: Centre limousin | C39: Argilo-calcaire superficiel caillouteux | D39: 140 | E39: 200 | F39: 80 | G39: 180 | H39: 70 | I39: 150 | K39: 71 | L39: 36
B40: Centre limousin | C40: Argilo-calcaire profond peu caillouteux | D40: 120 | E40: 180 | F40: 80 | G40: 120 | H40: 50 | I40: 120 | K40: 72 | L40: 37
B41: Centre limousin | C41: Limon argileux | D41: 80 | E41: 160 | F41: 80 | G41: 130 | H41: 70 | I41: 120 | K41: 73 | L41: 38
B42: Centre limousin | C42: Limon battant | D42: 100 | E42: 160 | F42: 100 | G42: 160 | H42: 70 | I42: 150 | K42: 74 | L42: 39
B43: Centre limousin | C43: Sable | D43: 60 | E43: 160 | F43: 60 | G43: 160 | H43: 40 | I43: 130 | K43: 75 | L43: 40
B44: Centre limousin | C44: Limon sableux | D44: 60 | E44: 160 | F44: 60 | G44: 160 | H44: 70 | I44: 130 | K44: 76 | L44: 41
B45: Centre limousin | C45: Limons sur argile à silex | D45: 90 | E45: 210 | F45: 90 | G45: 140 | H45: 50 | I45: 130 | K45: 77 | L45: 42
B46: Centre limousin | C46: Argile lourde | D46: 100 | E46: 160 | F46: 100 | G46: 160 | H46: 70 | I46: 150 | K46: 78 | L46: 43
B47: Centre Bassin parisien | C47: Limon battant | D47: 100 | E47: 160 | F47: 100 | G47: 160 | H47: 70 | I47: 150 | K47: 81 | L47: 44
B48: Centre Bassin parisien | C48: Limon de Beauce | D48: 100 | E48: 160 | F48: 100 | G48: 160 | H48: 70 | I48: 150 | K48: 82 | L48: 45
B49: Centre Bassin parisien | C49: Sable | D49: 60 | E49: 160 | F49: 60 | G49: 160 | H49: 40 | I49: 130 | K49: 83 | L49: 46
B50: Centre Bassin parisien | C50: Limon sableux | D50: 60 | E50: 160 | F50: 60 | G50: 160 | H50: 40 | I50: 130 | K50: 84 | L50: 47
B51: Centre Bassin parisien | C51: Argilo-calcaire superficiel caillouteux | D51: 140 | E51: 200 | F51: 80 | G51: 180 | H51: 70 | I51: 150 | K51: 85 | L51: 48
B52: Centre Bassin parisien | C52: Argilo-calcaire profond peu caillouteux | D52: 120 | E52: 180 | F52: 80 | G52: 120 | H52: 50 | I52: 120 | K52: 86 | L52: 49
B53: Centre Bassin parisien | C53: Argio-calcaire de Beauce | D53: 120 | E53: 180 | F53: 80 | G53: 120 | H53: 50 | I53: 120 | K53: 87 | L53: 50
B54: Haute Normandie | C54: Limon des plateaux | D54: 100 | E54: 160 | F54: 100 | G54: 160 | H54: 70 | I54: 150 | K54: 91 | L54: 51
B55: Haute Normandie | C55: Limon caillouteux sur argile à silex | D55: 120 | E55: 180 | F55: 120 | G55: 180 | H55: 90 | I55: 170 | K55: 92 | L55: 52
B56: Haute Normandie | C56: Argilo-calcaire superficiel sur craie | D56: 140 | E56: 200 | F56: 80 | G56: 180 | H56: 70 | I56: 150 | K56: 93 | L56: 53
B57: Haute Normandie | C57: Sable caillouteux non calcaire | D57: 80 | E57: 200 | F57: 80 | G57: 180 | H57: 40 | I57: 150 | K57: 94 | L57: 54
B58: Basse Normandie | C58: Limon | D58: 100 | E58: 160 | F58: 100 | G58: 160 | H58: 70 | I58: 150 | K58: 101 | L58: 55
B59: Basse Normandie | C59: Argilo-calcaire | D59: 140 | E59: 200 | F59: 80 | G59: 180 | H59: 70 | I59: 150 | K59: 102 | L59: 56
B60: Basse Normandie | C60: Sable | D60: 60 | E60: 160 | F60: 60 | G60: 160 | H60: 40 | I60: 130 | K60: 103 | L60: 57
B61: Basse Normandie | C61: Terres lourdes | D61: 140 | E61: 160 | F61: 80 | G61: 180 | H61: 70 | I61: 150 | K61: 104 | L61: 58
B62: Bretagne pays de la Loire | C62: Limon sain et Limon sableux | D62: 100 | E62: 160 | F62: 100 | G62: 160 | H62: 70 | I62: 150 | K62: 111 | L62: 59
B63: Bretagne pays de la Loire | C63: Limon caillouteux superficiel | D63: 120 | E63: 180 | F63: 120 | G63: 180 | H63: 90 | I63: 170 | K63: 112 | L63: 60
B64: Bretagne pays de la Loire | C64: Sable | D64: 60 | E64: 160 | F64: 60 | G64: 160 | H64: 40 | I64: 130 | K64: 113 | L64: 61
B65: Bretagne pays de la Loire | C65: Argilo-calcaire profond sur marne | D65: 120 | E65: 180 | F65: 80 | G65: 120 | H65: 50 | I65: 120 | K65: 114 | L65: 62
B66: Bretagne pays de la Loire | C66: Argilo-calcaire superficiel | D66: 140 | E66: 200 | F66: 80 | G66: 180 | H66: 70 | I66: 150 | K66: 115 | L66: 63
B67: Poitou Charente | C67: Terres de Groie | D67: 140 | E67: 200 | F67: 80 | G67: 150 | H67: 60 | I67: 130 | K67: 121 | L67: 64
B68: Poitou Charente | C68: Argilo-calcaire profond sur calcaire marneux | D68: 120 | E68: 180 | F68: 80 | G68: 120 | H68: 50 | I68: 120 | K68: 122 | L68: 65
B69: Poitou Charente | C69: Aubue lègère et champagne superficielle | D69: 280 | E69: 300 | F69: 200 | G69: 250 | H69: 100 | I69: 220 | K69: 123 | L69: 66
B70: Poitou Charente | C70: Aubue lourde et champagne profonde | D70: 280 | E70: 400 | F70: 250 | G70: 300 | H70: 200 | I70: 260 | K70: 124 | L70: 67
B71: Poitou Charente | C71: Limon, terres rouge, bomais, doucin limoneux | D71: 100 | E71: 160 | F71: 100 | G71: 160 | H71: 70 | I71: 150 | K71: 125 | L71: 68
B72: Poitou Charente | C72: Sol sableux | D72: 60 | E72: 160 | F72: 60 | G72: 160 | H72: 40 | I72: 130 | K72: 126 | L72: 69
B73: Haute Marne | C73: Limon | D73: 100 | E73: 160 | F73: 100 | G73: 160 | H73: 70 | I73: 150 | K73: 131 | L73: 70
B74: Haute Marne | C74: Sols superficiels du Barrois et autres sols argileux à 30% argile | D74: 120 | E74: 180 | F74: 80 | G74: 150 | H74: 50 | I74: 130 | K74: 132 | L74: 71
B75: Haute Marne | C75: Sols superficiels du Barrois et autres sols argileux à 40% argile | D75: 120 | E75: 200 | F75: 80 | G75: 150 | H75: 50 | I75: 130 | K75: 133 | L75: 72
B76: Auvergne | C76: Terre noire | D76: 120 | E76: 180 | F76: 80 | G76: 150 | H76: 50 | I76: 130 | K76: 141 | L76: 73
B77: Auvergne | C77: Argilo-calcaire | D77: 120 | E77: 180 | F77: 80 | G77: 120 | H77: 50 | I77: 120 | K77: 142 | L77: 74
B78: Auvergne | C78: Granitique | D78: 120 | E78: 180 | F78: 120 | G78: 180 | H78: 70 | I78: 170 | K78: 143 | L78: 75
B79: Auvergne | C79: Sologne | D79: 100 | E79: 160 | F79: 100 | G79: 160 | H79: 70 | I79: 150 | K79: 144 | L79: 76
B80: Auvergne | C80: Alluvions recentes (sableuses) | D80: 60 | E80: 160 | F80: 60 | G80: 160 | H80: 40 | I80: 130 | K80: 145 | L80: 77
B81: Rhône Alpes Saône et Loire | C81: Varenne | D81: 90 | E81: 190 | F81: 90 | G81: 190 | H81: 70 | I81: 160 | K81: 151 | L81: 78
B82: Rhône Alpes Saône et Loire | C82: Gravier, dilivium | D82: 110 | E82: 170 | F82: 110 | G82: 170 | H82: 80 | I82: 160 | K82: 152 | L82: 79
B83: Rhône Alpes Saône et Loire | C83: Limon blanc sain | D83: 100 | E83: 160 | F83: 100 | G83: 160 | H83: 70 | I83: 150 | K83: 153 | L83: 80
B84: Rhône Alpes Saône et Loire | C84: Limon blanc humide | D84: 120 | E84: 180 | F84: 120 | G84: 180 | H84: 90 | I84: 170 | K84: 154 | L84: 81
B85: Rhône Alpes Saône et Loire | C85: Limon argileux sain | D85: 100 | E85: 160 | F85: 100 | G85: 160 | H85: 70 | I85: 150 | K85: 155 | L85: 82
B86: Rhône Alpes Saône et Loire | C86: Limon argileux humide | D86: 120 | E86: 180 | F86: 120 | G86: 180 | H86: 90 | I86: 170 | K86: 156 | L86: 83
B87: Rhône Alpes Saône et Loire | C87: Argilo-calcaire profond | D87: 120 | E87: 180 | F87: 80 | G87: 120 | H87: 50 | I87: 120 | K87: 157 | L87: 84
B88: Rhône Alpes Saône et Loire | C88: Argilo-calcaire superficiel | D88: 140 | E88: 200 | F88: 80 | G88: 180 | H88: 70 | I88: 150 | K88: 158 | L88: 85
B89: Sud Ouest | C89: Sols acides limoneux ou argileux (boulbènes, alluvions,Ségala) | D89: 60 | E89: 120 | F89: 60 | G89: 100 | H89: 40 | I89: 120 | K89: 161 | L89: 86
B90: Sud Ouest | C90: Sols basiques ou argilo-calcaires (terreforts, alluvions) | D90: 60 | E90: 120 | F90: 60 | G90: 100 | H90: 40 | I90: 100 | K90: 162 | L90: 87

Sheet BDD_Phosphore_Olsen
C1: Seuil P2O5 en mg/kg - Méthode Olsen
C2: Forte exigence | E2: Moyenne exigence | G2: Faible exigence
A3: Région | B3: Type de sols | C3: T renforcé | D3: T impasse | E3: T renforcé | F3: T impasse | G3: T renforcé | H3: T impasse
A4: Nord Picardie | B4: Limons battants | C4: 50 | D4: 80 | E4: 50 | F4: 80 | G4: 20 | H4: 70
A5: Nord Picardie | B5: Limon argileux | C5: 50 | D5: 80 | E5: 50 | F5: 80 | G5: 20 | H5: 70
A6: Nord Picardie | B6: Argiles | C6: 50 | D6: 80 | E6: 50 | F6: 80 | G6: 20 | H6: 70
A7: Nord Picardie | B7: Cranettes | C7: 145 | D7: 210 | E7: 130 | F7: 150 | G7: 60 | H7: 135
A8: Champagne Ardenne | B8: Craie | C8: 145 | D8: 210 | E8: 130 | F8: 150 | G8: 60 | H8: 135
A9: Champagne Ardenne | B9: Limon | C9: 50 | D9: 80 | E9: 50 | F9: 80 | G9: 20 | H9: 70
A10: Champagne Ardenne | B10: Limon argileux | C10: 50 | D10: 80 | E10: 50 | F10: 80 | G10: 20 | H10: 70
A11: Champagne Ardenne | B11: Argilo-calcaire superficiel | C11: 60 | D11: 90 | E11: 60 | F11: 90 | G11: 30 | H11: 80
A12: Champagne Ardenne | B12: Argilo-calcaire profond | C12: 60 | D12: 90 | E12: 60 | F12: 90 | G12: 30 | H12: 80
A13: Champagne Ardenne | B13: Sable | C13: 50 | D13: 80 | E13: 50 | F13: 80 | G13: 20 | H13: 70
A14: Lorraine | B14: Argilo-calcaire profond | C14: 60 | D14: 90 | E14: 60 | F14: 90 | G14: 30 | H14: 80
A15: Lorraine | B15: Argilo-calcaire superficiel | C15: 60 | D15: 90 | E15: 60 | F15: 90 | G15: 30 | H15: 80
A16: Lorraine | B16: Limons | C16: 50 | D16: 80 | E16: 50 | F16: 80 | G16: 20 | H16: 70
A17: Lorraine | B17: Limon argileux | C17: 50 | D17: 80 | E17: 50 | F17: 80 | G17: 20 | H17: 70
A18: Lorraine | B18: Argiles lourdes | C18: 50 | D18: 80 | E18: 50 | F18: 80 | G18: 20 | H18: 70
A19: Alsace | B19: Limons loess | C19: 50 | D19: 80 | E19: 50 | F19: 80 | G19: 20 | H19: 70
A20: Alsace | B20: Alluvions de l'Ill | C20: 50 | D20: 80 | E20: 50 | F20: 80 | G20: 20 | H20: 70
A21: Alsace | B21: Limons lehm | C21: 50 | D21: 80 | E21: 50 | F21: 80 | G21: 20 | H21: 70
A22: Alsace | B22: Hardt superficielle, Ried brun caillouteux | C22: 60 | D22: 90 | E22: 60 | F22: 90 | G22: 30 | H22: 80
A23: Alsace | B23: Hardt profonde, Ried brun profond, basse plaine rhénane | C23: 60 | D23: 90 | E23: 60 | F23: 90 | G23: 30 | H23: 80
A24: Alsace | B24: Argilo-calcaire profond Alsace bossue, basse plaine sous-vosgienne | C24: 60 | D24: 90 | E24: 60 | F24: 90 | G24: 30 | H24: 80
A25: Alsace | B25: Argilo-calcaire caillouteux Alsace bossue, basse plaine sous-vosgienne | C25: 60 | D25: 90 | E25: 60 | F25: 90 | G25: 30 | H25: 80
A26: Franche Comté | B26: Limon (A< 20%) | C26: 50 | D26: 80 | E26: 50 | F26: 80 | G26: 20 | H26: 70
A27: Franche Comté | B27: Limon argileux | C27: 50 | D27: 80 | E27: 50 | F27: 80 | G27: 20 | H27: 70
A28: Franche Comté | B28: Limon argileux superficiel de plateaux | C28: 50 | D28: 80 | E28: 50 | F28: 80 | G28: 20 | H28: 70
A29: Franche Comté | B29: Sols argileux de vallées | C29: 50 | D29: 80 | E29: 50 | F29: 80 | G29: 20 | H29: 70
A30: Franche Comté | B30: Sols argileux, calcaires de vallées | C30: 60 | D30: 90 | E30: 60 | F30: 90 | G30: 30 | H30: 80
A31: Franche Comté | B31: Limons hydromorphes | C31: 50 | D31: 80 | E31: 50 | F31: 80 | G31: 20 | H31: 70
A32: Franche Comté | B32: Argiles hydromorphes de vallées | C32: 50 | D32: 80 | E32: 50 | F32: 80 | G32: 20 | H32: 70
A33: Bourgogne | B33: Argilo-calcaire superficiel | C33: 60 | D33: 90 | E33: 60 | F33: 90 | G33: 30 | H33: 80
A34: Bourgogne | B34: Argilo-calcaire profond | C34: 60 | D34: 90 | E34: 60 | F34: 90 | G34: 30 | H34: 80
A35: Bourgogne | B35: Limons et argiles profonds | C35: 50 | D35: 80 | E35: 50 | F35: 80 | G35: 20 | H35: 70
A36: Bourgogne | B36: Limons battants | C36: 50 | D36: 80 | E36: 50 | F36: 80 | G36: 20 | H36: 70
A37: Bourgogne | B37: Sols sablo-graveleux | C37: 50 | D37: 80 | E37: 50 | F37: 80 | G37: 20 | H37: 70
A38: Bourgogne | B38: Alluvions argileuses | C38: 50 | D38: 80 | E38: 50 | F38: 80 | G38: 20 | H38: 70
A39: Centre limousin | B39: Argilo-calcaire superficiel caillouteux | C39: 60 | D39: 90 | E39: 60 | F39: 90 | G39: 30 | H39: 80
A40: Centre limousin | B40: Argilo-calcaire profond peu caillouteux | C40: 60 | D40: 90 | E40: 60 | F40: 90 | G40: 30 | H40: 80
A41: Centre limousin | B41: Limon argileux | C41: 50 | D41: 80 | E41: 50 | F41: 80 | G41: 20 | H41: 70
A42: Centre limousin | B42: Limon battant | C42: 50 | D42: 80 | E42: 50 | F42: 80 | G42: 20 | H42: 70
A43: Centre limousin | B43: Sable | C43: 50 | D43: 80 | E43: 50 | F43: 80 | G43: 20 | H43: 70
A44: Centre limousin | B44: Limon sableux | C44: 50 | D44: 80 | E44: 50 | F44: 80 | G44: 20 | H44: 70
A45: Centre limousin | B45: Limons sur argile à silex | C45: 50 | D45: 80 | E45: 50 | F45: 80 | G45: 20 | H45: 70
A46: Centre limousin | B46: Argile lourde | C46: 50 | D46: 80 | E46: 50 | F46: 80 | G46: 20 | H46: 70
A47: Centre Bassin parisien | B47: Limon battant | C47: 50 | D47: 80 | E47: 50 | F47: 80 | G47: 20 | H47: 70
A48: Centre Bassin parisien | B48: Limon de Beauce | C48: 50 | D48: 80 | E48: 50 | F48: 80 | G48: 20 | H48: 70
A49: Centre Bassin parisien | B49: Sable | C49: 50 | D49: 80 | E49: 50 | F49: 80 | G49: 20 | H49: 70
A50: Centre Bassin parisien | B50: Limon sableux | C50: 50 | D50: 80 | E50: 50 | F50: 80 | G50: 20 | H50: 70
A51: Centre Bassin parisien | B51: Argilo-calcaire superficiel caillouteux | C51: 60 | D51: 90 | E51: 60 | F51: 90 | G51: 30 | H51: 80
A52: Centre Bassin parisien | B52: Argilo-calcaire profond peu caillouteux | C52: 60 | D52: 90 | E52: 60 | F52: 90 | G52: 30 | H52: 80
A53: Centre Bassin parisien | B53: Argio-calcaire de Beauce | C53: 60 | D53: 90 | E53: 60 | F53: 90 | G53: 30 | H53: 80
A54: Haute Normandie | B54: Limon des plateaux | C54: 50 | D54: 80 | E54: 50 | F54: 80 | G54: 20 | H54: 70
A55: Haute Normandie | B55: Limon caillouteux sur argile à silex | C55: 50 | D55: 80 | E55: 50 | F55: 80 | G55: 20 | H55: 70
A56: Haute Normandie | B56: Argilo-calcaire superficiel sur craie | C56: 60 | D56: 100 | E56: 60 | F56: 90 | G56: 30 | H56: 80
A57: Haute Normandie | B57: Sable caillouteux non calcaire | C57: 50 | D57: 80 | E57: 50 | F57: 80 | G57: 20 | H57: 70
A58: Basse Normandie | B58: Limon | C58: 50 | D58: 80 | E58: 50 | F58: 80 | G58: 20 | H58: 70
A59: Basse Normandie | B59: Argilo-calcaire | C59: 60 | D59: 90 | E59: 60 | F59: 90 | G59: 30 | H59: 80
A60: Basse Normandie | B60: Sable | C60: 50 | D60: 80 | E60: 50 | F60: 80 | G60: 20 | H60: 70
A61: Basse Normandie | B61: Terres lourdes | C61: 50 | D61: 80 | E61: 50 | F61: 80 | G61: 20 | H61: 70
A62: Bretagne pays de la Loire | B62: Limon sain et Limon sableux | C62: 50 | D62: 80 | E62: 50 | F62: 80 | G62: 20 | H62: 70
A63: Bretagne pays de la Loire | B63: Limon caillouteux superficiel | C63: 50 | D63: 80 | E63: 50 | F63: 80 | G63: 20 | H63: 70
A64: Bretagne pays de la Loire | B64: Sable | C64: 50 | D64: 80 | E64: 50 | F64: 80 | G64: 20 | H64: 70
A65: Bretagne pays de la Loire | B65: Argilo-calcaire profond sur marne | C65: 60 | D65: 90 | E65: 60 | F65: 90 | G65: 30 | H65: 80
A66: Bretagne pays de la Loire | B66: Argilo-calcaire superficiel | C66: 60 | D66: 90 | E66: 60 | F66: 90 | G66: 30 | H66: 80
A67: Poitou Charente | B67: Terres de Groie | C67: 60 | D67: 90 | E67: 60 | F67: 90 | G67: 30 | H67: 80
A68: Poitou Charente | B68: Argilo-calcaire profond sur calcaire marneux | C68: 60 | D68: 90 | E68: 60 | F68: 90 | G68: 30 | H68: 80
A69: Poitou Charente | B69: Aubue lègère et champagne superficielle | C69: 145 | D69: 210 | E69: 130 | F69: 150 | G69: 60 | H69: 135
A70: Poitou Charente | B70: Aubue lourde et champagne profonde | C70: 145 | D70: 210 | E70: 130 | F70: 150 | G70: 60 | H70: 135
A71: Poitou Charente | B71: Limon, terres rouge, bomais, doucin limoneux | C71: 50 | D71: 80 | E71: 50 | F71: 80 | G71: 20 | H71: 70
A72: Poitou Charente | B72: Sol sableux | C72: 50 | D72: 80 | E72: 50 | F72: 80 | G72: 20 | H72: 70
A73: Haute Marne | B73: Limon | C73: 50 | D73: 80 | E73: 50 | F73: 80 | G73: 20 | H73: 70
A74: Haute Marne | B74: Sols superficiels du Barrois et autres sols argileux à 30% argile | C74: 60 | D74: 90 | E74: 60 | F74: 90 | G74: 30 | H74: 80
A75: Haute Marne | B75: Sols superficiels du Barrois et autres sols argileux à 40% argile | C75: 60 | D75: 90 | E75: 60 | F75: 90 | G75: 30 | H75: 80
A76: Auvergne | B76: Terre noire | C76: 50 | D76: 80 | E76: 50 | F76: 80 | G76: 20 | H76: 70
A77: Auvergne | B77: Argilo-calcaire | C77: 60 | D77: 90 | E77: 60 | F77: 90 | G77: 30 | H77: 80
A78: Auvergne | B78: Granitique | C78: 50 | D78: 80 | E78: 50 | F78: 80 | G78: 20 | H78: 70
A79: Auvergne | B79: Sologne | C79: 50 | D79: 80 | E79: 50 | F79: 80 | G79: 20 | H79: 70
A80: Auvergne | B80: Alluvions recentes (sableuses) | C80: 50 | D80: 80 | E80: 50 | F80: 80 | G80: 20 | H80: 70
A81: Rhône Alpes Saône et Loire | B81: Varenne | C81: 50 | D81: 80 | E81: 50 | F81: 80 | G81: 20 | H81: 70
A82: Rhône Alpes Saône et Loire | B82: Gravier, dilivium | C82: 50 | D82: 80 | E82: 50 | F82: 80 | G82: 20 | H82: 70
A83: Rhône Alpes Saône et Loire | B83: Limon blanc sain | C83: 50 | D83: 80 | E83: 50 | F83: 80 | G83: 20 | H83: 70
A84: Rhône Alpes Saône et Loire | B84: Limon blanc humide | C84: 50 | D84: 80 | E84: 50 | F84: 80 | G84: 20 | H84: 70
A85: Rhône Alpes Saône et Loire | B85: Limon argileux sain | C85: 50 | D85: 80 | E85: 50 | F85: 80 | G85: 20 | H85: 70
A86: Rhône Alpes Saône et Loire | B86: Limon argileux humide | C86: 50 | D86: 80 | E86: 50 | F86: 80 | G86: 20 | H86: 70
A87: Rhône Alpes Saône et Loire | B87: Argilo-calcaire profond | C87: 60 | D87: 90 | E87: 60 | F87: 90 | G87: 30 | H87: 80
A88: Rhône Alpes Saône et Loire | B88: Argilo-calcaire superficiel | C88: 60 | D88: 90 | E88: 60 | F88: 90 | G88: 30 | H88: 80
A89: Sud Ouest | B89: Sols acides limoneux ou argileux (boulbènes, alluvions,Ségala) | C89: 40 | D89: 80 | E89: 30 | F89: 80 | G89: 20 | H89: 45
A90: Sud Ouest | B90: Sols basiques ou argilo-calcaires (terreforts, alluvions) | C90: 40 | D90: 80 | E90: 30 | F90: 80 | G90: 20 | H90: 45

Sheet BDD_Phosphore_Dyer
C1: Seuil P2O5 en mg/kg - Méthode Dyer
C2: Forte exigence | E2: Moyenne exigence | G2: Faible exigence
A3: Région | B3: Type de sols | C3: T renforcé | D3: T impasse | E3: T renforcé | F3: T impasse | G3: T renforcé | H3: T impasse
A4: Nord Picardie | B4: Limons battants | C4: 160 | D4: 220 | E4: 140 | F4: 220 | G4: 110 | H4: 210
A5: Nord Picardie | B5: Limon argileux | C5: 160 | D5: 220 | E5: 140 | F5: 220 | G5: 110 | H5: 210
A6: Nord Picardie | B6: Argiles | C6: 160 | D6: 220 | E6: 140 | F6: 220 | G6: 110 | H6: 210
A7: Nord Picardie | B7: Cranettes
A8: Champagne Ardenne | B8: Craie
A9: Champagne Ardenne | B9: Limon | C9: 160 | D9: 220 | E9: 140 | F9: 220 | G9: 110 | H9: 210
A10: Champagne Ardenne | B10: Limon argileux | C10: 160 | D10: 220 | E10: 140 | F10: 220 | G10: 110 | H10: 210
A11: Champagne Ardenne | B11: Argilo-calcaire superficiel
A12: Champagne Ardenne | B12: Argilo-calcaire profond
A13: Champagne Ardenne | B13: Sable | C13: 100 | D13: 280 | E13: 100 | F13: 280 | G13: 70 | H13: 200
A14: Lorraine | B14: Argilo-calcaire profond
A15: Lorraine | B15: Argilo-calcaire superficiel
A16: Lorraine | B16: Limons | C16: 160 | D16: 220 | E16: 140 | F16: 220 | G16: 110 | H16: 210
A17: Lorraine | B17: Limon argileux | C17: 160 | D17: 220 | E17: 140 | F17: 220 | G17: 110 | H17: 210
A18: Lorraine | B18: Argiles lourdes | C18: 160 | D18: 220 | E18: 140 | F18: 220 | G18: 110 | H18: 210
A19: Alsace | B19: Limons loess | C19: 160 | D19: 220 | E19: 140 | F19: 220 | G19: 110 | H19: 210
A20: Alsace | B20: Alluvions de l'Ill | C20: 160 | D20: 220 | E20: 140 | F20: 220 | G20: 110 | H20: 210
A21: Alsace | B21: Limons lehm | C21: 160 | D21: 220 | E21: 140 | F21: 220 | G21: 110 | H21: 210
A22: Alsace | B22: Hardt superficielle, Ried brun caillouteux
A23: Alsace | B23: Hardt profonde, Ried brun profond, basse plaine rhénane
A24: Alsace | B24: Argilo-calcaire profond Alsace bossue, basse plaine sous-vosgienne
A25: Alsace | B25: Argilo-calcaire caillouteux Alsace bossue, basse plaine sous-vosgienne
A26: Franche Comté | B26: Limon (A< 20%) | C26: 160 | D26: 220 | E26: 140 | F26: 220 | G26: 110 | H26: 210
A27: Franche Comté | B27: Limon argileux | C27: 160 | D27: 220 | E27: 140 | F27: 220 | G27: 110 | H27: 210
A28: Franche Comté | B28: Limon argileux superficiel de plateaux | C28: 160 | D28: 220 | E28: 140 | F28: 220 | G28: 110 | H28: 210
A29: Franche Comté | B29: Sols argileux de vallées | C29: 160 | D29: 220 | E29: 140 | F29: 220 | G29: 110 | H29: 210
A30: Franche Comté | B30: Sols argileux, calcaires de vallées
A31: Franche Comté | B31: Limons hydromorphes | C31: 200 | D31: 260 | E31: 180 | F31: 260 | G31: 150 | H31: 250
A32: Franche Comté | B32: Argiles hydromorphes de vallées | C32: 200 | D32: 260 | E32: 180 | F32: 260 | G32: 150 | H32: 250
A33: Bourgogne | B33: Argilo-calcaire superficiel
A34: Bourgogne | B34: Argilo-calcaire profond
A35: Bourgogne | B35: Limons et argiles profonds | C35: 160 | D35: 220 | E35: 140 | F35: 220 | G35: 110 | H35: 210
A36: Bourgogne | B36: Limons battants | C36: 160 | D36: 220 | E36: 140 | F36: 220 | G36: 110 | H36: 210
A37: Bourgogne | B37: Sols sablo-graveleux | C37: 100 | D37: 280 | E37: 100 | F37: 280 | G37: 70 | H37: 200
A38: Bourgogne | B38: Alluvions argileuses | C38: 160 | D38: 220 | E38: 140 | F38: 220 | G38: 110 | H38: 210
A39: Centre limousin | B39: Argilo-calcaire superficiel caillouteux
A40: Centre limousin | B40: Argilo-calcaire profond peu caillouteux
A41: Centre limousin | B41: Limon argileux | C41: 160 | D41: 220 | E41: 140 | F41: 220 | G41: 110 | H41: 210
A42: Centre limousin | B42: Limon battant | C42: 160 | D42: 220 | E42: 140 | F42: 220 | G42: 110 | H42: 210
A43: Centre limousin | B43: Sable | C43: 100 | D43: 280 | E43: 100 | F43: 280 | G43: 70 | H43: 200
A44: Centre limousin | B44: Limon sableux | C44: 160 | D44: 220 | E44: 140 | F44: 220 | G44: 110 | H44: 210
A45: Centre limousin | B45: Limons sur argile à silex | C45: 160 | D45: 220 | E45: 140 | F45: 220 | G45: 110 | H45: 210
A46: Centre limousin | B46: Argile lourde | C46: 160 | D46: 220 | E46: 140 | F46: 220 | G46: 110 | H46: 210
A47: Centre Bassin parisien | B47: Limon battant | C47: 160 | D47: 220 | E47: 140 | F47: 220 | G47: 110 | H47: 210
A48: Centre Bassin parisien | B48: Limon de Beauce | C48: 160 | D48: 220 | E48: 140 | F48: 220 | G48: 110 | H48: 210
A49: Centre Bassin parisien | B49: Sable | C49: 100 | D49: 280 | E49: 100 | F49: 280 | G49: 70 | H49: 200
A50: Centre Bassin parisien | B50: Limon sableux | C50: 160 | D50: 220 | E50: 140 | F50: 220 | G50: 110 | H50: 210
A51: Centre Bassin parisien | B51: Argilo-calcaire superficiel caillouteux
A52: Centre Bassin parisien | B52: Argilo-calcaire profond peu caillouteux
A53: Centre Bassin parisien | B53: Argio-calcaire de Beauce
A54: Haute Normandie | B54: Limon des plateaux | C54: 160 | D54: 220 | E54: 140 | F54: 220 | G54: 110 | H54: 210
A55: Haute Normandie | B55: Limon caillouteux sur argile à silex | C55: 190 | D55: 250 | E55: 170 | F55: 250 | G55: 140 | H55: 240
A56: Haute Normandie | B56: Argilo-calcaire superficiel sur craie
A57: Haute Normandie | B57: Sable caillouteux non calcaire | C57: 130 | D57: 300 | E57: 130 | F57: 310 | G57: 60 | H57: 230
A58: Basse Normandie | B58: Limon | C58: 160 | D58: 220 | E58: 140 | F58: 220 | G58: 110 | H58: 210
A59: Basse Normandie | B59: Argilo-calcaire
A60: Basse Normandie | B60: Sable | C60: 100 | D60: 280 | E60: 100 | F60: 280 | G60: 70 | H60: 200
A61: Basse Normandie | B61: Terres lourdes | C61: 160 | D61: 220 | E61: 140 | F61: 220 | G61: 110 | H61: 210
A62: Bretagne pays de la Loire | B62: Limon sain et Limon sableux | C62: 160 | D62: 220 | E62: 140 | F62: 220 | G62: 110 | H62: 210
A63: Bretagne pays de la Loire | B63: Limon caillouteux superficiel | C63: 190 | D63: 250 | E63: 170 | F63: 250 | G63: 140 | H63: 240
A64: Bretagne pays de la Loire | B64: Sable | C64: 100 | D64: 280 | E64: 100 | F64: 280 | G64: 70 | H64: 200
A65: Bretagne pays de la Loire | B65: Argilo-calcaire profond sur marne
A66: Bretagne pays de la Loire | B66: Argilo-calcaire superficiel
A67: Poitou Charente | B67: Terres de Groie
A68: Poitou Charente | B68: Argilo-calcaire profond sur calcaire marneux
A69: Poitou Charente | B69: Aubue lègère et champagne superficielle
A70: Poitou Charente | B70: Aubue lourde et champagne profonde
A71: Poitou Charente | B71: Limon, terres rouge, bomais, doucin limoneux | C71: 160 | D71: 220 | E71: 140 | F71: 220 | G71: 110 | H71: 200
A72: Poitou Charente | B72: Sol sableux | C72: 100 | D72: 280 | E72: 100 | F72: 280 | G72: 70 | H72: 200
A73: Haute Marne | B73: Limon | C73: 160 | D73: 220 | E73: 140 | F73: 220 | G73: 110 | H73: 210
A74: Haute Marne | B74: Sols superficiels du Barrois et autres sols argileux à 30% argile
A75: Haute Marne | B75: Sols superficiels du Barrois et autres sols argileux à 40% argile
A76: Auvergne | B76: Terre noire | C76: 160 | D76: 220 | E76: 140 | F76: 220 | G76: 110 | H76: 210
A77: Auvergne | B77: Argilo-calcaire
A78: Auvergne | B78: Granitique | C78: 180 | D78: 250 | E78: 180 | F78: 250 | G78: 110 | H78: 230
A79: Auvergne | B79: Sologne | C79: 160 | D79: 220 | E79: 160 | F79: 220 | G79: 110 | H79: 200
A80: Auvergne | B80: Alluvions recentes (sableuses) | C80: 100 | D80: 280 | E80: 100 | F80: 220 | G80: 70 | H80: 160
A81: Rhône Alpes Saône et Loire | B81: Varenne | C81: 130 | D81: 270 | E81: 130 | F81: 230 | G81: 100 | H81: 230
A82: Rhône Alpes Saône et Loire | B82: Gravier, dilivium | C82: 150 | D82: 250 | E82: 150 | F82: 250 | G82: 110 | H82: 230
A83: Rhône Alpes Saône et Loire | B83: Limon blanc sain | C83: 160 | D83: 220 | E83: 140 | F83: 220 | G83: 110 | H83: 210
A84: Rhône Alpes Saône et Loire | B84: Limon blanc humide | C84: 200 | D84: 260 | E84: 180 | F84: 260 | G84: 150 | H84: 250
A85: Rhône Alpes Saône et Loire | B85: Limon argileux sain | C85: 160 | D85: 220 | E85: 140 | F85: 220 | G85: 110 | H85: 210
A86: Rhône Alpes Saône et Loire | B86: Limon argileux humide | C86: 200 | D86: 260 | E86: 180 | F86: 260 | G86: 150 | H86: 250
A87: Rhône Alpes Saône et Loire | B87: Argilo-calcaire profond
A88: Rhône Alpes Saône et Loire | B88: Argilo-calcaire superficiel
A89: Sud Ouest | B89: Sols acides limoneux ou argileux (boulbènes, alluvions,Ségala) | C89: 80 | D89: 160 | E89: 80 | F89: 120 | G89: 40 | H89: 120
A90: Sud Ouest | B90: Sols basiques ou argilo-calcaires (terreforts, alluvions) | C90: 80 | D90: 160 | E90: 80 | F90: 120 | G90: 40 | H90: 120

Sheet Exigence_PK
A2: NIVEAU D'EXIGENCE EN PHOSPHORE ET POTASSE DES DIFFERENTES CULTURES
B4: NIVEAU D'EXIGENCE
A5: CULTURES | B5: PHOSPHORE | C5: POTASSE
A6: Betterave | B6: Très exigeante | C6: Très exigeante
A7: Colza | B7: Très exigeante | C7: Moyennement exigeante
A8: Luzerne | B8: Très exigeante | C8: Moyennement exigeante
A9: Pomme de terre | B9: Très exigeante | C9: Très exigeante
A10: Blé/blé | B10: Moyennement exigeante | C10: Peu exigeante
A11: Blé dur | B11: Moyennement exigeante | C11: Peu exigeante
A12: Maïs ensilage | B12: Moyennement exigeante | C12: Moyennement exigeante
A13: Orge | B13: Moyennement exigeante | C13: Peu exigeante
A14: Pois | B14: Moyennement exigeante | C14: Moyennement exigeante
A15: Ray-grass | B15: Moyennement exigeante | C15: Moyennement exigeante
A16: Sorgho | B16: Moyennement exigeante | C16: Peu exigeante
A17: Avoine | B17: Peu exigeante | C17: Peu exigeante
A18: Blé tendre | B18: Peu exigeante | C18: Peu exigeante
A19: Maïs grain | B19: Peu exigeante | C19: Moyennement exigeante
A20: Seigle | B20: Peu exigeante | C20: Peu exigeante
A21: Soja | B21: Peu exigeante | C21: Moyennement exigeante
A22: Tournesol | B22: Peu exigeante | C22: Moyennement exigeante

Sheet Feuil6

Sheet Feuil1
C1: Culture | D1: Numero ligne | E1: ='Chaulage (2)'!D17 -> 6
E2: ='Chaulage (2)'!D18 -> 1
E3: ='Chaulage (2)'!D19 -> 1
E4: ='Chaulage (2)'!D20 -> 1
E5: ='Chaulage (2)'!D21 -> 1
E6: ='Chaulage (2)'!D22 -> 1
E7: ='Chaulage (2)'!D23 -> 1
E8: ='Chaulage (2)'!D24 -> 1
E9: ='Chaulage (2)'!D25 -> 1
E10: ='Chaulage (2)'!D26 -> 1
A12: pH parcelle | B12: =Chaulage!D7 -> 6.4 | D12: Numero colonne | E12: =IF(B27=TRUE, 1,IF(C27=TRUE,2,IF(D27=TRUE,3, IF(E27=TRUE, 4, IF(F27=TRUE, 5, 6))))) -> 4
A14: Type de sol | B14: Sol très acide | C14: Sol acide | D14: Sol peu acide | E14: Sol peu acide | F14: Sol neutre | G14: Sol basique
A15: Ca/CEC | B15: < 40% | C15: 40 à 60% | D15: 60 à 75% | E15: 75 à 90% | F15: 90 à 140% | G15: > 140%
A16: Ph eau | B16: < 5.4 | C16: 5.4 - 5.8 | D16: 5.8 - 6.2 | E16: 6.2 - 6.5 | F16: 6.5 - 7.2 | G16: > 7.2
A17: min | B17: 0 | C17: 5.4 | D17: 5.8 | E17: 6.2 | F17: 6.5 | G17: 7.2
A18: max | B18: 5.4 | C18: 5.8 | D18: 6.2 | E18: 6.5 | F18: 7.2 | G18: 13
A20: Prairies permanentes | B20: Redressement | C20: Entretien | D20: Impasse | E20: Impasse | F20: Impasse | G20: Impasse
A21: Prairies temporaires | B21: Redressement | C21: Redressement | D21: Entretien | E21: Impasse | F21: Impasse | G21: Impasse
A22: Maïs / Betterave / PdT | B22: Redressement | C22: Redressement | D22: Entretien | E22: Impasse | F22: Impasse | G22: Impasse
A23: Céréales | B23: Redressement | C23: Redressement | D23: Entretien | E23: Impasse | F23: Impasse | G23: Impasse
A24: Oléoprotéagineux | B24: Redressement | C24: Redressement | D24: Entretien | E24: Impasse | F24: Impasse | G24: Impasse
A25: Orge | B25: Redressement | C25: Redressement | D25: Entretien | E25: Entretien | F25: Impasse | G25: Impasse
A26: Luzerne | B26: Redressement | C26: Redressement | D26: Entretien | E26: Entretien | F26: Impasse | G26: Impasse
B27: =AND($B$12>=B17,$B$12<=B18) -> FALSE | C27: =AND($B$12>=C17,$B$12<C18) -> FALSE | D27: =AND($B$12>=D17,$B$12<D18) -> FALSE | E27: =AND($B$12>=E17,$B$12<E18) -> TRUE | F27: =AND($B$12>=F17,$B$12<F18) -> FALSE | G27: =AND($B$12>=G17,$B$12<G18) -> FALSE
A30: CEC | B30: 1 | C30: 2 | D30: 3 | E30: 4 | F30: 5 | G30: 6 | H30: 7 | I30: 8 | J30: 9 | K30: 10 | L30: 11 | M30: 12 | N30: 13 | O30: 14 | P30: 15 | Q30: 16 | R30: 17 | S30: 18 | T30: 19 | U30: 20
A31: Entretien | B31: =C31-20 -> 220 | C31: =D31-20 -> 240 | D31: =E31-20 -> 260 | E31: =F31-20 -> 280 | F31: =G31-20 -> 300 | G31: 320 | H31: 340 | I31: 360 | J31: =I31+20 -> 380 | K31: =J31+20 -> 400 | L31: =K31+20 -> 420 | M31: 440 | N31: 460 | O31: 480 | P31: 500 | Q31: 520 | R31: 540 | S31: 560 | T31: 580 | U31: 600
A32: 5
A33: 5.5 | B33: =C33-60 -> 460 | C33: =D33-60 -> 520 | D33: =E33-60 -> 580 | E33: =F33-60 -> 640 | F33: 700 | G33: 760 | H33: =G33+60 -> 820 | I33: =H33+60 -> 880 | J33: =I33+60 -> 940 | K33: 1000 | L33: 1060 | M33: 1120 | N33: 1180 | O33: 1240 | P33: 1300 | Q33: 1360 | R33: 1420 | S33: 1480 | T33: 1540 | U33: 1600
A34: 6 | B34: =C34-80 -> 580 | C34: =D34-80 -> 660 | D34: =E34-80 -> 740 | E34: =F34-80 -> 820 | F34: =G34-80 -> 900 | G34: 980 | H34: =G34+80 -> 1060 | I34: =H34+80 -> 1140 | J34: =I34+80 -> 1220 | K34: 1300 | L34: 1380 | M34: 1460 | N34: 1540 | O34: 1620 | P34: 1700 | Q34: 1780 | R34: 1860 | S34: 1940 | T34: 2020 | U34: 2100
A35: 6.5 | B35: =C35-100 -> 700 | C35: =D35-100 -> 800 | D35: =E35-100 -> 900 | E35: =F35-100 -> 1000 | F35: =G35-100 -> 1100 | G35: 1200 | H35: =G35+100 -> 1300 | I35: =H35+100 -> 1400 | J35: 1500 | K35: 1600 | L35: 1700 | M35: 1800 | N35: 1900 | O35: 2000 | P35: 2100 | Q35: 2200 | R35: 2300 | S35: 2400 | T35: 2500 | U35: 2600
A36: 7 | B36: =B35+B38 -> 820 | C36: =C35+C38 -> 940 | D36: 1060 | E36: 1180 | F36: 1300 | G36: 1420 | H36: 1540 | I36: 1660 | J36: 1780 | K36: 1900 | L36: 2020 | M36: 2140 | N36: 2260 | O36: 2380 | P36: 2500 | Q36: 2620 | R36: 2740 | S36: 2860 | T36: 2980 | U36: 3100
B38: =B34-B33 -> 120 | C38: =C34-C33 -> 140 | D38: =D34-D33 -> 160 | E38: =E34-E33 -> 180 | F38: 200 | G38: 220 | H38: 240 | I38: 260 | J38: 280 | K38: 300 | L38: 320 | M38: 340 | N38: 360 | O38: 380 | P38: 400 | Q38: 420 | R38: 440 | S38: 460 | T38: 480 | U38: 500
A42: CEC | B42: 5
A43: pH actuel | B43: 5
A44: pH souhaité | B44: 5.5
A45: Ecart | B45: =B44-B43 -> 0.5
B46: =100/5 -> 20 | D46: =(12*(B45*10)*B42)+400 -> 700 | G46: Entretien | H46: y=20x+200
G47: 5.5 | H47: y=60x+400
G48: 6 | H48: y=80x+500
G49: 6.5 | H49: y=100x+600
G50: 7 | H50: y=120x+700
B53: pH optimal
A55: Prairies permanentes | B55: 5.6
A56: Prairies temporaires | B56: 6
A57: Maïs | B57: 6
A58: Céréales | B58: 6
A59: Oléoprotéagineux | B59: 6
A60: Orge | B60: 6
A61: Luzerne | B61: 6.5
A67: 5.5 | B67: Action rapide
A68: 6 | B68: Action moyenne à rapide
A69: 6.5 | B69: Action moyenne à lente
A70: 7 | B70: Action moyenne à lente

Sheet Ref_tab_graph
A7: 4
A8: 4 | B8: Valeur Indice de battance | D8: =Granulo!D12 -> 1.295454545 | H8: Valeur sensibilité maladie et prise en masse | J8: =Granulo!J12 -> 0
A9: 4 | C9: x | D9: y | I9: x | J9: y
A10: 4 | C10: =IF(D8<1.3, 1.3, IF(D8>2.1, 2.1, D8)) -> 1.3 | D10: 0 | I10: =pH!E6 -> 6.4 | J10: 0
A11: 4 | C11: =C10 -> 1.3 | D11: 8 | I11: =I10 -> 6.4 | J11: 8
A12: 4
A13: 4
A14: 4 | B14: Valeur MO | C14: 2.2 | E14: Case graph MO/Argile | G14: =IF(C18<=20, 1, IF(C18<=30, 2, IF(C18<=40, 3, IF(C18>40, 4)))) -> 2 | I14: x | J14: y
I15: =G14 -> 2 | J15: 0
I16: =I15 -> 2 | J16: 3
C17: x | D17: y
B18: Valeur argile | C18: =Saisie!D9 -> 25 | D18: 0
C19: =C18 -> 25 | D19: 8
C22: =Saisie!D25 -> Année N3 | D22: =Saisie!E25 -> Année N2 | E22: =Saisie!F25 -> Année N1
B23: Rapport MO/Argile | C23: =(Saisie!D26/Saisie!$D$9)*100 -> 12 | D23: =(Saisie!E26/Saisie!$D$9)*100 -> 12 | E23: =(Saisie!F26/Saisie!$D$9)*100 -> 12
B25: CEC | C25: =Saisie!L8 -> 0 | D25: 0
C26: =C25 -> 0 | D26: 8

Sheet BDD_parcelles
B6: Nouvelle parcelle
B8: Les longues raies

Sheet Feuil2
A7: Argile | B7: =Granulo!D7 -> 25
A8: Limon | B8: =SUM(Granulo!D8:D9) -> 65

Sheet Feuil3
D3: x | E3: y
D4: =pH!E6 -> 6.4 | E4: 0
D5: =D4 -> 6.4 | E5: 8
A7: 4 | B7: 5.5
A8: 4 | B8: =B7+1 -> 6.5
A9: 4 | B9: =B8+1 -> 7.5
A10: 4 | B10: 8.5
A11: 4 | B11: 9.5
A12: 4 | B12: 10.5
A13: 4 | B13: 11.5
A14: 4 | B14: 12.5

Sheet Feuil5
C9: Fertilité physique | D9: 33
C10: Fertilité chimique | D10: 33
C11: Fertilité biologique | D11: 33

Sheet Feuil4
